{"text_format":"1","workbook":"xlsx","n_sheets":6,"sheets":["Introduction","Pre-App Stage","Outline Application Stage","Detailed Application Stage","Post-Construction Stage","Drop- down list"],"not_rendered":{"charts":0,"images":1,"macros":1,"external_links":0,"defined_names":53,"comments":0,"pivot_tables":0},"unopened":[],"bounds":{"document_bytes":16777216,"sheet_cells":100000,"rows_first":2000,"rows_last":500,"rows_between":2000,"halvings":0,"cell_chars":16384,"cell_head_chars":4096},"cells_cut":0,"cells_raw":0,"read":"whole","date_system":"1900"}

{"sheet":"Introduction","index":0,"n_rows":36,"n_cols":7,"rows_kept":36,"cut":false,"hidden":false,"merged":[[21,6,21,9],[22,6,22,9],[23,6,23,9],[24,6,24,9],[25,6,25,9],[32,6,32,9],[28,6,28,9],[31,6,31,9],[26,6,26,9],[27,6,27,9],[29,6,29,9],[30,6,30,9]]}
["Greater London Authority - Circular Economy Statement template "]
[]
["How to use this spreadsheet"]
["This template should be used by planning applicants to fulfil the requirements of the Mayor's Circular Economy (CE) Statement policy set out in London Plan Policy SI 7 'Reducing waste and supporting the Circular Economy’. Before completing and submitting this spreadsheet to the GLA, applicants should read the CE statement guidance: https://www.london.gov.uk/what-we-do/planning/implementing-london-plan/london-plan-guidance-and-spgs/circular-economy-statement-guidance-consultation-draft "]
[]
["Applicant are required to submit CE statement information to the GLA at the following three stages: pre-applicaton, outline/detailed planning submission and post-construction. Separate tabs are provided in this spreadsheet for each stage. An outline of the information required at each stage and how to submit it is provided below. Please enter information to the light yellow-coloured cells only, do not enter information in the grey cells as these will be automatically calculated. The light green-coloured cells should be completed to achieve 'pioneering' status."]
[]
["1. Pre-application stage"]
["At pre-application stage, applicants are required to complete the pre-application information tab of this template which requires applicants to confirm details about the site and to provide details of the circular economy design approaches that are informing the existing and new development (including by building layer for the latter). All tables should be completed. This should be submitted to the GLA along with all other pre-application material."]
[]
["2. Outline/detailed planning submission stage"]
["At this stage, applicants are required to complete the outline or detailed planning stage tab of this template (whichever is relevant) and submit it to the GLA along with their planning application. Applicants are required to complete all tables, including the Bill of Materials and Recycling and Waste Reporting tables. Please enter information to the light yellow-coloured cells only, do not enter information in the grey cells as these will be automatically calculated. The light green-coloured cells should be completed to achieve 'pioneering' status."]
[]
["3. Post-construction stage"]
["At the final stage of the CE statement process, applicants should complete the post-construction tab of this template and submit it to the GLA within three months of practical completion. This will require an update of the information provided at planning submission stage and for the actual figures to be reported using actual material quantities during construction. Information should be submitted to: circulareconomystatements@london.gov.uk   "]
[]
["Queries"]
["Any queries or feedback on this template should be submitted to:"]
["circulareconomystatements@london.gov.uk"]
[]
[]
["Requirement by application stage (see relevant section of guidance for more information)","Pre-application stage (suggested)","Outline application[1]","Full application / reserved matters[2]","Post-construction","Checklist","Information Reference (Please indicate whether this has been included in the report to accompany this template or as a separate submission)"]
["CE targets (see section 4.2)","Encouraged","Yes ","Yes  ","Yes (Performance reported)",null,"Evidence in CES template spreadsheet"]
["CE design approaches (see sections 2.3 - 2.5 and 4.3)","Yes ","Yes ","Yes ","N/A",null,"Evidence in CES template spreadsheet"]
["CE design principles (see sections 2.1, 4.4 - 4.5)","Yes","No","No","No",null,"Evidence in CES template spreadsheet"]
["CE design principles by building layer (see sections 4.5)","No","Yes","Yes","No",null,"Evidence in CES template spreadsheet"]
["Pre-redevelopment audit (see section 4.6)","Encouraged ","Yes","Yes","N/A"]
["Pre-demolition audit (see section 4.6)","Encouraged","Yes","Yes","N/A"]
["Bill of materials (including calculations – see section 4.7)","No","Yes (Estimated)","Yes (Estimated) ","Yes (Actual)",null,"Evidence in CES template spreadsheet"]
["End of life strategy (see section 4.7)","No","No","Yes ","Encouraged"]
["Operational waste management plan (see section 4.8)","No","No","Yes ","Encouraged"]
["Recycling and waste reporting (see Section 4.9)","No","Yes (Estimated)","Yes (Estimated) ","Yes (Actual)",null,"Evidence in CES template spreadsheet"]
["Lessons learnt and key achievements (see section 4.10)","N/A","N/A","N/A","Yes ",null,"Evidence in CES template spreadsheet"]
[]
["[1] Also applicable to the outline and detailed part of hybrid applications."]
["[2] Also applicable to the outline and detailed part of hybrid applications."]

{"sheet":"Pre-App Stage","index":1,"n_rows":88,"n_cols":7,"rows_kept":88,"cut":false,"hidden":false,"merged":[[34,1,34,2],[0,0,1,6],[3,0,3,5],[4,0,4,2],[4,4,4,5],[5,2,5,3],[51,1,51,2],[35,1,35,2],[36,1,36,2],[37,1,37,2],[38,1,38,2],[39,1,39,2],[40,1,40,2],[41,1,41,2],[42,1,42,2],[43,1,43,2],[44,1,44,2],[50,1,50,2],[70,4,70,5],[70,6,70,8],[71,4,71,5],[70,1,70,3],[52,1,52,2],[53,1,53,2],[54,1,54,2],[55,1,55,2],[56,1,56,2],[57,1,57,2],[71,6,71,8],[83,1,83,2],[84,1,84,2],[85,1,85,2],[82,1,82,2],[71,1,74,2],[75,1,75,3],[76,1,76,3],[77,1,77,3],[78,1,78,3],[86,1,86,2],[87,1,87,2],[88,1,88,2],[88,4,88,5],[88,6,88,8],[89,1,89,2],[89,4,89,5],[89,6,89,8],[90,1,90,2],[90,4,90,5],[90,6,90,8],[76,6,76,8],[77,6,77,8],[78,6,78,8],[72,4,72,5],[73,4,73,5],[74,4,74,5],[75,4,75,5],[76,4,76,5],[77,4,77,5],[72,6,72,8],[73,6,73,8],[74,6,74,8],[75,6,75,8],[78,4,78,5]]}
[]
[]
[]
["Pre-Application Stage - Circular Economy Statement"]
[]
[null,null,"Project details"]
[null,null,"Project name","Highgate Studios"]
[null,null,"Planning application reference number (if applicable)"]
[null,null,"Applicant","Kentish Town UK Office Propco Limited"]
[null,null,"London Borough","London Borough of Camden"]
[null,null,"Brief description of the project","‘Demolition of existing buildings and structures at Plot A and Plot F and erection of a 7-storey building at Plot A and 4-storey building at Plot F; erection of extensions at Plot B, E, J and I on the existing buildings; external refurbishment of the existing buildings at Plot C and D; introduction of a new entrance pavilion, with cycle parking, hard and soft landscaping and associated works and plant; to provide Class E (g) use plus a range of other supporting and ancillary uses.’"]
[null,null,"Author/s","Savills Earth"]
[null,null,"Date of assessment","2023-04-01"]
[null,null,"Number of Use Types",1]
[null,null,"Use Class / Type","Floor Area by use type (m2)"]
[null,null,"E","Use Class / Type 1 GIA"]
[null,null,"Use Class / Type 2","Use Class / Type 2 GIA"]
[null,null,"Use Class / Type 3","Use Class / Type 3 GIA"]
[null,null,"Use Class / Type 4","Use Class / Type 4 GIA"]
[null,null,"Use Class / Type 5","Use Class / Type 5 GIA"]
[null,null,"Use Class / Type 6","Use Class / Type 6 GIA"]
[null,null,"Use Class / Type 7","Use Class / Type 7 GIA"]
[null,null,"Use Class / Type 8","Use Class / Type 8 GIA"]
[null,null,"Use Class / Type 9","Use Class / Type 9 GIA"]
[null,null,"Use Class / Type 10","Use Class / Type 10 GIA"]
[null,null,"Use Class / Type 11","Use Class / Type 11 GIA"]
[null,null,"Use Class / Type 12","Use Class / Type 12 GIA"]
[null,null,"Use Class / Type 13","Use Class / Type 13 GIA"]
[null,null,"Use Class / Type 14","Use Class / Type 14 GIA"]
[null,null,"Use Class / Type 15","Use Class / Type 15 GIA"]
[null,null,"Overall GIA (m2)",{"$f":"SUM(D16:D30)","v":0}]
[]
[]
[null,"Circular Economy Design Approaches"]
[null,"Circular Economy Design Approaches for Existing Structures / Buildings",null,"Applicant Response"]
[null,"Is there an existing building on the site?",null,"Yes"]
[null,"Is it technically feasible to retain the building(s) in whole or in part?",null,"Yes"]
[null,"Are there any building materials or elements available on site that can be used?"]
[null,"Is the existing building, or parts of the building, suited to the requirements for the site?",null,"Yes, in part"]
[null,"Is it technically feasible to recover the 'residual value' of the buildings elements or materials?"]
[null,"The preferred strategy is:",null,"NEW BUILDING"]
[null,"The preferred strategy is:",null,"RETAIN and RETROFIT"]
[null,"The preferred strategy is:",null,"PARTIAL RETENTION and REFURBISHMENT"]
[null,"The preferred strategy is:",null,"DISASSEMBLE/DECONSTRUCT AND REUSE"]
[null,"The preferred strategy is:",null,"DEMOLISH/DECONSTRUCT AND RECYCLE"]
[null,"Circular Economy Design Approach","Phase / Building / Area / Layer","Strategic Response"]
[null,"Retain and Retrofit"]
[null,"Reconstruct"]
[null,"Disassemble "]
[null,"Demolish and Recycle"]
[null,"Circular Economy Design Approaches for New Buildings, Infrastructure and Layers Over the Lifetime of the Development",null,"Applicant Response"]
[null,"Is the whole building designed to have a short life on its current site? (e.g. less than 10 yrs)",null,"No"]
[null,"Is there likely to be a need for building of a similar size (etc.) in different locations in the future?"]
[null,"Is it foreseeable that the building will need to change use/function within its design life?",null,"Yes"]
[null,"The preferred strategy is:",null,"Design for BUILDING RELOCATION"]
[null,"The preferred strategy is:",null,"Design for COMPONENT / MATERIAL REUSE"]
[null,"The preferred strategy is:",null,"Design for ADAPTABILITY"]
[null,"All developments should apply the 6 Circular Economy principles, including:",null,"Designing for DISASSEMBLY and ADAPTABILITY, MATERIAL REUSE ON-SITE and/or RECYCLING should be maximised"]
[null,"Circular Economy Design Approach","Phase / Building / Area / Layer","Strategic Response"]
[null,"Building relocation"]
[null,"Component or material reuse"]
[null,"Adaptability"]
[null,"Flexibility"]
[null,"Replaceability"]
[null,"Disassembly"]
[null,"Longevity"]
[]
[]
[]
[null,"Circular Economy Design Principles"]
[null,"Design Principle",null,null,"Phase / Building / Area / Layer",null,"Design Response"]
[null,"Designing out waste",null,"Module A - Product Sourcing and Construction Stage"]
[null,null,null,"Module B - In-Use Stage"]
[null,null,null,"Module C - End-of-Life Stage"]
[null,null,null,"Module D - Benefits and Loads Beyond the System Boundary"]
[null,"Designing for longevity"]
[null,"Designing for adaptability or flexibility"]
[null,"Designing for disassembly"]
[null,"Using systems, elements or materials that can be re-used and recycled"]
[]
[]
[null,"Circular Economy Targets"]
[null,"Circular economy targets for existing and new development",null,"Policy Requirement","Target Aiming For (%)","Policy Met?"]
[null,"Demolition waste materials (non-hazardous)",null,"Minimum of 95% diverted from landfill for reuse, recycling or recovery.",null,{"$f":"IF(ISNUMBER(E84),IF(E84=95%,\"Yes\",IF(E84>95%,\"Exceeds Policy\",\"No\")),\"\")","v":""}]
[null,"Excavation waste materials",null,"Minimum of 95% diverted from landfill for beneficial reuse.",null,{"$f":"IF(ISNUMBER(E85),IF(E85=95%,\"Yes\",IF(E85>95%,\"Exceeds Policy\",\"No\")),\"\")","v":""}]
[null,"Construction waste materials",null,"Minimum of 95% diverted from landfill for reuse, recycling or recovery.",null,{"$f":"IF(ISNUMBER(E86),IF(E86=95%,\"Yes\",IF(E86>95%,\"Exceeds Policy\",\"No\")),\"\")","v":""}]
[null,"Municipal waste",null,"Minimum 65% recycling rate by 2030.",null,{"$f":"IF(ISNUMBER(E87),IF(E87=65%,\"Yes\",IF(E87>65%,\"Exceeds Policy\",\"No\")),\"\")","v":""}]
[null,"Recycled content",null,"Minimum 20% of the building material elements to be comprised of recycled or reused content.",null,{"$f":"IF(ISNUMBER(E88),IF(E88=20%,\"Yes\",IF(E88>20%,\"Exceeds Policy\",\"No\")),\"\")","v":""}]

{"sheet":"Outline Application Stage","index":2,"n_rows":488,"n_cols":26,"rows_kept":488,"cut":false,"hidden":false,"merged":[[434,1,453,1],[434,2,453,3],[433,2,433,3],[392,2,411,3],[392,1,411,1],[413,2,432,3],[413,1,432,1],[329,1,348,1],[350,2,369,3],[350,1,369,1],[371,2,390,3],[371,1,390,1],[276,1,290,1],[292,2,311,3],[292,1,311,1],[313,2,327,3],[313,1,327,1],[218,1,237,1],[239,2,253,3],[239,1,253,1],[255,1,274,1],[255,2,274,3],[41,1,41,2],[42,1,42,2],[43,1,43,2],[44,1,44,2],[50,1,50,2],[91,1,105,1],[91,2,105,3],[370,2,370,3],[391,2,391,3],[175,2,175,3],[275,2,275,3],[291,2,291,3],[312,2,312,3],[328,2,328,3],[349,2,349,3],[218,2,237,3],[276,2,290,3],[329,2,348,3],[154,2,154,3],[196,2,196,3],[217,2,217,3],[238,2,238,3],[254,2,254,3],[155,2,174,3],[40,1,40,2],[0,0,1,6],[3,0,3,5],[4,0,4,2],[4,4,4,5],[5,2,5,3],[34,1,34,2],[35,1,35,2],[36,1,36,2],[37,1,37,2],[38,1,38,2],[39,1,39,2],[51,1,51,2],[52,1,52,2],[53,1,53,2],[54,1,54,2],[55,1,55,2],[56,1,56,2],[70,14,75,14],[70,15,75,15],[72,1,72,3],[73,1,73,3],[74,1,74,3],[75,1,75,3],[70,13,75,13],[75,4,75,11],[70,1,71,3],[70,4,70,11],[70,12,75,12],[57,1,57,2],[76,1,79,2],[80,1,80,3],[81,1,81,3],[88,2,88,3],[83,1,83,3],[82,1,82,3],[461,13,461,16],[462,13,463,13],[462,14,463,14],[462,15,463,15],[462,16,463,16],[462,5,463,5],[462,6,463,6],[462,7,462,8],[461,4,461,6],[461,7,461,12],[462,9,462,10],[462,11,462,12],[88,4,88,11],[88,12,88,16],[89,2,89,3],[90,2,90,3],[106,2,106,3],[122,2,122,3],[487,1,487,2],[487,4,487,5],[487,6,487,8],[484,1,484,2],[484,6,484,8],[485,1,485,2],[485,6,485,8],[486,1,486,2],[486,4,486,5],[486,6,486,8],[88,17,88,21],[88,22,88,25],[481,1,481,2],[481,6,481,8],[482,1,482,2],[482,6,482,8],[483,1,483,2],[483,6,483,8],[480,1,480,2],[480,6,480,8],[462,4,463,4],[138,2,138,3],[107,2,121,3],[412,2,412,3],[155,1,174,1],[176,2,195,3],[176,1,195,1],[197,2,216,3],[197,1,216,1],[107,1,121,1],[123,2,137,3],[139,2,153,3],[139,1,153,1],[123,1,137,1]]}
[]
[]
[]
["Outline Application Stage - Circular Economy Statement"]
[]
[null,null,"Project details"]
[null,null,"Project name",{"$f":"'Pre-App Stage'!D7","v":"Highgate Studios"}]
[null,null,"Planning application reference number (if applicable)",{"$f":"'Pre-App Stage'!D8","v":0}]
[null,null,"Applicant",{"$f":"'Pre-App Stage'!D9","v":"Kentish Town UK Office Propco Limited"}]
[null,null,"London Borough",{"$f":"'Pre-App Stage'!D10","v":"London Borough of Camden"}]
[null,null,"Brief description of the project",{"$f":"'Pre-App Stage'!D11","v":"‘Demolition of existing buildings and structures at Plot A and Plot F and erection of a 7-storey building at Plot A and 4-storey building at Plot F; erection of extensions at Plot B, E, J and I on the existing buildings; external refurbishment of the existing buildings at Plot C and D; introduction of a new entrance pavilion, with cycle parking, hard and soft landscaping and associated works and plant; to provide Class E (g) use plus a range of other supporting and ancillary uses.’"}]
[null,null,"Author/s",{"$f":"'Pre-App Stage'!D12","v":"Savills Earth"}]
[null,null,"Date of assessment","2023-04-01"]
[null,null,"Number of Use Types",{"$f":"'Pre-App Stage'!D14","v":1}]
[null,null,"Use Class / Type","Floor Area by use type (m2)"]
[null,null,"Use Class / Type 1","Use Class / Type 1 GIA"]
[null,null,"Use Class / Type 2","Use Class / Type 2 GIA"]
[null,null,"Use Class / Type 3","Use Class / Type 3 GIA"]
[null,null,"Use Class / Type 4","Use Class / Type 4 GIA"]
[null,null,"Use Class / Type 5","Use Class / Type 5 GIA"]
[null,null,"Use Class / Type 6","Use Class / Type 6 GIA"]
[null,null,"Use Class / Type 7","Use Class / Type 7 GIA"]
[null,null,"Use Class / Type 8","Use Class / Type 8 GIA"]
[null,null,"Use Class / Type 9","Use Class / Type 9 GIA"]
[null,null,"Use Class / Type 10","Use Class / Type 10 GIA"]
[null,null,"Use Class / Type 11","Use Class / Type 11 GIA"]
[null,null,"Use Class / Type 12","Use Class / Type 12 GIA"]
[null,null,"Use Class / Type 13","Use Class / Type 13 GIA"]
[null,null,"Use Class / Type 14","Use Class / Type 14 GIA"]
[null,null,"Use Class / Type 15","Use Class / Type 15 GIA"]
[null,null,"Overall GIA (m2)",{"$f":"SUM(D16:D30)","v":0}]
[]
[]
[null,"Circular Economy Design Approaches"]
[null,"Circular Economy Design Approaches for Existing Structures / Buildings",null,"Applicant Response"]
[null,"Is there an existing building on the site?"]
[null,"Is it technically feasible to retain the building(s) in whole or in part?"]
[null,"Are there any building materials or elements available on site that can be used?"]
[null,"Is the existing building, or parts of the building, suited to the requirements for the site?"]
[null,"Is it technically feasible to recover the 'residual value' of the buildings elements or materials?"]
[null,"The preferred strategy is:",null,"NEW BUILDING"]
[null,"The preferred strategy is:",null,"RETAIN and RETROFIT"]
[null,"The preferred strategy is:",null,"PARTIAL RETENTION and REFURBISHMENT"]
[null,"The preferred strategy is:",null,"DISASSEMBLE/DECONSTRUCT AND REUSE"]
[null,"The preferred strategy is:",null,"DEMOLISH/DECONSTRUCT AND RECYCLE"]
[null,"Circular Economy Design Approach","Phase/Building/Area/Layer","Strategic Response"]
[null,"Refurbish"]
[null,"Repurpose"]
[null,"Disassemble / Deconstruct and Reuse"]
[null,"Demolish / Deconstruct and Recycle"]
[null,"Circular Economy Design Approaches for New Buildings, Infrastructure and Layers Over the Lifetime of the Development",null,"Applicant Response"]
[null,"Is the whole building designed to have a short life on its current site? (e.g. less than 10 yrs)"]
[null,"Is there likely to be a need for building of a similar size (etc.) in different locations in the future?"]
[null,"Is it foreseeable that the building will need to change use/function within its design life?"]
[null,"The preferred strategy is:",null,"Design for BUILDING RELOCATION"]
[null,"The preferred strategy is:",null,"Design for COMPONENT / MATERIAL REUSE"]
[null,"The preferred strategy is:",null,"Design for ADAPTABILITY"]
[null,"All developments should apply the 6 Circular Economy principles, including:",null,"Designing for DISASSEMBLY and ADAPTABILITY, MATERIAL REUSE ON-SITE and/or RECYCLING should be maximised"]
[null,"Circular Economy Design Approach","Phase/Building/Area/Layer","Strategic Response"]
[null,"Building relocation"]
[null,"Component or material reuse"]
[null,"Adaptability"]
[null,"Flexibility"]
[null,"Replaceability"]
[null,"Disassembly"]
[null,"Longevity"]
[]
[]
[null,"Circular Economy Design Principles by Building Layer"]
[null,"The Circular Economy Commitments table should consider where the Applicant seeks to go beyond standard practice. If there are multiple phases / buildings / areas with different measures / strategies, please specify these separately within the table below."]
[null,null,null,null,"Building Layer",null,null,null,null,null,null,null,"Summary","Challenges","Actions & Counter-Actions, Who and When","Plan to Prove and Quantify"]
[null,null,null,null,"Site","Substructure","Superstructure","Shell/Skin","Services","Space ","Stuff","Construction Stuff"]
[null,"1. Is it likely the layer (or components within it) will need to be moved or otherwise modified within 5-15 years, e.g. due to changing use patterns or user requirements?",null,null,"N/A",null,null,null,null,null,null,"N/A"]
[null,"2. Is it likely the layer (or components within it) will need to be changed, upgraded or replaced within 5-15 years, e.g. for improved performance, aesthetics",null,null,"N/A",null,null,null,null,null,null,"N/A"]
[null,"The preferred strategy is:",null,null,"-",{"$f":"IF(F73=\"Yes\",\"Design for FLEXIBILITY\",IF(F74=\"Yes\",\"Design for REPLACEABILITY\",IF(AND(F73=\"No\",F74=\"No\"),\"Design for ADAPTABILITY\",\"\")))","v":""},{"$f":"IF(G73=\"Yes\",\"Design for FLEXIBILITY\",IF(G74=\"Yes\",\"Design for REPLACEABILITY\",IF(AND(G73=\"No\",G74=\"No\"),\"Design for ADAPTABILITY\",\"\")))","v":""},"","","","","-"]
[null,"Design Principles",null,null,"All developments should apply the 6 circular economy principles, including designing for DISASSEMBLY and ADAPTABILITY, MATERIAL REUSE ON-SITE and/or RECYCLING should be maximised."]
[null,"Designing out waste",null,"Module A - Product Sourcing and Construction Stage"]
[null,null,null,"Module B - In-Use Stage"]
[null,null,null,"Module C - End-of-Life Stage"]
[null,null,null,"Module D - Benefits and Loads Beyond the System Boundary"]
[null,"Designing for longevity"]
[null,"Designing for adaptability or flexibility"]
[null,"Designing for disassembly"]
[null,"Using systems, elements or materials that can be re-used and recycled"]
[]
[]
[null,"Bill of Materials"]
[null,"Please click the + symbol to the left hand side of the Bill of Materials table to view or hide the input rows for each Building Element Category. The rows for substructure and frame have been unhidden to highlight this."]
[null,null,"BUILDING ELEMENT CATEGORY -  LEVEL 1 (based on the RICS New Rules of\nMeasurement (NRM) classification system level 2 sub-elements https://www.rics.org/globalassets/rics-website/media/products/data-products/bcis-construction/bcis-elemental-standard-form-cost-analysis-4th-nrm-edition-2012.pdf)",null,"PRODUCT AND CONSTRUCTION STAGE (MODULE A)",null,null,null,null,null,null,null,"USE STAGE (MODULE B)",null,null,null,null,"END OF LIFE STAGE (MODULE C)",null,null,null,null,"BENEFITS BEYOND THE SYSTEM BOUNDARY (MODULE D)"]
[null,null,"Building Element Category",null,"Material Type","Material quantity\n(Module A)\n(kg)","Material intensity \n(Module A) \n(kg/m2 GIA)","Performance Indicator (LPG Appendix 1)","Construction Waste Factor \n(Module A)","Construction Waste \n(Module A)\n(kg)","Recycled Content \nby mass (kg)","Recycled Content \nby value (%)","Expected Lifespan\n(years)","Number of Replacements (over assumed 60-year period)","Repair and Replacement quantities of materials\n(Module B)\n (kg)","Construction Waste Factor \n(Module B)","Construction Waste \n(Module B)\n(kg)","Design for Disassembly","Assumed End of Life Scenario\n(Description)","% Reusing ","% Recycling","% Landfill","Estimated reusable materials (kg)","Estimated reusable materials intensity\n(kg/m2 GIA)","Estimated recyclable materials (kg)","Estimated recyclable materials intensity\n(kg/m2 GIA)"]
[null,0.1,"Demolition: Toxic/Hazardous/Contaminated Material Treatment",null,"-",{"$f":"SUM(F92:F106)","v":0},{"$f":"IF(AND(F91<>0,$D$31<>0),F91/$D$31,0)","v":0},"-","-",{"$f":"SUM(J92:J106)","v":0},"-","-","-","-",{"$f":"SUM(O92:O106)","v":0},"-",{"$f":"SUM(Q92:Q106)","v":0},"-","-",{"$f":"IF(W91<>0,W91/($F$91+$O$91),0)","v":0},{"$f":"IF(Y91<>0,Y91/($F$91+$O$91),0)","v":0},{"$f":"1-T91-U91","v":1},{"$f":"SUM(W92:W106)","v":0},{"$f":"IF(AND(W91<>0,$D$31<>0),W91/$D$31,0)","v":0},{"$f":"SUM(Y92:Y106)","v":0},{"$f":"IF(AND(Y91<>0,$D$31<>0),Y91/$D$31,0)","v":0}]
[null,0.1,"Demolition: Toxic/Hazardous/Contaminated Material Treatment",null,null,null,{"$f":"IF(AND(F92<>0,$D$31<>0),F92/$D$31,0)","v":0},"-",null,{"$f":"F92*I92","v":0},null,null,null,{"$f":"IF(M92<>0,INT(60/M92),0)","v":0},{"$f":"N92*I92","v":0},null,{"$f":"P92*M92","v":0},null,null,0,0,{"$f":"1-T92-U92","v":1},{"$f":"T92*(F92+O92)","v":0},{"$f":"IF(AND(W92<>0,$D$31<>0),W92/$D$31,0)","v":0},{"$f":"U92*(F92+O92)","v":0},{"$f":"IF(AND(Y92<>0,$D$31<>0),Y92/$D$31,0)","v":0}]
[null,null,null,null,null,null,{"$f":"IF(AND(F93<>0,$D$31<>0),F93/$D$31,0)","v":0},"-",null,{"$f":"F93*I93","v":0},null,null,null,{"$f":"IF(M93<>0,INT(60/M93),0)","v":0},{"$f":"N93*I93","v":0},null,{"$f":"P93*M93","v":0},null,null,0,0,{"$f":"1-T93-U93","v":1},{"$f":"T93*(F93+O93)","v":0},{"$f":"IF(AND(W93<>0,$D$31<>0),W93/$D$31,0)","v":0},{"$f":"U93*(F93+O93)","v":0},0]
[null,null,null,null,null,null,0,"-",null,0,null,null,null,0,0,null,0,null,null,0,0,1,0,0,0,0]
[null,null,null,null,null,null,0,"-",null,0,null,null,null,0,0,null,0,null,null,0,0,1,0,0,0,0]
[null,null,null,null,null,null,0,"-",null,0,null,null,null,0,0,null,0,null,null,0,0,1,0,0,0,0]
[null,null,null,null,null,null,0,"-",null,0,null,null,null,0,0,null,0,null,null,0,0,1,0,0,0,0]
[null,null,null,null,null,null,0,"-",null,0,null,null,null,0,0,null,0,null,null,0,0,1,0,0,0,0]
[null,null,null,null,null,null,0,"-",null,0,null,null,null,0,0,null,0,null,null,0,0,1,0,0,0,0]
[null,null,null,null,null,null,0,"-",null,0,null,null,null,0,0,null,0,null,null,0,0,1,0,0,0,0]
[null,null,null,null,null,null,0,"-",null,0,null,null,null,0,0,null,0,null,null,0,0,1,0,0,0,0]
[null,null,null,null,null,null,0,"-",null,0,null,null,null,0,0,null,0,null,null,0,0,1,0,0,0,0]
[null,null,null,null,null,null,0,"-",null,0,null,null,null,0,0,null,0,null,null,0,0,1,0,0,0,0]
[null,null,null,null,null,null,0,"-",null,0,null,null,null,0,0,null,0,null,null,0,0,1,0,0,0,0]
[null,null,null,null,null,null,0,"-",null,0,null,null,null,0,0,null,0,null,null,0,0,1,0,0,0,0]
[null,null,null,null,null,null,0,"-",null,0,null,null,null,0,0,null,0,null,null,0,0,1,0,0,0,0]
[null,0.2,"Major Demolition Works",null,"-",{"$f":"SUM(F108:F122)","v":0},{"$f":"IF(AND(F107<>0,$D$31<>0),F107/$D$31,0)","v":0},"-","-",{"$f":"SUM(J108:J122)","v":0},"-","-","-","-",{"$f":"SUM(O108:O122)","v":0},"-",{"$f":"SUM(Q108:Q122)","v":0},"-","-",{"$f":"IF(W107<>0,W107/($F$107+$O$107),0)","v":0},{"$f":"IF(Y107<>0,Y107/($F$107+$O$107),0)","v":0},{"$f":"1-T107-U107","v":1},{"$f":"SUM(W108:W122)","v":0},0,{"$f":"SUM(Y108:Y122)","v":0},0]
[null,0.2,"Major Demolition Works",null,null,null,{"$f":"IF(AND(F108<>0,$D$31<>0),F108/$D$31,0)","v":0},"-",null,{"$f":"I108*F108","v":0},null,null,null,0,0,null,0,null,null,0,0,1,0,0,0,0]
[null,null,null,null,null,null,{"$f":"IF(AND(F109<>0,$D$31<>0),F109/$D$31,0)","v":0},"-",null,0,null,null,null,0,0,null,0,null,null,0,0,1,0,0,0,0]
[null,null,null,null,null,null,{"$f":"IF(AND(F110<>0,$D$31<>0),F110/$D$31,0)","v":0},"-",null,0,null,null,null,0,0,null,0,null,null,0,0,1,0,0,0,0]
[null,null,null,null,null,null,0,"-",null,0,null,null,null,0,0,null,0,null,null,0,0,1,0,0,0,0]
[null,null,null,null,null,null,0,"-",null,0,null,null,null,0,0,null,0,null,null,0,0,1,0,0,0,0]
[null,null,null,null,null,null,0,"-",null,0,null,null,null,0,0,null,0,null,null,0,0,1,0,0,0,0]
[null,null,null,null,null,null,0,"-",null,0,null,null,null,0,0,null,0,null,null,0,0,1,0,0,0,0]
[null,null,null,null,null,null,0,"-",null,0,null,null,null,0,0,null,0,null,null,0,0,1,0,0,0,0]
[null,null,null,null,null,null,0,"-",null,0,null,null,null,0,0,null,0,null,null,0,0,1,0,0,0,0]
[null,null,null,null,null,null,0,"-",null,0,null,null,null,0,0,null,0,null,null,0,0,1,0,0,0,0]
[null,null,null,null,null,null,0,"-",null,0,null,null,null,0,0,null,0,null,null,0,0,1,0,0,0,0]
[null,null,null,null,null,null,0,"-",null,0,null,null,null,0,0,null,0,null,null,0,0,1,0,0,0,0]
[null,null,null,null,null,null,0,"-",null,0,null,null,null,0,0,null,0,null,null,0,0,1,0,0,0,0]
[null,null,null,null,null,null,0,"-",null,0,null,null,null,0,0,null,0,null,null,0,0,1,0,0,0,0]
[null,null,null,null,null,null,0,"-",null,0,null,null,null,0,0,null,0,null,null,0,0,1,0,0,0,0]
[null,0.3,"Temporary Support to Adjacent Structures",null,"-",{"$f":"SUM(F124:F138)","v":0},{"$f":"IF(AND(F123<>0,$D$31<>0),F123/$D$31,0)","v":0},"-","-",{"$f":"SUM(J124:J138)","v":0},"-","-","-","-",{"$f":"SUM(O124:O138)","v":0},"-",{"$f":"SUM(Q124:Q138)","v":0},"-","-",{"$f":"IF(W123<>0,W123/($F$123+$O$123),0)","v":0},{"$f":"IF(Y123<>0,Y123/($F$123+$O$123),0)","v":0},1,{"$f":"SUM(W124:W138)","v":0},0,{"$f":"SUM(Y124:Y138)","v":0},0]
[null,0.3,"Temporary Support to Adjacent Structures",null,null,null,{"$f":"IF(AND(F124<>0,$D$31<>0),F124/$D$31,0)","v":0},"-",null,{"$f":"I124*F124","v":0},null,null,null,0,0,null,0,null,null,0,0,1,0,0,0,0]
[null,null,null,null,null,null,{"$f":"IF(AND(F125<>0,$D$31<>0),F125/$D$31,0)","v":0},"-",null,0,null,null,null,0,0,null,0,null,null,0,0,1,0,0,0,0]
[null,null,null,null,null,null,{"$f":"IF(AND(F126<>0,$D$31<>0),F126/$D$31,0)","v":0},"-",null,0,null,null,null,0,0,null,0,null,null,0,0,1,0,0,0,0]
[null,null,null,null,null,null,0,"-",null,0,null,null,null,0,0,null,0,null,null,0,0,1,0,0,0,0]
[null,null,null,null,null,null,0,"-",null,0,null,null,null,0,0,null,0,null,null,0,0,1,0,0,0,0]
[null,null,null,null,null,null,0,"-",null,0,null,null,null,0,0,null,0,null,null,0,0,1,0,0,0,0]
[null,null,null,null,null,null,0,"-",null,0,null,null,null,0,0,null,0,null,null,0,0,1,0,0,0,0]
[null,null,null,null,null,null,0,"-",null,0,null,null,null,0,0,null,0,null,null,0,0,1,0,0,0,0]
[null,null,null,null,null,null,0,"-",null,0,null,null,null,0,0,null,0,null,null,0,0,1,0,0,0,0]
[null,null,null,null,null,null,0,"-",null,0,null,null,null,0,0,null,0,null,null,0,0,1,0,0,0,0]
[null,null,null,null,null,null,0,"-",null,0,null,null,null,0,0,null,0,null,null,0,0,1,0,0,0,0]
[null,null,null,null,null,null,0,"-",null,0,null,null,null,0,0,null,0,null,null,0,0,1,0,0,0,0]
[null,null,null,null,null,null,0,"-",null,0,null,null,null,0,0,null,0,null,null,0,0,1,0,0,0,0]
[null,null,null,null,null,null,0,"-",null,0,null,null,null,0,0,null,0,null,null,0,0,1,0,0,0,0]
[null,null,null,null,null,null,0,"-",null,0,null,null,null,0,0,null,0,null,null,0,0,1,0,0,0,0]
[null,0.4,"Specialist Ground Works",null,"-",{"$f":"SUM(F140:F154)","v":0},{"$f":"IF(AND(F139<>0,$D$31<>0),F139/$D$31,0)","v":0},"-","-",{"$f":"SUM(J140:J154)","v":0},"-","-","-","-",{"$f":"SUM(O140:O154)","v":0},"-",{"$f":"SUM(Q140:Q154)","v":0},"-","-",{"$f":"IF(W139<>0,W139/($F$139+$O$139),0)","v":0},{"$f":"IF(Y139<>0,Y139/($F$139+$O$139),0)","v":0},1,{"$f":"SUM(W140:W154)","v":0},0,{"$f":"SUM(Y140:Y154)","v":0},0]
[null,0.4,"Specialist Ground Works",null,null,null,{"$f":"IF(AND(F140<>0,$D$31<>0),F140/$D$31,0)","v":0},"-",null,{"$f":"I140*F140","v":0},null,null,null,0,0,null,0,null,null,0,0,1,0,0,0,0]
[null,null,null,null,null,null,{"$f":"IF(AND(F141<>0,$D$31<>0),F141/$D$31,0)","v":0},"-",null,0,null,null,null,0,0,null,0,null,null,0,0,1,0,0,0,0]
[null,null,null,null,null,null,{"$f":"IF(AND(F142<>0,$D$31<>0),F142/$D$31,0)","v":0},"-",null,0,null,null,null,0,0,null,0,null,null,0,0,1,0,0,0,0]
[null,null,null,null,null,null,0,"-",null,0,null,null,null,0,0,null,0,null,null,0,0,1,0,0,0,0]
[null,null,null,null,null,null,0,"-",null,0,null,null,null,0,0,null,0,null,null,0,0,1,0,0,0,0]
[null,null,null,null,null,null,0,"-",null,0,null,null,null,0,0,null,0,null,null,0,0,1,0,0,0,0]
[null,null,null,null,null,null,0,"-",null,0,null,null,null,0,0,null,0,null,null,0,0,1,0,0,0,0]
[null,null,null,null,null,null,0,"-",null,0,null,null,null,0,0,null,0,null,null,0,0,1,0,0,0,0]
[null,null,null,null,null,null,0,"-",null,0,null,null,null,0,0,null,0,null,null,0,0,1,0,0,0,0]
[null,null,null,null,null,null,0,"-",null,0,null,null,null,0,0,null,0,null,null,0,0,1,0,0,0,0]
[null,null,null,null,null,null,0,"-",null,0,null,null,null,0,0,null,0,null,null,0,0,1,0,0,0,0]
[null,null,null,null,null,null,0,"-",null,0,null,null,null,0,0,null,0,null,null,0,0,1,0,0,0,0]
[null,null,null,null,null,null,0,"-",null,0,null,null,null,0,0,null,0,null,null,0,0,1,0,0,0,0]
[null,null,null,null,null,null,0,"-",null,0,null,null,null,0,0,null,0,null,null,0,0,1,0,0,0,0]
[null,null,null,null,null,null,0,"-",null,0,null,null,null,0,0,null,0,null,null,0,0,1,0,0,0,0]
[null,1,"Substructure",null,"-",{"$f":"SUM(F156:F175)","v":0},{"$f":"IF(AND(F155<>0,$D$31<>0),F155/$D$31,0)","v":0},{"$f":"SUMPRODUCT((C91:D454=\"Substructure\")*G91:G454)","v":0},"-",{"$f":"SUM(J156:J175)","v":0},"-","-","-","-",{"$f":"SUM(O156:O175)","v":0},"-",{"$f":"SUM(Q156:Q175)","v":0},"-","-",{"$f":"IF(W155<>0,W155/($F$155+$O$155),0)","v":0},{"$f":"IF(Y155<>0,Y155/($F$155+$O$155),0)","v":0},1,{"$f":"SUM(W156:W175)","v":0},0,{"$f":"SUM(Y156:Y175)","v":0},0]
[null,1,"Substructure",null,null,null,{"$f":"IF(AND(F156<>0,$D$31<>0),F156/$D$31,0)","v":0},"-",null,{"$f":"I156*F156","v":0},null,null,null,0,0,null,0,null,null,0,0,1,0,0,0,0]
[null,null,null,null,null,null,{"$f":"IF(AND(F157<>0,$D$31<>0),F157/$D$31,0)","v":0},"-",null,0,null,null,null,{"$f":"IF(M157<>0,INT(60/M157),0)","v":0},{"$f":"N157*I157","v":0},null,{"$f":"P157*M157","v":0},null,null,0,0,{"$f":"1-T157-U157","v":1},{"$f":"T157*(F157+O157)","v":0},{"$f":"IF(AND(W157<>0,$D$31<>0),W157/$D$31,0)","v":0},{"$f":"U157*(F157+O157)","v":0},0]
[null,null,null,null,null,null,{"$f":"IF(AND(F158<>0,$D$31<>0),F158/$D$31,0)","v":0},"-",null,0,null,null,null,0,0,null,0,null,null,0,0,1,0,0,0,0]
[null,null,null,null,null,null,0,"-",null,0,null,null,null,0,0,null,0,null,null,0,0,1,0,0,0,0]
[null,null,null,null,null,null,0,"-",null,0,null,null,null,0,0,null,0,null,null,0,0,1,0,0,0,0]
[null,null,null,null,null,null,0,"-",null,0,null,null,null,0,0,null,0,null,null,0,0,1,0,0,0,0]
[null,null,null,null,null,null,0,"-",null,0,null,null,null,0,0,null,0,null,null,0,0,1,0,0,0,0]
[null,null,null,null,null,null,0,"-",null,0,null,null,null,0,0,null,0,null,null,0,0,1,0,0,0,0]
[null,null,null,null,null,null,0,"-",null,0,null,null,null,0,0,null,0,null,null,0,0,1,0,0,0,0]
[null,null,null,null,null,null,0,"-",null,0,null,null,null,0,0,null,0,null,null,0,0,1,0,0,0,0]
[null,null,null,null,null,null,0,"-",null,0,null,null,null,0,0,null,0,null,null,0,0,1,0,0,0,0]
[null,null,null,null,null,null,0,"-",null,0,null,null,null,0,0,null,0,null,null,0,0,1,0,0,0,0]
[null,null,null,null,null,null,0,"-",null,0,null,null,null,0,0,null,0,null,null,0,0,1,0,0,0,0]
[null,null,null,null,null,null,0,"-",null,0,null,null,null,0,0,null,0,null,null,0,0,1,0,0,0,0]
[null,null,null,null,null,null,{"$f":"IF(AND(F170<>0,$D$31<>0),F170/$D$31,0)","v":0},"-",null,0,null,null,null,0,0,null,0,null,null,0,0,1,0,0,0,0]
[null,null,null,null,null,null,{"$f":"IF(AND(F171<>0,$D$31<>0),F171/$D$31,0)","v":0},"-",null,0,null,null,null,0,0,null,0,null,null,0,0,1,0,0,0,0]
[null,null,null,null,null,null,{"$f":"IF(AND(F172<>0,$D$31<>0),F172/$D$31,0)","v":0},"-",null,0,null,null,null,0,0,null,0,null,null,0,0,1,0,0,0,0]
[null,null,null,null,null,null,0,"-",null,0,null,null,null,0,0,null,0,null,null,0,0,1,0,0,0,0]
[null,null,null,null,null,null,0,"-",null,0,null,null,null,0,0,null,0,null,null,0,0,1,0,0,0,0]
[null,null,null,null,null,null,{"$f":"IF(AND(F175<>0,$D$31<>0),F175/$D$31,0)","v":0},"-",null,0,null,null,null,0,0,null,0,null,null,0,0,1,0,0,0,0]
[null,2.1,"Superstructure: Frame",null,"-",{"$f":"SUM(F177:F196)","v":0},{"$f":"IF(AND(F176<>0,$D$31<>0),F176/$D$31,0)","v":0},{"$f":"SUMPRODUCT((C91:D454=\"Superstructure: Frame\")*G91:G454)","v":0},"-",{"$f":"SUM(J177:J196)","v":0},"-","-","-","-",{"$f":"SUM(O177:O196)","v":0},"-",{"$f":"SUM(Q177:Q196)","v":0},"-","-",{"$f":"IF(W176<>0,W176/($F$176+$O$176),0)","v":0},{"$f":"IF(Y176<>0,Y176/($F$176+$O$176),0)","v":0},1,{"$f":"SUM(W177:W196)","v":0},0,{"$f":"SUM(Y177:Y196)","v":0},0]
[null,2.1,"Superstructure: Frame",null,null,null,{"$f":"IF(AND(F177<>0,$D$31<>0),F177/$D$31,0)","v":0},"-",null,{"$f":"I177*F177","v":0},null,null,null,0,0,null,0,null,null,0,0,1,0,0,0,0]
[null,null,null,null,null,null,{"$f":"IF(AND(F178<>0,$D$31<>0),F178/$D$31,0)","v":0},"-",null,0,null,null,null,0,0,null,0,null,null,0,0,1,0,0,0,0]
[null,null,null,null,null,null,{"$f":"IF(AND(F179<>0,$D$31<>0),F179/$D$31,0)","v":0},"-",null,0,null,null,null,0,0,null,0,null,null,0,0,1,0,0,0,0]
[null,null,null,null,null,null,0,"-",null,0,null,null,null,0,0,null,0,null,null,0,0,1,0,0,0,0]
[null,null,null,null,null,null,0,"-",null,0,null,null,null,0,0,null,0,null,null,0,0,1,0,0,0,0]
[null,null,null,null,null,null,0,"-",null,0,null,null,null,0,0,null,0,null,null,0,0,1,0,0,0,0]
[null,null,null,null,null,null,0,"-",null,0,null,null,null,0,0,null,0,null,null,0,0,1,0,0,0,0]
[null,null,null,null,null,null,0,"-",null,0,null,null,null,0,0,null,0,null,null,0,0,1,0,0,0,0]
[null,null,null,null,null,null,0,"-",null,0,null,null,null,0,0,null,0,null,null,0,0,1,0,0,0,0]
[null,null,null,null,null,null,0,"-",null,0,null,null,null,0,0,null,0,null,null,0,0,1,0,0,0,0]
[null,null,null,null,null,null,0,"-",null,0,null,null,null,0,0,null,0,null,null,0,0,1,0,0,0,0]
[null,null,null,null,null,null,0,"-",null,0,null,null,null,0,0,null,0,null,null,0,0,1,0,0,0,0]
[null,null,null,null,null,null,0,"-",null,0,null,null,null,0,0,null,0,null,null,0,0,1,0,0,0,0]
[null,null,null,null,null,null,0,"-",null,0,null,null,null,0,0,null,0,null,null,0,0,1,0,0,0,0]
[null,null,null,null,null,null,{"$f":"IF(AND(F191<>0,$D$31<>0),F191/$D$31,0)","v":0},"-",null,0,null,null,null,0,0,null,0,null,null,0,0,1,0,0,0,0]
[null,null,null,null,null,null,{"$f":"IF(AND(F192<>0,$D$31<>0),F192/$D$31,0)","v":0},"-",null,0,null,null,null,0,0,null,0,null,null,0,0,1,0,0,0,0]
[null,null,null,null,null,null,{"$f":"IF(AND(F193<>0,$D$31<>0),F193/$D$31,0)","v":0},"-",null,0,null,null,null,0,0,null,0,null,null,0,0,1,0,0,0,0]
[null,null,null,null,null,null,{"$f":"IF(AND(F194<>0,$D$31<>0),F194/$D$31,0)","v":0},"-",null,0,null,null,null,0,0,null,0,null,null,0,0,1,0,0,0,0]
[null,null,null,null,null,null,0,"-",null,0,null,null,null,0,0,null,0,null,null,0,0,1,0,0,0,0]
[null,null,null,null,null,null,0,"-",null,0,null,null,null,0,0,null,0,null,null,0,0,1,0,0,0,0]
[null,2.2000000000000002,"Superstructure: Upper Floors",null,"-",{"$f":"SUM(F198:F217)","v":0},{"$f":"IF(AND(F197<>0,$D$31<>0),F197/$D$31,0)","v":0},{"$f":"SUMPRODUCT((C176:D459=\"Superstructure: Upper Floors\")*G176:G459)","v":0},"-",{"$f":"SUM(J198:J217)","v":0},"-","-","-","-",{"$f":"SUM(O198:O217)","v":0},"-",{"$f":"SUM(Q198:Q217)","v":0},"-","-",{"$f":"IF(W197<>0,W197/($F$197+$O$197),0)","v":0},{"$f":"IF(Y197<>0,Y197/($F$197+$O$197),0)","v":0},1,{"$f":"SUM(W198:W217)","v":0},0,{"$f":"SUM(Y198:Y217)","v":0},0]
[null,2.2000000000000002,"Superstructure: Upper Floors",null,null,null,{"$f":"IF(AND(F198<>0,$D$31<>0),F198/$D$31,0)","v":0},"-",null,{"$f":"I198*F198","v":0},null,null,null,0,0,null,0,null,null,0,0,1,0,0,0,0]
[null,null,null,null,null,null,{"$f":"IF(AND(F199<>0,$D$31<>0),F199/$D$31,0)","v":0},"-",null,0,null,null,null,0,0,null,0,null,null,0,0,1,0,0,0,0]
[null,null,null,null,null,null,{"$f":"IF(AND(F200<>0,$D$31<>0),F200/$D$31,0)","v":0},"-",null,0,null,null,null,0,0,null,0,null,null,0,0,1,0,0,0,0]
[null,null,null,null,null,null,0,"-",null,0,null,null,null,0,0,null,0,null,null,0,0,1,0,0,0,0]
[null,null,null,null,null,null,0,"-",null,0,null,null,null,0,0,null,0,null,null,0,0,1,0,0,0,0]
[null,null,null,null,null,null,0,"-",null,0,null,null,null,0,0,null,0,null,null,0,0,1,0,0,0,0]
[null,null,null,null,null,null,0,"-",null,0,null,null,null,0,0,null,0,null,null,0,0,1,0,0,0,0]
[null,null,null,null,null,null,0,"-",null,0,null,null,null,0,0,null,0,null,null,0,0,1,0,0,0,0]
[null,null,null,null,null,null,0,"-",null,0,null,null,null,0,0,null,0,null,null,0,0,1,0,0,0,0]
[null,null,null,null,null,null,0,"-",null,0,null,null,null,0,0,null,0,null,null,0,0,1,0,0,0,0]
[null,null,null,null,null,null,0,"-",null,0,null,null,null,0,0,null,0,null,null,0,0,1,0,0,0,0]
[null,null,null,null,null,null,0,"-",null,0,null,null,null,0,0,null,0,null,null,0,0,1,0,0,0,0]
[null,null,null,null,null,null,0,"-",null,0,null,null,null,0,0,null,0,null,null,0,0,1,0,0,0,0]
[null,null,null,null,null,null,0,"-",null,0,null,null,null,0,0,null,0,null,null,0,0,1,0,0,0,0]
[null,null,null,null,null,null,{"$f":"IF(AND(F212<>0,$D$31<>0),F212/$D$31,0)","v":0},"-",null,0,null,null,null,0,0,null,0,null,null,0,0,1,0,0,0,0]
[null,null,null,null,null,null,{"$f":"IF(AND(F213<>0,$D$31<>0),F213/$D$31,0)","v":0},"-",null,0,null,null,null,0,0,null,0,null,null,0,0,1,0,0,0,0]
[null,null,null,null,null,null,{"$f":"IF(AND(F214<>0,$D$31<>0),F214/$D$31,0)","v":0},"-",null,0,null,null,null,0,0,null,0,null,null,0,0,1,0,0,0,0]
[null,null,null,null,null,null,{"$f":"IF(AND(F215<>0,$D$31<>0),F215/$D$31,0)","v":0},"-",null,0,null,null,null,0,0,null,0,null,null,0,0,1,0,0,0,0]
[null,null,null,null,null,null,0,"-",null,0,null,null,null,0,0,null,0,null,null,0,0,1,0,0,0,0]
[null,null,null,null,null,null,0,"-",null,{"$f":"I217*F217","v":0},null,null,null,0,0,null,0,null,null,0,0,1,0,0,0,0]
[null,2.2999999999999998,"Superstructure: Roof",null,"-",{"$f":"SUM(F219:F238)","v":0},{"$f":"IF(AND(F218<>0,$D$31<>0),F218/$D$31,0)","v":0},{"$f":"SUMPRODUCT((C91:D454=\"Superstructure: Roof\")*G91:G454)","v":0},"-",{"$f":"SUM(J219:J238)","v":0},"-","-","-","-",{"$f":"SUM(O219:O238)","v":0},"-",{"$f":"SUM(Q219:Q238)","v":0},"-","-",{"$f":"IF(W218<>0,W218/($F$218+$O$218),0)","v":0},{"$f":"IF(Y218<>0,Y218/($F$218+$O$218),0)","v":0},1,{"$f":"SUM(W219:W238)","v":0},0,{"$f":"SUM(Y219:Y238)","v":0},0]
[null,2.2999999999999998,"Superstructure: Roof",null,null,null,{"$f":"IF(AND(F219<>0,$D$31<>0),F219/$D$31,0)","v":0},"-",null,{"$f":"I219*F219","v":0},null,null,null,0,0,null,0,null,null,0,0,1,0,0,0,0]
[null,null,null,null,null,null,{"$f":"IF(AND(F220<>0,$D$31<>0),F220/$D$31,0)","v":0},"-",null,0,null,null,null,0,0,null,0,null,null,0,0,1,0,0,0,0]
[null,null,null,null,null,null,{"$f":"IF(AND(F221<>0,$D$31<>0),F221/$D$31,0)","v":0},"-",null,0,null,null,null,{"$f":"IF(M221<>0,INT(60/M221),0)","v":0},{"$f":"N221*I221","v":0},null,{"$f":"P221*M221","v":0},null,null,0,0,{"$f":"1-T221-U221","v":1},{"$f":"T221*(F221+O221)","v":0},{"$f":"IF(AND(W221<>0,$D$31<>0),W221/$D$31,0)","v":0},{"$f":"U221*(F221+O221)","v":0},0]
[null,null,null,null,null,null,0,"-",null,0,null,null,null,0,0,null,0,null,null,0,0,1,0,0,0,0]
[null,null,null,null,null,null,0,"-",null,0,null,null,null,0,0,null,0,null,null,0,0,1,0,0,0,0]
[null,null,null,null,null,null,0,"-",null,0,null,null,null,0,0,null,0,null,null,0,0,1,0,0,0,0]
[null,null,null,null,null,null,0,"-",null,0,null,null,null,0,0,null,0,null,null,0,0,1,0,0,0,0]
[null,null,null,null,null,null,0,"-",null,0,null,null,null,0,0,null,0,null,null,0,0,1,0,0,0,0]
[null,null,null,null,null,null,0,"-",null,0,null,null,null,0,0,null,0,null,null,0,0,1,0,0,0,0]
[null,null,null,null,null,null,0,"-",null,0,null,null,null,0,0,null,0,null,null,0,0,1,0,0,0,0]
[null,null,null,null,null,null,0,"-",null,0,null,null,null,0,0,null,0,null,null,0,0,1,0,0,0,0]
[null,null,null,null,null,null,0,"-",null,0,null,null,null,0,0,null,0,null,null,0,0,1,0,0,0,0]
[null,null,null,null,null,null,0,"-",null,0,null,null,null,0,0,null,0,null,null,0,0,1,0,0,0,0]
[null,null,null,null,null,null,0,"-",null,0,null,null,null,0,0,null,0,null,null,0,0,1,0,0,0,0]
[null,null,null,null,null,null,{"$f":"IF(AND(F233<>0,$D$31<>0),F233/$D$31,0)","v":0},"-",null,0,null,null,null,0,0,null,0,null,null,0,0,1,0,0,0,0]
[null,null,null,null,null,null,{"$f":"IF(AND(F234<>0,$D$31<>0),F234/$D$31,0)","v":0},"-",null,0,null,null,null,0,0,null,0,null,null,0,0,1,0,0,0,0]
[null,null,null,null,null,null,{"$f":"IF(AND(F235<>0,$D$31<>0),F235/$D$31,0)","v":0},"-",null,0,null,null,null,0,0,null,0,null,null,0,0,1,0,0,0,0]
[null,null,null,null,null,null,{"$f":"IF(AND(F236<>0,$D$31<>0),F236/$D$31,0)","v":0},"-",null,0,null,null,null,0,0,null,0,null,null,0,0,1,0,0,0,0]
[null,null,null,null,null,null,0,"-",null,0,null,null,null,0,0,null,0,null,null,0,0,1,0,0,0,0]
[null,null,null,null,null,null,0,"-",null,0,null,null,null,0,0,null,0,null,null,0,0,1,0,0,0,0]
[null,2.4,"Superstructure: Stairs and Ramps",null,"-",{"$f":"SUM(F240:F254)","v":0},{"$f":"IF(AND(F239<>0,$D$31<>0),F239/$D$31,0)","v":0},"-","-",{"$f":"SUM(J240:J254)","v":0},"-","-","-","-",{"$f":"SUM(O240:O254)","v":0},"-",{"$f":"SUM(Q240:Q254)","v":0},"-","-",{"$f":"IF(W239<>0,W239/($F$239+$O$239),0)","v":0},{"$f":"IF(Y239<>0,Y239/($F$239+$O$239),0)","v":0},1,{"$f":"SUM(W240:W254)","v":0},0,{"$f":"SUM(Y240:Y254)","v":0},0]
[null,2.4,"Superstructure: Stairs and Ramps",null,null,null,{"$f":"IF(AND(F240<>0,$D$31<>0),F240/$D$31,0)","v":0},"-",null,{"$f":"I240*F240","v":0},null,null,null,0,0,null,0,null,null,0,0,1,0,0,0,0]
[null,null,null,null,null,null,{"$f":"IF(AND(F241<>0,$D$31<>0),F241/$D$31,0)","v":0},"-",null,0,null,null,null,0,0,null,0,null,null,0,0,1,0,0,0,0]
[null,null,null,null,null,null,{"$f":"IF(AND(F242<>0,$D$31<>0),F242/$D$31,0)","v":0},"-",null,0,null,null,null,0,0,null,0,null,null,0,0,1,0,0,0,0]
[null,null,null,null,null,null,0,"-",null,0,null,null,null,0,0,null,0,null,null,0,0,1,0,0,0,0]
[null,null,null,null,null,null,0,"-",null,0,null,null,null,0,0,null,0,null,null,0,0,1,0,0,0,0]
[null,null,null,null,null,null,0,"-",null,0,null,null,null,0,0,null,0,null,null,0,0,1,0,0,0,0]
[null,null,null,null,null,null,0,"-",null,0,null,null,null,0,0,null,0,null,null,0,0,1,0,0,0,0]
[null,null,null,null,null,null,0,"-",null,0,null,null,null,0,0,null,0,null,null,0,0,1,0,0,0,0]
[null,null,null,null,null,null,0,"-",null,0,null,null,null,0,0,null,0,null,null,0,0,1,0,0,0,0]
[null,null,null,null,null,null,0,"-",null,0,null,null,null,0,0,null,0,null,null,0,0,1,0,0,0,0]
[null,null,null,null,null,null,0,"-",null,0,null,null,null,0,0,null,0,null,null,0,0,1,0,0,0,0]
[null,null,null,null,null,null,0,"-",null,0,null,null,null,0,0,null,0,null,null,0,0,1,0,0,0,0]
[null,null,null,null,null,null,0,"-",null,0,null,null,null,0,0,null,0,null,null,0,0,1,0,0,0,0]
[null,null,null,null,null,null,0,"-",null,0,null,null,null,0,0,null,0,null,null,0,0,1,0,0,0,0]
[null,null,null,null,null,null,{"$f":"IF(AND(F254<>0,$D$31<>0),F254/$D$31,0)","v":0},"-",null,0,null,null,null,0,0,null,0,null,null,0,0,1,0,0,0,0]
[null,2.5,"Superstructure: External Walls",null,"-",{"$f":"SUM(F256:F275)","v":0},{"$f":"IF(AND(F255<>0,$D$31<>0),F255/$D$31,0)","v":0},{"$f":"SUMPRODUCT((C91:D454=\"Superstructure: External Walls\")*G91:G454)+SUMPRODUCT((C91:D454=\"Superstructure: Windows and External Doors\")*G91:G454)","v":0},"-",{"$f":"SUM(J256:J275)","v":0},"-","-","-","-",{"$f":"SUM(O256:O275)","v":0},"-",{"$f":"SUM(Q256:Q275)","v":0},"-","-",{"$f":"IF(W255<>0,W255/($F$255+$O$255),0)","v":0},{"$f":"IF(Y255<>0,Y255/($F$255+$O$255),0)","v":0},1,{"$f":"SUM(W256:W275)","v":0},0,{"$f":"SUM(Y256:Y275)","v":0},0]
[null,2.5,"Superstructure: External Walls",null,null,null,{"$f":"IF(AND(F256<>0,$D$31<>0),F256/$D$31,0)","v":0},"-",null,{"$f":"I256*F256","v":0},null,null,null,0,0,null,0,null,null,0,0,1,0,0,0,0]
[null,null,null,null,null,null,{"$f":"IF(AND(F257<>0,$D$31<>0),F257/$D$31,0)","v":0},"-",null,0,null,null,null,0,0,null,0,null,null,0,0,1,0,0,0,0]
[null,null,null,null,null,null,{"$f":"IF(AND(F258<>0,$D$31<>0),F258/$D$31,0)","v":0},"-",null,0,null,null,null,0,0,null,0,null,null,0,0,1,0,0,0,0]
[null,null,null,null,null,null,0,"-",null,0,null,null,null,0,0,null,0,null,null,0,0,1,0,0,0,0]
[null,null,null,null,null,null,0,"-",null,0,null,null,null,0,0,null,0,null,null,0,0,1,0,0,0,0]
[null,null,null,null,null,null,0,"-",null,0,null,null,null,0,0,null,0,null,null,0,0,1,0,0,0,0]
[null,null,null,null,null,null,0,"-",null,0,null,null,null,0,0,null,0,null,null,0,0,1,0,0,0,0]
[null,null,null,null,null,null,0,"-",null,0,null,null,null,0,0,null,0,null,null,0,0,1,0,0,0,0]
[null,null,null,null,null,null,0,"-",null,0,null,null,null,0,0,null,0,null,null,0,0,1,0,0,0,0]
[null,null,null,null,null,null,0,"-",null,0,null,null,null,0,0,null,0,null,null,0,0,1,0,0,0,0]
[null,null,null,null,null,null,0,"-",null,0,null,null,null,0,0,null,0,null,null,0,0,1,0,0,0,0]
[null,null,null,null,null,null,0,"-",null,0,null,null,null,0,0,null,0,null,null,0,0,1,0,0,0,0]
[null,null,null,null,null,null,0,"-",null,0,null,null,null,0,0,null,0,null,null,0,0,1,0,0,0,0]
[null,null,null,null,null,null,0,"-",null,0,null,null,null,0,0,null,0,null,null,0,0,1,0,0,0,0]
[null,null,null,null,null,null,{"$f":"IF(AND(F270<>0,$D$31<>0),F270/$D$31,0)","v":0},"-",null,0,null,null,null,0,0,null,0,null,null,0,0,1,0,0,0,0]
[null,null,null,null,null,null,{"$f":"IF(AND(F271<>0,$D$31<>0),F271/$D$31,0)","v":0},"-",null,0,null,null,null,0,0,null,0,null,null,0,0,1,0,0,0,0]
[null,null,null,null,null,null,{"$f":"IF(AND(F272<>0,$D$31<>0),F272/$D$31,0)","v":0},"-",null,0,null,null,null,0,0,null,0,null,null,0,0,1,0,0,0,0]
[null,null,null,null,null,null,{"$f":"IF(AND(F273<>0,$D$31<>0),F273/$D$31,0)","v":0},"-",null,0,null,null,null,0,0,null,0,null,null,0,0,1,0,0,0,0]
[null,null,null,null,null,null,0,"-",null,0,null,null,null,0,0,null,0,null,null,0,0,1,0,0,0,0]
[null,null,null,null,null,null,0,"-",null,0,null,null,null,0,0,null,0,null,null,0,0,1,0,0,0,0]
[null,2.6,"Superstructure: Windows and External Doors",null,"-",{"$f":"SUM(F277:F291)","v":0},{"$f":"IF(AND(F276<>0,$D$31<>0),F276/$D$31,0)","v":0},{"$f":"SUMPRODUCT((C91:D454=\"Superstructure: External Walls\")*G91:G454)+SUMPRODUCT((C91:D454=\"Superstructure: Windows and External Doors\")*G91:G454)","v":0},"-",{"$f":"SUM(J277:J291)","v":0},"-","-","-","-",{"$f":"SUM(O277:O291)","v":0},"-",{"$f":"SUM(Q277:Q291)","v":0},"-","-",{"$f":"IF(W276<>0,W276/($F$276+$O$276),0)","v":0},{"$f":"IF(Y276<>0,Y276/($F$276+$O$276),0)","v":0},1,{"$f":"SUM(W277:W291)","v":0},0,{"$f":"SUM(Y277:Y291)","v":0},0]
[null,2.6,"Superstructure: Windows and External Doors",null,null,null,{"$f":"IF(AND(F277<>0,$D$31<>0),F277/$D$31,0)","v":0},"-",null,0,null,null,null,0,0,null,0,null,null,0,0,1,0,0,0,0]
[null,null,null,null,null,null,{"$f":"IF(AND(F278<>0,$D$31<>0),F278/$D$31,0)","v":0},"-",null,0,null,null,null,0,0,null,0,null,null,0,0,1,0,0,0,0]
[null,null,null,null,null,null,{"$f":"IF(AND(F279<>0,$D$31<>0),F279/$D$31,0)","v":0},"-",null,0,null,null,null,0,0,null,0,null,null,0,0,1,0,0,0,0]
[null,null,null,null,null,null,0,"-",null,0,null,null,null,0,0,null,0,null,null,0,0,1,0,0,0,0]
[null,null,null,null,null,null,0,"-",null,0,null,null,null,0,0,null,0,null,null,0,0,1,0,0,0,0]
[null,null,null,null,null,null,0,"-",null,0,null,null,null,0,0,null,0,null,null,0,0,1,0,0,0,0]
[null,null,null,null,null,null,0,"-",null,0,null,null,null,0,0,null,0,null,null,0,0,1,0,0,0,0]
[null,null,null,null,null,null,0,"-",null,0,null,null,null,0,0,null,0,null,null,0,0,1,0,0,0,0]
[null,null,null,null,null,null,0,"-",null,0,null,null,null,{"$f":"IF(M285<>0,INT(60/M285),0)","v":0},{"$f":"N285*I285","v":0},null,{"$f":"P285*M285","v":0},null,null,0,0,{"$f":"1-T285-U285","v":1},{"$f":"T285*(F285+O285)","v":0},{"$f":"IF(AND(W285<>0,$D$31<>0),W285/$D$31,0)","v":0},{"$f":"U285*(F285+O285)","v":0},0]
[null,null,null,null,null,null,0,"-",null,0,null,null,null,0,0,null,0,null,null,0,0,1,0,0,0,0]
[null,null,null,null,null,null,0,"-",null,0,null,null,null,0,0,null,0,null,null,0,0,1,0,0,0,0]
[null,null,null,null,null,null,0,"-",null,0,null,null,null,0,0,null,0,null,null,0,0,1,0,0,0,0]
[null,null,null,null,null,null,0,"-",null,0,null,null,null,0,0,null,0,null,null,0,0,1,0,0,0,0]
[null,null,null,null,null,null,0,"-",null,0,null,null,null,0,0,null,0,null,null,0,0,1,0,0,0,0]
[null,null,null,null,null,null,{"$f":"IF(AND(F291<>0,$D$31<>0),F291/$D$31,0)","v":0},"-",null,0,null,null,null,0,0,null,0,null,null,0,0,1,0,0,0,0]
[null,2.7,"Superstructure: Internal Walls and Partitions",null,"-",{"$f":"SUM(F293:F312)","v":0},{"$f":"IF(AND(F292<>0,$D$31<>0),F292/$D$31,0)","v":0},{"$f":"SUMPRODUCT((C91:D454=\"Superstructure: Internal Doors\")*G91:G454)+SUMPRODUCT((C91:D454=\"Superstructure: Internal Walls and Partitions\")*G91:G454)","v":0},"-",{"$f":"SUM(J293:J312)","v":0},"-","-","-","-",{"$f":"SUM(O293:O312)","v":0},"-",{"$f":"SUM(Q293:Q312)","v":0},"-","-",{"$f":"IF(W292<>0,W292/($F$292+$O$292),0)","v":0},{"$f":"IF(Y292<>0,Y292/($F$292+$O$292),0)","v":0},1,{"$f":"SUM(W293:W312)","v":0},0,{"$f":"SUM(Y293:Y312)","v":0},0]
[null,2.7,"Superstructure: Internal Walls and Partitions",null,null,null,{"$f":"IF(AND(F293<>0,$D$31<>0),F293/$D$31,0)","v":0},"-",null,0,null,null,null,0,0,null,0,null,null,0,0,1,0,0,0,0]
[null,null,null,null,null,null,{"$f":"IF(AND(F294<>0,$D$31<>0),F294/$D$31,0)","v":0},"-",null,0,null,null,null,0,0,null,0,null,null,0,0,1,0,0,0,0]
[null,null,null,null,null,null,{"$f":"IF(AND(F295<>0,$D$31<>0),F295/$D$31,0)","v":0},"-",null,0,null,null,null,0,0,null,0,null,null,0,0,1,0,0,0,0]
[null,null,null,null,null,null,0,"-",null,0,null,null,null,0,0,null,0,null,null,0,0,1,0,0,0,0]
[null,null,null,null,null,null,0,"-",null,0,null,null,null,0,0,null,0,null,null,0,0,1,0,0,0,0]
[null,null,null,null,null,null,0,"-",null,0,null,null,null,0,0,null,0,null,null,0,0,1,0,0,0,0]
[null,null,null,null,null,null,0,"-",null,0,null,null,null,0,0,null,0,null,null,0,0,1,0,0,0,0]
[null,null,null,null,null,null,0,"-",null,0,null,null,null,0,0,null,0,null,null,0,0,1,0,0,0,0]
[null,null,null,null,null,null,0,"-",null,0,null,null,null,0,0,null,0,null,null,0,0,1,0,0,0,0]
[null,null,null,null,null,null,0,"-",null,0,null,null,null,0,0,null,0,null,null,0,0,1,0,0,0,0]
[null,null,null,null,null,null,0,"-",null,0,null,null,null,0,0,null,0,null,null,0,0,1,0,0,0,0]
[null,null,null,null,null,null,0,"-",null,0,null,null,null,0,0,null,0,null,null,0,0,1,0,0,0,0]
[null,null,null,null,null,null,0,"-",null,0,null,null,null,0,0,null,0,null,null,0,0,1,0,0,0,0]
[null,null,null,null,null,null,0,"-",null,0,null,null,null,0,0,null,0,null,null,0,0,1,0,0,0,0]
[null,null,null,null,null,null,{"$f":"IF(AND(F307<>0,$D$31<>0),F307/$D$31,0)","v":0},"-",null,0,null,null,null,0,0,null,0,null,null,0,0,1,0,0,0,0]
[null,null,null,null,null,null,{"$f":"IF(AND(F308<>0,$D$31<>0),F308/$D$31,0)","v":0},"-",null,0,null,null,null,0,0,null,0,null,null,0,0,1,0,0,0,0]
[null,null,null,null,null,null,{"$f":"IF(AND(F309<>0,$D$31<>0),F309/$D$31,0)","v":0},"-",null,0,null,null,null,0,0,null,0,null,null,0,0,1,0,0,0,0]
[null,null,null,null,null,null,{"$f":"IF(AND(F310<>0,$D$31<>0),F310/$D$31,0)","v":0},"-",null,0,null,null,null,0,0,null,0,null,null,0,0,1,0,0,0,0]
[null,null,null,null,null,null,0,"-",null,0,null,null,null,0,0,null,0,null,null,0,0,1,0,0,0,0]
[null,null,null,null,null,null,0,"-",null,0,null,null,null,0,0,null,0,null,null,0,0,1,0,0,0,0]
[null,2.8,"Superstructure: Internal Doors",null,"-",{"$f":"SUM(F314:F328)","v":0},{"$f":"IF(AND(F313<>0,$D$31<>0),F313/$D$31,0)","v":0},{"$f":"SUMPRODUCT((C91:D454=\"Superstructure: Internal Doors\")*G91:G454)+SUMPRODUCT((C91:D454=\"Superstructure: Internal Walls and Partitions\")*G91:G454)","v":0},"-",{"$f":"SUM(J314:J328)","v":0},"-","-","-","-",{"$f":"SUM(O314:O328)","v":0},"-",{"$f":"SUM(Q314:Q328)","v":0},"-","-",{"$f":"IF(W313<>0,W313/($F$313+$O$313),0)","v":0},{"$f":"IF(Y313<>0,Y313/($F$313+$O$313),0)","v":0},1,{"$f":"SUM(W314:W328)","v":0},0,{"$f":"SUM(Y314:Y328)","v":0},0]
[null,2.8,"Superstructure: Internal Doors",null,null,null,{"$f":"IF(AND(F314<>0,$D$31<>0),F314/$D$31,0)","v":0},"-",null,0,null,null,null,0,0,null,0,null,null,0,0,1,0,0,0,0]
[null,null,null,null,null,null,{"$f":"IF(AND(F315<>0,$D$31<>0),F315/$D$31,0)","v":0},"-",null,0,null,null,null,0,0,null,0,null,null,0,0,1,0,0,0,0]
[null,null,null,null,null,null,{"$f":"IF(AND(F316<>0,$D$31<>0),F316/$D$31,0)","v":0},"-",null,0,null,null,null,0,0,null,0,null,null,0,0,1,0,0,0,0]
[null,null,null,null,null,null,0,"-",null,0,null,null,null,0,0,null,0,null,null,0,0,1,0,0,0,0]
[null,null,null,null,null,null,0,"-",null,0,null,null,null,0,0,null,0,null,null,0,0,1,0,0,0,0]
[null,null,null,null,null,null,0,"-",null,0,null,null,null,0,0,null,0,null,null,0,0,1,0,0,0,0]
[null,null,null,null,null,null,0,"-",null,{"$f":"I320*F320","v":0},null,null,null,0,0,null,0,null,null,0,0,1,0,0,0,0]
[null,null,null,null,null,null,0,"-",null,0,null,null,null,0,0,null,0,null,null,0,0,1,0,0,0,0]
[null,null,null,null,null,null,0,"-",null,0,null,null,null,0,0,null,0,null,null,0,0,1,0,0,0,0]
[null,null,null,null,null,null,0,"-",null,0,null,null,null,0,0,null,0,null,null,0,0,1,0,0,0,0]
[null,null,null,null,null,null,0,"-",null,0,null,null,null,0,0,null,0,null,null,0,0,1,0,0,0,0]
[null,null,null,null,null,null,0,"-",null,0,null,null,null,0,0,null,0,null,null,0,0,1,0,0,0,0]
[null,null,null,null,null,null,0,"-",null,0,null,null,null,0,0,null,0,null,null,0,0,1,0,0,0,0]
[null,null,null,null,null,null,0,"-",null,0,null,null,null,0,0,null,0,null,null,0,0,1,0,0,0,0]
[null,null,null,null,null,null,{"$f":"IF(AND(F328<>0,$D$31<>0),F328/$D$31,0)","v":0},"-",null,0,null,null,null,0,0,null,0,null,null,0,0,1,0,0,0,0]
[null,3,"Finishes",null,"-",{"$f":"SUM(F330:F349)","v":0},{"$f":"IF(AND(F329<>0,$D$31<>0),F329/$D$31,0)","v":0},"-","-",{"$f":"SUM(J330:J349)","v":0},"-","-","-","-",{"$f":"SUM(O330:O349)","v":0},"-",{"$f":"SUM(Q330:Q349)","v":0},"-","-",{"$f":"IF(W329<>0,W329/($F$329+$O$329),0)","v":0},{"$f":"IF(Y329<>0,Y329/($F$329+$O$329),0)","v":0},1,{"$f":"SUM(W330:W349)","v":0},0,{"$f":"SUM(Y330:Y349)","v":0},0]
[null,3,"Finishes",null,null,null,{"$f":"IF(AND(F330<>0,$D$31<>0),F330/$D$31,0)","v":0},"-",null,0,null,null,null,0,0,null,0,null,null,0,0,1,0,0,0,0]
[null,null,null,null,null,null,{"$f":"IF(AND(F331<>0,$D$31<>0),F331/$D$31,0)","v":0},"-",null,0,null,null,null,0,0,null,0,null,null,0,0,1,0,0,0,0]
[null,null,null,null,null,null,{"$f":"IF(AND(F332<>0,$D$31<>0),F332/$D$31,0)","v":0},"-",null,0,null,null,null,0,0,null,0,null,null,0,0,1,0,0,0,0]
[null,null,null,null,null,null,0,"-",null,0,null,null,null,0,0,null,0,null,null,0,0,1,0,0,0,0]
[null,null,null,null,null,null,0,"-",null,0,null,null,null,0,0,null,0,null,null,0,0,1,0,0,0,0]
[null,null,null,null,null,null,0,"-",null,0,null,null,null,0,0,null,0,null,null,0,0,1,0,0,0,0]
[null,null,null,null,null,null,0,"-",null,0,null,null,null,0,0,null,0,null,null,0,0,1,0,0,0,0]
[null,null,null,null,null,null,0,"-",null,0,null,null,null,0,0,null,0,null,null,0,0,1,0,0,0,0]
[null,null,null,null,null,null,0,"-",null,0,null,null,null,0,0,null,0,null,null,0,0,1,0,0,0,0]
[null,null,null,null,null,null,0,"-",null,0,null,null,null,0,0,null,0,null,null,0,0,1,0,0,0,0]
[null,null,null,null,null,null,0,"-",null,0,null,null,null,0,0,null,0,null,null,0,0,1,0,0,0,0]
[null,null,null,null,null,null,0,"-",null,0,null,null,null,0,0,null,0,null,null,0,0,1,0,0,0,0]
[null,null,null,null,null,null,0,"-",null,0,null,null,null,0,0,null,0,null,null,0,0,1,0,0,0,0]
[null,null,null,null,null,null,0,"-",null,0,null,null,null,0,0,null,0,null,null,0,0,1,0,0,0,0]
[null,null,null,null,null,null,{"$f":"IF(AND(F344<>0,$D$31<>0),F344/$D$31,0)","v":0},"-",null,0,null,null,null,0,0,null,0,null,null,0,0,1,0,0,0,0]
[null,null,null,null,null,null,{"$f":"IF(AND(F345<>0,$D$31<>0),F345/$D$31,0)","v":0},"-",null,0,null,null,null,0,0,null,0,null,null,0,0,1,0,0,0,0]
[null,null,null,null,null,null,{"$f":"IF(AND(F346<>0,$D$31<>0),F346/$D$31,0)","v":0},"-",null,0,null,null,null,0,0,null,0,null,null,0,0,1,0,0,0,0]
[null,null,null,null,null,null,{"$f":"IF(AND(F347<>0,$D$31<>0),F347/$D$31,0)","v":0},"-",null,0,null,null,null,0,0,null,0,null,null,0,0,1,0,0,0,0]
[null,null,null,null,null,null,0,"-",null,0,null,null,null,0,0,null,0,null,null,0,0,1,0,0,0,0]
[null,null,null,null,null,null,0,"-",null,0,null,null,null,{"$f":"IF(M349<>0,INT(60/M349),0)","v":0},{"$f":"N349*I349","v":0},null,{"$f":"P349*M349","v":0},null,null,0,0,{"$f":"1-T349-U349","v":1},{"$f":"T349*(F349+O349)","v":0},{"$f":"IF(AND(W349<>0,$D$31<>0),W349/$D$31,0)","v":0},{"$f":"U349*(F349+O349)","v":0},0]
[null,4,"Fittings, furnishings & equipment (FFE)",null,"-",{"$f":"SUM(F351:F370)","v":0},{"$f":"IF(AND(F350<>0,$D$31<>0),F350/$D$31,0)","v":0},"-","-",{"$f":"SUM(J351:J370)","v":0},"-","-","-","-",{"$f":"SUM(O351:O370)","v":0},"-",{"$f":"SUM(Q351:Q370)","v":0},"-","-",{"$f":"IF(W350<>0,W350/($F$350+$O$350),0)","v":0},{"$f":"IF(Y350<>0,Y350/($F$350+$O$350),0)","v":0},1,{"$f":"SUM(W351:W370)","v":0},0,{"$f":"SUM(Y351:Y370)","v":0},0]
[null,4,"Fittings, furnishings & equipment (FFE)",null,null,null,{"$f":"IF(AND(F351<>0,$D$31<>0),F351/$D$31,0)","v":0},"-",null,0,null,null,null,0,0,null,0,null,null,0,0,1,0,0,0,0]
[null,null,null,null,null,null,{"$f":"IF(AND(F352<>0,$D$31<>0),F352/$D$31,0)","v":0},"-",null,0,null,null,null,0,0,null,0,null,null,0,0,1,0,0,0,0]
[null,null,null,null,null,null,{"$f":"IF(AND(F353<>0,$D$31<>0),F353/$D$31,0)","v":0},"-",null,0,null,null,null,0,0,null,0,null,null,0,0,1,0,0,0,0]
[null,null,null,null,null,null,0,"-",null,0,null,null,null,0,0,null,0,null,null,0,0,1,0,0,0,0]
[null,null,null,null,null,null,0,"-",null,0,null,null,null,0,0,null,0,null,null,0,0,1,0,0,0,0]
[null,null,null,null,null,null,0,"-",null,0,null,null,null,0,0,null,0,null,null,0,0,1,0,0,0,0]
[null,null,null,null,null,null,0,"-",null,0,null,null,null,0,0,null,0,null,null,0,0,1,0,0,0,0]
[null,null,null,null,null,null,0,"-",null,0,null,null,null,0,0,null,0,null,null,0,0,1,0,0,0,0]
[null,null,null,null,null,null,0,"-",null,0,null,null,null,0,0,null,0,null,null,0,0,1,0,0,0,0]
[null,null,null,null,null,null,0,"-",null,0,null,null,null,0,0,null,0,null,null,0,0,1,0,0,0,0]
[null,null,null,null,null,null,0,"-",null,0,null,null,null,0,0,null,0,null,null,0,0,1,0,0,0,0]
[null,null,null,null,null,null,0,"-",null,0,null,null,null,0,0,null,0,null,null,0,0,1,0,0,0,0]
[null,null,null,null,null,null,0,"-",null,0,null,null,null,0,0,null,0,null,null,0,0,1,0,0,0,0]
[null,null,null,null,null,null,0,"-",null,0,null,null,null,0,0,null,0,null,null,0,0,1,0,0,0,0]
[null,null,null,null,null,null,{"$f":"IF(AND(F365<>0,$D$31<>0),F365/$D$31,0)","v":0},"-",null,0,null,null,null,0,0,null,0,null,null,0,0,1,0,0,0,0]
[null,null,null,null,null,null,{"$f":"IF(AND(F366<>0,$D$31<>0),F366/$D$31,0)","v":0},"-",null,0,null,null,null,0,0,null,0,null,null,0,0,1,0,0,0,0]
[null,null,null,null,null,null,{"$f":"IF(AND(F367<>0,$D$31<>0),F367/$D$31,0)","v":0},"-",null,0,null,null,null,0,0,null,0,null,null,0,0,1,0,0,0,0]
[null,null,null,null,null,null,{"$f":"IF(AND(F368<>0,$D$31<>0),F368/$D$31,0)","v":0},"-",null,0,null,null,null,0,0,null,0,null,null,0,0,1,0,0,0,0]
[null,null,null,null,null,null,0,"-",null,0,null,null,null,0,0,null,0,null,null,0,0,1,0,0,0,0]
[null,null,null,null,null,null,0,"-",null,0,null,null,null,0,0,null,0,null,null,0,0,1,0,0,0,0]
[null,5,"Services (MEP)",null,"-",{"$f":"SUM(F372:F391)","v":0},{"$f":"IF(AND(F371<>0,$D$31<>0),F371/$D$31,0)","v":0},"-","-",{"$f":"SUM(J372:J391)","v":0},"-","-","-","-",{"$f":"SUM(O372:O391)","v":0},"-",{"$f":"SUM(Q372:Q391)","v":0},"-","-",{"$f":"IF(W371<>0,W371/($F$371+$O$371),0)","v":0},{"$f":"IF(Y371<>0,Y371/($F$371+$O$371),0)","v":0},1,{"$f":"SUM(W372:W391)","v":0},0,{"$f":"SUM(Y372:Y391)","v":0},0]
[null,5,"Services (MEP)",null,null,null,{"$f":"IF(AND(F372<>0,$D$31<>0),F372/$D$31,0)","v":0},"-",null,0,null,null,null,0,0,null,0,null,null,0,0,1,0,0,0,0]
[null,null,null,null,null,null,{"$f":"IF(AND(F373<>0,$D$31<>0),F373/$D$31,0)","v":0},"-",null,0,null,null,null,0,0,null,0,null,null,0,0,1,0,0,0,0]
[null,null,null,null,null,null,{"$f":"IF(AND(F374<>0,$D$31<>0),F374/$D$31,0)","v":0},"-",null,0,null,null,null,0,0,null,0,null,null,0,0,1,0,0,0,0]
[null,null,null,null,null,null,0,"-",null,0,null,null,null,0,0,null,0,null,null,0,0,1,0,0,0,0]
[null,null,null,null,null,null,0,"-",null,0,null,null,null,0,0,null,0,null,null,0,0,1,0,0,0,0]
[null,null,null,null,null,null,0,"-",null,0,null,null,null,0,0,null,0,null,null,0,0,1,0,0,0,0]
[null,null,null,null,null,null,0,"-",null,0,null,null,null,0,0,null,0,null,null,0,0,1,0,0,0,0]
[null,null,null,null,null,null,0,"-",null,0,null,null,null,0,0,null,0,null,null,0,0,1,0,0,0,0]
[null,null,null,null,null,null,0,"-",null,0,null,null,null,0,0,null,0,null,null,0,0,1,0,0,0,0]
[null,null,null,null,null,null,0,"-",null,0,null,null,null,0,0,null,0,null,null,0,0,1,0,0,0,0]
[null,null,null,null,null,null,0,"-",null,0,null,null,null,0,0,null,0,null,null,0,0,1,0,0,0,0]
[null,null,null,null,null,null,0,"-",null,0,null,null,null,0,0,null,0,null,null,0,0,1,0,0,0,0]
[null,null,null,null,null,null,0,"-",null,{"$f":"I384*F384","v":0},null,null,null,0,0,null,0,null,null,0,0,1,0,0,0,0]
[null,null,null,null,null,null,0,"-",null,0,null,null,null,0,0,null,0,null,null,0,0,1,0,0,0,0]
[null,null,null,null,null,null,{"$f":"IF(AND(F386<>0,$D$31<>0),F386/$D$31,0)","v":0},"-",null,0,null,null,null,0,0,null,0,null,null,0,0,1,0,0,0,0]
[null,null,null,null,null,null,{"$f":"IF(AND(F387<>0,$D$31<>0),F387/$D$31,0)","v":0},"-",null,0,null,null,null,0,0,null,0,null,null,0,0,1,0,0,0,0]
[null,null,null,null,null,null,{"$f":"IF(AND(F388<>0,$D$31<>0),F388/$D$31,0)","v":0},"-",null,0,null,null,null,0,0,null,0,null,null,0,0,1,0,0,0,0]
[null,null,null,null,null,null,{"$f":"IF(AND(F389<>0,$D$31<>0),F389/$D$31,0)","v":0},"-",null,0,null,null,null,0,0,null,0,null,null,0,0,1,0,0,0,0]
[null,null,null,null,null,null,0,"-",null,0,null,null,null,0,0,null,0,null,null,0,0,1,0,0,0,0]
[null,null,null,null,null,null,0,"-",null,0,null,null,null,0,0,null,0,null,null,0,0,1,0,0,0,0]
[null,6,"Prefabricated Buildings and Building Units",null,"-",{"$f":"SUM(F393:F412)","v":0},{"$f":"IF(AND(F392<>0,$D$31<>0),F392/$D$31,0)","v":0},"-","-",{"$f":"SUM(J393:J412)","v":0},"-","-","-","-",{"$f":"SUM(O393:O412)","v":0},"-",{"$f":"SUM(Q393:Q412)","v":0},"-","-",{"$f":"IF(W392<>0,W392/($F$392+$O$392),0)","v":0},{"$f":"IF(Y392<>0,Y392/($F$392+$O$392),0)","v":0},1,{"$f":"SUM(W393:W412)","v":0},0,{"$f":"SUM(Y393:Y412)","v":0},0]
[null,6,"Prefabricated Buildings and Building Units",null,null,null,{"$f":"IF(AND(F393<>0,$D$31<>0),F393/$D$31,0)","v":0},"-",null,0,null,null,null,0,0,null,0,null,null,0,0,1,0,0,0,0]
[null,null,null,null,null,null,{"$f":"IF(AND(F394<>0,$D$31<>0),F394/$D$31,0)","v":0},"-",null,0,null,null,null,0,0,null,0,null,null,0,0,1,0,0,0,0]
[null,null,null,null,null,null,{"$f":"IF(AND(F395<>0,$D$31<>0),F395/$D$31,0)","v":0},"-",null,0,null,null,null,0,0,null,0,null,null,0,0,1,0,0,0,0]
[null,null,null,null,null,null,0,"-",null,0,null,null,null,0,0,null,0,null,null,0,0,1,0,0,0,0]
[null,null,null,null,null,null,0,"-",null,0,null,null,null,0,0,null,0,null,null,0,0,1,0,0,0,0]
[null,null,null,null,null,null,0,"-",null,0,null,null,null,0,0,null,0,null,null,0,0,1,0,0,0,0]
[null,null,null,null,null,null,0,"-",null,0,null,null,null,0,0,null,0,null,null,0,0,1,0,0,0,0]
[null,null,null,null,null,null,0,"-",null,0,null,null,null,0,0,null,0,null,null,0,0,1,0,0,0,0]
[null,null,null,null,null,null,0,"-",null,0,null,null,null,0,0,null,0,null,null,0,0,1,0,0,0,0]
[null,null,null,null,null,null,0,"-",null,0,null,null,null,0,0,null,0,null,null,0,0,1,0,0,0,0]
[null,null,null,null,null,null,0,"-",null,0,null,null,null,0,0,null,0,null,null,0,0,1,0,0,0,0]
[null,null,null,null,null,null,0,"-",null,0,null,null,null,0,0,null,0,null,null,0,0,1,0,0,0,0]
[null,null,null,null,null,null,0,"-",null,0,null,null,null,0,0,null,0,null,null,0,0,1,0,0,0,0]
[null,null,null,null,null,null,0,"-",null,0,null,null,null,0,0,null,0,null,null,0,0,1,0,0,0,0]
[null,null,null,null,null,null,{"$f":"IF(AND(F407<>0,$D$31<>0),F407/$D$31,0)","v":0},"-",null,0,null,null,null,0,0,null,0,null,null,0,0,1,0,0,0,0]
[null,null,null,null,null,null,{"$f":"IF(AND(F408<>0,$D$31<>0),F408/$D$31,0)","v":0},"-",null,0,null,null,null,0,0,null,0,null,null,0,0,1,0,0,0,0]
[null,null,null,null,null,null,{"$f":"IF(AND(F409<>0,$D$31<>0),F409/$D$31,0)","v":0},"-",null,0,null,null,null,0,0,null,0,null,null,0,0,1,0,0,0,0]
[null,null,null,null,null,null,{"$f":"IF(AND(F410<>0,$D$31<>0),F410/$D$31,0)","v":0},"-",null,0,null,null,null,0,0,null,0,null,null,0,0,1,0,0,0,0]
[null,null,null,null,null,null,0,"-",null,0,null,null,null,0,0,null,0,null,null,0,0,1,0,0,0,0]
[null,null,null,null,null,null,0,"-",null,0,null,null,null,0,0,null,0,null,null,0,0,1,0,0,0,0]
[null,7,"Work to Existing Building",null,"-",{"$f":"SUM(F414:F433)","v":0},{"$f":"IF(AND(F413<>0,$D$31<>0),F413/$D$31,0)","v":0},"-","-",{"$f":"SUM(J414:J433)","v":0},"-","-","-","-",{"$f":"SUM(O414:O433)","v":0},"-",{"$f":"SUM(Q414:Q433)","v":0},"-","-",{"$f":"IF(W413<>0,W413/($F$413+$O$413),0)","v":0},{"$f":"IF(Y413<>0,Y413/($F$413+$O$413),0)","v":0},{"$f":"1-T413-U413","v":1},{"$f":"SUM(W414:W433)","v":0},{"$f":"IF(AND(W413<>0,$D$31<>0),W413/$D$31,0)","v":0},{"$f":"SUM(Y414:Y433)","v":0},0]
[null,7,"Work to Existing Building",null,null,null,{"$f":"IF(AND(F414<>0,$D$31<>0),F414/$D$31,0)","v":0},"-",null,0,null,null,null,{"$f":"IF(M414<>0,INT(60/M414),0)","v":0},{"$f":"N414*I414","v":0},null,{"$f":"P414*M414","v":0},null,null,0,0,1,{"$f":"T414*(F414+O414)","v":0},0,{"$f":"U414*(F414+O414)","v":0},0]
[null,null,null,null,null,null,{"$f":"IF(AND(F415<>0,$D$31<>0),F415/$D$31,0)","v":0},"-",null,0,null,null,null,0,0,null,0,null,null,0,0,1,0,0,0,0]
[null,null,null,null,null,null,{"$f":"IF(AND(F416<>0,$D$31<>0),F416/$D$31,0)","v":0},"-",null,0,null,null,null,0,0,null,0,null,null,0,0,1,0,0,0,0]
[null,null,null,null,null,null,0,"-",null,0,null,null,null,0,0,null,0,null,null,0,0,1,0,0,0,0]
[null,null,null,null,null,null,0,"-",null,0,null,null,null,0,0,null,0,null,null,0,0,1,0,0,0,0]
[null,null,null,null,null,null,0,"-",null,0,null,null,null,0,0,null,0,null,null,0,0,1,0,0,0,0]
[null,null,null,null,null,null,0,"-",null,0,null,null,null,0,0,null,0,null,null,0,0,1,0,0,0,0]
[null,null,null,null,null,null,0,"-",null,0,null,null,null,0,0,null,0,null,null,0,0,1,0,0,0,0]
[null,null,null,null,null,null,0,"-",null,0,null,null,null,{"$f":"IF(M422<>0,INT(60/M422),0)","v":0},0,null,0,null,null,0,0,1,0,0,0,0]
[null,null,null,null,null,null,0,"-",null,0,null,null,null,0,0,null,0,null,null,0,0,1,0,0,0,0]
[null,null,null,null,null,null,0,"-",null,0,null,null,null,0,0,null,0,null,null,0,0,1,0,0,0,0]
[null,null,null,null,null,null,0,"-",null,0,null,null,null,0,0,null,0,null,null,0,0,1,0,0,0,0]
[null,null,null,null,null,null,0,"-",null,0,null,null,null,0,0,null,0,null,null,0,0,1,0,0,0,0]
[null,null,null,null,null,null,0,"-",null,0,null,null,null,0,0,null,0,null,null,0,0,1,0,0,0,0]
[null,null,null,null,null,null,{"$f":"IF(AND(F428<>0,$D$31<>0),F428/$D$31,0)","v":0},"-",null,0,null,null,null,0,0,null,0,null,null,0,0,1,0,0,0,0]
[null,null,null,null,null,null,{"$f":"IF(AND(F429<>0,$D$31<>0),F429/$D$31,0)","v":0},"-",null,0,null,null,null,0,0,null,0,null,null,0,0,1,0,0,0,0]
[null,null,null,null,null,null,{"$f":"IF(AND(F430<>0,$D$31<>0),F430/$D$31,0)","v":0},"-",null,0,null,null,null,0,0,null,0,null,null,0,0,1,0,0,0,0]
[null,null,null,null,null,null,{"$f":"IF(AND(F431<>0,$D$31<>0),F431/$D$31,0)","v":0},"-",null,0,null,null,null,0,0,null,0,null,null,0,0,1,0,0,0,0]
[null,null,null,null,null,null,0,"-",null,0,null,null,null,0,0,null,0,null,null,0,0,1,0,0,0,0]
[null,null,null,null,null,null,0,"-",null,0,null,null,null,0,0,null,0,null,null,0,0,1,0,0,0,0]
[null,8,"External works",null,"-",{"$f":"SUM(F435:F454)","v":0},{"$f":"IF(AND(F434<>0,$D$31<>0),F434/$D$31,0)","v":0},"-","-",{"$f":"SUM(J435:J454)","v":0},"-","-","-","-",{"$f":"SUM(O435:O454)","v":0},"-",{"$f":"SUM(Q435:Q454)","v":0},"-","-",{"$f":"IF(W434<>0,W434/($F$434+$O$434),0)","v":0},{"$f":"IF(Y434<>0,Y434/($F$434+$O$434),0)","v":0},1,{"$f":"SUM(W435:W454)","v":0},0,{"$f":"SUM(Y435:Y454)","v":0},0]
[null,8,"External works",null,null,null,null,"-",null,0,null,null,null,0,0,null,0,null,null,0,0,1,0,0,0,0]
[null,null,null,null,null,null,{"$f":"IF(AND(F436<>0,$D$31<>0),F436/$D$31,0)","v":0},"-",null,0,null,null,null,0,0,null,0,null,null,0,0,1,0,0,0,0]
[null,null,null,null,null,null,{"$f":"IF(AND(F437<>0,$D$31<>0),F437/$D$31,0)","v":0},"-",null,0,null,null,null,0,0,null,0,null,null,0,0,1,0,0,0,0]
[null,null,null,null,null,null,{"$f":"IF(AND(F438<>0,$D$31<>0),F438/$D$31,0)","v":0},"-",null,0,null,null,null,0,0,null,0,null,null,0,0,1,0,0,0,0]
[null,null,null,null,null,null,0,"-",null,0,null,null,null,0,0,null,0,null,null,0,0,1,0,0,0,0]
[null,null,null,null,null,null,0,"-",null,0,null,null,null,0,0,null,0,null,null,0,0,1,0,0,0,0]
[null,null,null,null,null,null,0,"-",null,0,null,null,null,0,0,null,0,null,null,0,0,1,0,0,0,0]
[null,null,null,null,null,null,0,"-",null,0,null,null,null,0,0,null,0,null,null,0,0,1,0,0,0,0]
[null,null,null,null,null,null,0,"-",null,0,null,null,null,0,0,null,0,null,null,0,0,1,0,0,0,0]
[null,null,null,null,null,null,0,"-",null,0,null,null,null,0,0,null,0,null,null,0,0,1,0,0,0,0]
[null,null,null,null,null,null,0,"-",null,0,null,null,null,0,0,null,0,null,null,0,0,1,0,0,0,0]
[null,null,null,null,null,null,0,"-",null,0,null,null,null,0,0,null,0,null,null,0,0,1,0,0,0,0]
[null,null,null,null,null,null,0,"-",null,0,null,null,null,0,0,null,0,null,null,0,0,1,0,0,0,0]
[null,null,null,null,null,null,0,"-",null,{"$f":"I448*F448","v":0},null,null,null,0,0,null,0,null,null,0,0,1,0,0,0,0]
[null,null,null,null,null,null,0,"-",null,0,null,null,null,0,0,null,0,null,null,0,0,1,0,0,0,0]
[null,null,null,null,null,null,{"$f":"IF(AND(F450<>0,$D$31<>0),F450/$D$31,0)","v":0},"-",null,0,null,null,null,0,0,null,0,null,null,0,0,1,0,0,0,0]
[null,null,null,null,null,null,0,"-",null,0,null,null,null,0,0,null,0,null,null,0,0,1,0,0,0,0]
[null,null,null,null,null,null,0,"-",null,0,null,null,null,0,0,null,0,null,null,0,0,1,0,0,0,0]
[null,null,null,null,null,null,0,"-",null,{"$f":"I453*F453","v":0},null,null,null,{"$f":"IF(M453<>0,INT(60/M453),0)","v":0},0,null,0,null,null,0,0,1,0,0,0,0]
[null,null,null,null,null,null,0,"-",null,{"$f":"I454*F454","v":0},null,null,null,{"$f":"IF(M454<>0,INT(60/M454),0)","v":0},{"$f":"N454*I454","v":0},null,{"$f":"P454*M454","v":0},null,null,0,0,1,{"$f":"T454*(F454+O454)","v":0},0,0,{"$f":"IF(AND(Y454<>0,$D$31<>0),Y454/$D$31,0)","v":0}]
[null,null,"Overall",null,null,{"$f":"SUM(F91,F107,F123,F139,F155,F176,F197,F218,F239,F255,F276,F292,F313,F329,F350,F371,F392,F413,F434)","v":0},0,null,null,{"$f":"SUM(J91,J107,J123,J139,J155,J176,J197,J218,J239,J255,J276,J292,J313,J329,J350,J371,J392,J413,J434)","v":0},null,null,null,null,{"$f":"SUM(O91,O107,O123,O139,O155,O176,O197,O218,O239,O255,O276,O292,O313,O329,O350,O371,O392,O413,O434)","v":0},null,{"$f":"SUM(Q91:Q454)","v":0},null,null,{"$f":"IF(AND($F$455<>0,$O$455<>0),SUM(W91,W107,W123,W139,W155,W176,W197,W218,W239,W255,W276,W292,W313,W329,W350,W371,W392,W413,W434)/($F$455+$O$455),0)","v":0},{"$f":"IF(AND($F$455<>0,$O$455<>0),SUM(Y91,Y107,Y123,Y139,Y155,Y176,Y197,Y218,Y239,Y255,Y276,Y292,Y313,Y329,Y350,Y371,Y392,Y413,Y434)/($F$455+$O$455),0)","v":0},{"$f":"1-T455-U455","v":1},{"$f":"SUM(W91:W454)","v":0},{"$f":"SUM(X91:X454)","v":0},{"$f":"SUM(Y91:Y454)","v":0},{"$f":"SUM(Z91:Z454)","v":0}]
[]
[]
[]
[]
[null,"Recycling and Waste Reporting table"]
[null,"The light green-coloured cells should be completed to achieve 'pioneering' status."]
[null,null,null,null,"TOTAL ESTIMATES OF WASTE",null,null,"WASTE MANAGEMENT ROUTES",null,null,null,null,null,"SUMMARY"]
[null,null,null,null,"Overall Waste \n(tonnes)","Overall Waste\n(tonnes/m2 GIA)","Performance Indicator (LPG Appendix 1)","REUSE ",null,"RECYCLE",null,"OTHER DISPOSAL",null,"Total Reuse (%)","Total Recycle (%)","Total Reuse and Recycle (%)","Total Waste Reported (%)"]
[null,null,"Type of Waste","Source of Information",null,null,null,"Reuse Onsite (%)","Reuse Offsite (%)","Recycle Onsite(%)","Recycle Offsite (%)","To Landfill (%)","To Other Management (%)"]
[null,null,null,null,"PRODUCT AND CONSTRUCTION STAGE (MODULE A)"]
[null,1,"Demolition Waste",null,null,{"$f":"IF($D$31>0,IF(E466>0,E466/$D$31,0),0)","v":0},{"$f":"F466","v":0},null,null,null,null,null,null,{"$f":"SUM(H466:I466)","v":0},{"$f":"SUM(J466:K466)","v":0},{"$f":"SUM(N466:O466)","v":0},{"$f":"SUM(H466:M466)","v":0}]
[null,2.1,"Excavation Waste",null,null,{"$f":"IF($D$31>0,IF(E467>0,E467/$D$31,0),0)","v":0},{"$f":"F467","v":0},null,null,null,null,null,null,{"$f":"SUM(H467:I467)","v":0},{"$f":"SUM(J467:K467)","v":0},{"$f":"SUM(N467:O467)","v":0},{"$f":"SUM(H467:M467)","v":0}]
[null,2.8,"Construction Waste",null,null,{"$f":"IF($D$31>0,IF(E468>0,E468/$D$31,0),0)","v":0},{"$f":"F468","v":0},null,null,null,null,null,null,{"$f":"SUM(H468:I468)","v":0},{"$f":"SUM(J468:K468)","v":0},{"$f":"SUM(N468:O468)","v":0},{"$f":"SUM(H468:M468)","v":0}]
[null,null,null,null,"USE STAGE (MODULE B)"]
[null,3,"Demolition / Strip-out Waste",null,{"$f":"IF(ISNUMBER(O455),O455/1000,0)","v":0},{"$f":"IF($D$31>0,IF(E470>0,E470/$D$31,0),0)","v":0},"-",null,null,null,null,null,null,{"$f":"SUM(H470:I470)","v":0},{"$f":"SUM(J470:K470)","v":0},{"$f":"SUM(N470:O470)","v":0},{"$f":"SUM(H470:M470)","v":0}]
[null,4,"Construction Waste",null,{"$f":"IF(ISNUMBER(Q455),Q455/1000,0)","v":0},{"$f":"IF($D$31>0,IF(E471>0,E471/$D$31,0),0)","v":0},"-",null,null,null,null,null,null,{"$f":"SUM(H471:I471)","v":0},{"$f":"SUM(J471:K471)","v":0},{"$f":"SUM(N471:O471)","v":0},{"$f":"SUM(H471:M471)","v":0}]
[null,null,null,null,"Overall Waste (tonnes/annum)","Overall Waste (tonnes/annum\n/m2)","Performance Indicator (LPG Appendix 1)","Reuse Onsite (%)","Reuse Offsite (%)","Recycle Offsite(%)","Recycle Offsite (%)","To Landfill (%)","To Other Management (%)","Total Reuse (%)","Total Recycle (%)","Total Reuse and Recycle (%)","Total Waste Reported (%)"]
[null,5,"Municipal Waste",null,null,{"$f":"IF($D$31>0,IF(E473>0,E473/$D$31,0),0)","v":0},{"$f":"F473","v":0},null,null,null,null,null,null,{"$f":"SUM(H473:I473)","v":0},{"$f":"SUM(J473:K473)","v":0},{"$f":"SUM(N473:O473)","v":0},{"$f":"SUM(H473:M473)","v":0}]
[null,6,"Industrial Waste (if applicable)",null,null,"-","-",null,null,null,null,null,null,{"$f":"SUM(H474:I474)","v":0},{"$f":"SUM(J474:K474)","v":0},{"$f":"SUM(N474:O474)","v":0},{"$f":"SUM(H474:M474)","v":0}]
[null,null,null,null,"MODULE A - MODULE C"]
[null,null,null,null,"Overall Materials \n(tonnes)","Overall Materials (Modules A-C) (tonnes\n/m2)","-","Reuse Onsite (%)","Reuse Offsite (%)","Recycle Offsite(%)","Recycle Offsite (%)","To Landfill (%)","To Other Management (%)","Total Reuse (%)","Total Recycle (%)","Total Reuse and Recycle (%)","Total Waste Reported (%)"]
[null,7,"Total Materials",null,{"$f":"IF(AND(ISNUMBER(F455),ISNUMBER(J455),ISNUMBER(O455),ISNUMBER(Q455)),((Q455+O455+F455+J455)/1000),0)","v":0},{"$f":"IF($D$31>0,IF(E477>0,E477/$D$31,0),0)","v":0},"-",null,null,null,null,null,null,{"$f":"SUM(H477:I477)","v":0},{"$f":"SUM(J477:K477)","v":0},{"$f":"SUM(N477:O477)","v":0},{"$f":"SUM(H477:M477)","v":0}]
[]
[]
[null,"Circular Economy Targets"]
[null,"Circular economy targets for existing and new development",null,"Policy Requirement","Target Aiming For (%)","Policy Met?","Explanation (How will performance against this metric be secured through design, implementation and monitoring?)"]
[null,"Demolition waste materials (non-hazardous)",null,"Minimum of 95% diverted from landfill for reuse, recycling or recovery.",null,{"$f":"IF(ISNUMBER(E482),IF(E482>100%,\"Input not valid\",IF(E482=95%,\"Yes\",IF(100%>=E482>95%,\"Exceeds Policy\",\"No\"))),\"\")","v":""}]
[null,"Excavation waste materials",null,"Minimum of 95% diverted from landfill for beneficial reuse.",null,{"$f":"IF(ISNUMBER(E483),IF(E483>100%,\"Input not valid\",IF(E483=95%,\"Yes\",IF(100%>=E483>95%,\"Exceeds Policy\",\"No\"))),\"\")","v":""}]
[null,"Construction waste materials",null,"Minimum of 95% diverted from landfill for reuse, recycling or recovery.",null,""]
[null,"Municipal waste",null,"Minimum 65% recycling rate by 2030.",null,{"$f":"IF(ISNUMBER(E485),IF(E485>100%,\"Input not valid\",IF(E485=65%,\"Yes\",IF(100%>=E485>65%,\"Exceeds Policy\",\"No\"))),\"\")","v":""}]
[null,"Recycled content",null,"Minimum 20% of the building material elements to be comprised of recycled or reused content.",null,{"$f":"IF(ISNUMBER(E486),IF(E486>100%,\"Input not valid\",IF(E486=20%,\"Yes\",IF(100%>=E486>20%,\"Exceeds Policy\",\"No\"))),\"\")","v":""}]
[null,"Additional requirements",null,"Policy Requirement","Please acknowledge acceptance for a planning condition",null,"Please set out an indicative timescale and responsible party for the provision of this information"]
[null,"Reserved Matters Reporting",null,"A condition will be attached to an approval of a referable outline planning permission, securing the submission of a CE Statement as a reserved matter. Applications for reserved matters will be required to review and address the information provided at outline stage and update any default values used as far as possible. "]

{"sheet":"Detailed Application Stage","index":3,"n_rows":488,"n_cols":26,"rows_kept":488,"cut":false,"hidden":false,"merged":[[461,13,461,16],[486,1,486,2],[486,6,486,8],[486,4,486,5],[487,1,487,2],[487,6,487,8],[487,4,487,5],[483,1,483,2],[484,1,484,2],[485,1,485,2],[480,6,480,8],[481,6,481,8],[482,6,482,8],[483,6,483,8],[484,6,484,8],[485,6,485,8],[462,13,463,13],[462,14,463,14],[462,15,463,15],[462,16,463,16],[462,11,462,12],[482,1,482,2],[480,1,480,2],[481,1,481,2],[75,4,75,11],[72,1,72,3],[462,9,462,10],[462,7,462,8],[461,7,461,12],[461,4,461,6],[462,6,463,6],[462,4,463,4],[462,5,463,5],[81,1,81,3],[76,1,79,2],[80,1,80,3],[88,2,88,3],[89,2,89,3],[90,2,90,3],[123,1,137,1],[123,2,137,3],[138,2,138,3],[139,1,153,1],[139,2,153,3],[107,1,121,1],[107,2,121,3],[122,2,122,3],[196,2,196,3],[53,1,53,2],[41,1,41,2],[42,1,42,2],[43,1,43,2],[44,1,44,2],[70,1,71,3],[82,1,82,3],[83,1,83,3],[57,1,57,2],[54,1,54,2],[55,1,55,2],[75,1,75,3],[73,1,73,3],[74,1,74,3],[56,1,56,2],[88,17,88,21],[106,2,106,3],[0,0,1,6],[3,0,3,5],[4,0,4,2],[4,4,4,5],[35,1,35,2],[34,1,34,2],[36,1,36,2],[37,1,37,2],[38,1,38,2],[39,1,39,2],[5,2,5,3],[70,13,75,13],[70,14,75,14],[70,15,75,15],[70,4,70,11],[70,12,75,12],[40,1,40,2],[50,1,50,2],[51,1,51,2],[91,1,105,1],[91,2,105,3],[52,1,52,2],[197,1,216,1],[197,2,216,3],[217,2,217,3],[218,1,237,1],[218,2,237,3],[154,2,154,3],[155,1,174,1],[155,2,174,3],[175,2,175,3],[176,1,195,1],[176,2,195,3],[275,2,275,3],[276,1,290,1],[276,2,290,3],[291,2,291,3],[292,1,311,1],[292,2,311,3],[238,2,238,3],[239,1,253,1],[239,2,253,3],[254,2,254,3],[255,1,274,1],[255,2,274,3],[88,22,88,25],[433,2,433,3],[434,1,453,1],[434,2,453,3],[88,4,88,11],[88,12,88,16],[391,2,391,3],[392,1,411,1],[392,2,411,3],[412,2,412,3],[413,1,432,1],[413,2,432,3],[349,2,349,3],[350,1,369,1],[350,2,369,3],[370,2,370,3],[371,1,390,1],[371,2,390,3],[312,2,312,3],[313,1,327,1],[313,2,327,3],[328,2,328,3],[329,1,348,1],[329,2,348,3]]}
[]
[]
[]
["Detailed Application Stage - Circular Economy Statement"]
[]
[null,null,"Project details"]
[null,null,"Project name","Highgate Studios"]
[null,null,"Planning application reference number (if applicable)","-"]
[null,null,"Applicant","Kentish Town UK Office Propco Limited"]
[null,null,"London Borough","London Borough of Camden (LBC)"]
[null,null,"Brief description of the project","‘Demolition of existing buildings and structures at Plot A and Plot F and\nerection of a 7-storey building at Plot A and 4-storey building at Plot F;\nerection of extensions at Plot B, E, J and I on the existing buildings; external refurbishment of the existing buildings at Plot C and D; introduction of a new entrance pavilion, with cycle parking, hard and soft landscaping and associated works and plant; to provide Class E (g) use plus a range of other supporting and ancillary uses.'"]
[null,null,"Author/s","Savills Earth"]
[null,null,"Date of assessment","2023-04-01"]
[null,null,"Number of Use Types",1]
[null,null,"Use Class / Type","Floor Area by use type (m2)"]
[null,null,"E",33653]
[null,null,"Use Class / Type 2","Use Class / Type 2 GIA"]
[null,null,"Use Class / Type 3","Use Class / Type 3 GIA"]
[null,null,"Use Class / Type 4","Use Class / Type 4 GIA"]
[null,null,"Use Class / Type 5","Use Class / Type 5 GIA"]
[null,null,"Use Class / Type 6","Use Class / Type 6 GIA"]
[null,null,"Use Class / Type 7","Use Class / Type 7 GIA"]
[null,null,"Use Class / Type 8","Use Class / Type 8 GIA"]
[null,null,"Use Class / Type 9","Use Class / Type 9 GIA"]
[null,null,"Use Class / Type 10","Use Class / Type 10 GIA"]
[null,null,"Use Class / Type 11","Use Class / Type 11 GIA"]
[null,null,"Use Class / Type 12","Use Class / Type 12 GIA"]
[null,null,"Use Class / Type 13","Use Class / Type 13 GIA"]
[null,null,"Use Class / Type 14","Use Class / Type 14 GIA"]
[null,null,"Use Class / Type 15","Use Class / Type 15 GIA"]
[null,null,"Overall GIA (m2)",{"$f":"SUM(D16:D30)","v":33653}]
[]
[]
[null,"Circular Economy Design Approaches"]
[null,"Circular Economy Design Approaches for Existing Structures / Buildings",null,"Applicant Response"]
[null,"Is there an existing building on the site?",null,"Yes"]
[null,"Is it technically feasible to retain the building(s) in whole or in part?",null,"Yes"]
[null,"Are there any building materials or elements available on site that can be used?"]
[null,"Is the existing building, or parts of the building, suited to the requirements for the site?",null,"Yes, in part"]
[null,"Is it technically feasible to recover the 'residual value' of the buildings elements or materials?"]
[null,"The preferred strategy is:",null,"NEW BUILDING"]
[null,"The preferred strategy is:",null,"RETAIN and RETROFIT"]
[null,"The preferred strategy is:",null,"PARTIAL RETENTION and REFURBISHMENT"]
[null,"The preferred strategy is:",null,"DISASSEMBLE/DECONSTRUCT AND REUSE"]
[null,"The preferred strategy is:",null,"DEMOLISH/DECONSTRUCT AND RECYCLE"]
[null,"Circular Economy Design Approach","Phase/Building/Area/Layer","Strategic Response"]
[null,"Refurbish","Existing buildings\n\nPlots B, E, J, I","Heyne Tillet Steel have carried out comprehensive assessments of the existing structures to determine potential reuse opportunities. \n\nOur intention is that ~86% of the existing site floor area will be retained & refurbished with only plots A & F, part B, C D, E & G proposed to be demolished. These plots offer low NIA, poor quality internal spaces or building fabric are car park decks or enable a new core (D & E). \n\nIt is considered that all reasonable retention is being pursued as part of development proposals. "]
[null,"Repurpose","Plots A, F and part E","Plots A & F offer low NIA, poor quality space and building fabric, and feature ground floor car park decks as such repurposing them is not considered appropriate.\n\nIndividual materials or building elements may be reused on or offsite, pending further investigative work in the next design stage. \n\nPre-demolition audits will be completed on a rolling basis as the Site progresses, to identifying material types on Site and opportunities for re-use."]
[null,"Disassemble / Deconstruct and Reuse","Plots B, E, J, I, C & D (refurbished elements only)\nPlots A, F and part E","Wherever possible, disassembly will be prioritised over demolition so that building elements, original materials and components can be reused to maximise their lifespan. More detailed building surveys & pre-demolition audits are to be carried out in the next design stage and will investigate further reuse opportunities. "]
[null,"Demolish / Deconstruct and Recycle","Existing buildings\n\nA & F, part B, C D, E & G ","Existing concrete from the car park (Plot A) and existing buildings (Plot F) proposed to be demolished will be crushed and reused as piling mat/hardcore for the proposed development or elsewhere, where possible. More detailed building surveys & pre-demolition audits are to be carried out in the next design stage and will form the basis of further investigations into opportunities for material re-use. \n\nIt is important to note that existing building demolition is proposed for only ~14% of the development floor area (GIA). These plots offer low NIA, poor quality space and building fabric, and feature ground floor car park decks. The remaining ~86% of the development floor area (GIA) is proposed to be retained, refurbished and in come instances extended.\n\nNon-hazardous materials removed from Site will be recycled where possible as a minimum. Opportunities for re-use off Site will be considered where possible. \n\nOur existing window re-use and recycling strategy (which forms part of a separate application for the Site) is provided as an example of our approach."]
[null,"Circular Economy Design Approaches for New Buildings, Infrastructure and Layers Over the Lifetime of the Development",null,"Applicant Response"]
[null,"Is the whole building designed to have a short life on its current site? (e.g. less than 10 yrs)",null,"No"]
[null,"Is there likely to be a need for building of a similar size (etc.) in different locations in the future?",null,"No"]
[null,"Is it foreseeable that the building will need to change use/function within its design life?",null,"Yes"]
[null,"The preferred strategy is:",null,"Design for BUILDING RELOCATION"]
[null,"The preferred strategy is:",null,"Design for COMPONENT / MATERIAL REUSE"]
[null,"The preferred strategy is:",null,"Design for ADAPTABILITY"]
[null,"All developments should apply the 6 Circular Economy principles, including:",null,"Designing for DISASSEMBLY and ADAPTABILITY, MATERIAL REUSE ON-SITE and/or RECYCLING should be maximised"]
[null,"Circular Economy Design Approach","Phase/Building/Area/Layer","Strategic Response"]
[null,"Building relocation","Plots A & F","The intention is that ~86% of the existing Site floor area (measured by GIA) will be retained with only plots A & F, part B, C D, E & G proposed to be demolished. \n\nThese plots offer low NIA, poor quality space and building fabric, and feature ground floor car park decks and are therefore not considered suitable for re-location. However, during disassembly/demolition, building elements, original materials and components will be reused or recycled on or off Site, where possible."]
[null,"Component or material reuse","All plots","Heyne Tillet Steel (HTS) have carried out comprehensive assessments of the existing structures to determine potential reuse opportunities. The intention is that ~86% of the existing site floor area (measured by GIA) will be retained with only plots A & F, part B, C D, E & G proposed to be demolished. \n\nWhere adding new structure as extensions to existing buildings an assessment of existing structural loading specific to each building has informed the location, form and construction materials of the extensions to minimise material use. This has not only reduced material use in the extensions themselves, but detailed calculations by HTS have also minimised any structural strengthening required allowing the existing structures to be retained and strengthened only where necessary.\n\nPre-demolition audits will also be completed on a rolling basis as the Site progresses to identifying material types on Site and opportunities for re-use.\n\nIndividual materials or building elements may be reused on or offsite, pending further investigative work in the next design stage. "]
[null,"Adaptability","All plots ","Seen as a key criteria.\n\nThe existing buildings at Highgate Studios are inherently designed to be adaptable given their previous industrial uses. Our intention is to continue to utilise Highgate Studios’ highly adaptable design by retaining a much as is reasonably possible with minimal & sympathetic extensions. \n\nFor new builds & extensions the design intent is to provide a balance between longevity, future adaptability and maximum head heights and fire risk. Continuing the design philosophy of the original Highgate Studios. Material use has been optimised through detailed structural calculations by HTS during Stage 2 to limit material use whilst maximising head heights and limiting columns. Examples of opportunities being considered are as follows:\n\n> Designing open floor plan, flexible uses class spaces with optimised structure.\n> Collaborative Design: Involving occupants in the design process (where possible)\n> Plant space has been sized with spare capacity to allow for future adaptation\n> Accessible Design: ensures that people with varying abilities can use the space and adapt it to their needs.\n> Smart Building Technology such as sensors and automation\n> Scalable Infrastructure: Designing buildings with scalable infrastructure, \n> Designing for disassembly to enable spaces to be adapted without damaging material or services or creating unnecessary waste e.g. using mechanical fixings rather than adhesives. "]
[null,"Flexibility","All plots ","Opportunities that enable flexiblity in design are as follows:\n\n> Designing open floor plan, flexible uses class spaces with optimised structure.\n> Soundproofing materials in the building's design to reduce noise transfer between spaces\n> Adjustable lighting via building management systems.\n> Flexible HVAC Systems: Incorporating HVAC systems that can be easily adapted to changing needs.\n\nMore informaiton is provided in the Circular Ecnomy Statement"]
[null,"Replaceability","All plots ","Examples of opportunities being considered are as follows:\n\n> Designing extension structures with standardised construction materials to aid disassembly and future re-use or recycling.\n> Mechanical and electrical systems that are easily accessible, including designing out false ceilings, ceiling access panels where necessary & accessible risers. Buried services to be kept to a minimum.\n> Consider modular design incorporating elements in the building that can be added or removed in sections as needed, prevent unnecessary removal of other parts not requiring replacement.\n> Choose materials that are readily available to make it easier to find replacements when needed\n> Specify standardised fixtures and finishes so that replacements can still be easily found should a like-for-like product no longer be available. \n> Create a material inventory for the Site so that components of the building can be identified and comparable replacements found. \n> Avoid using glue and adhesives in the building design, as these can make it difficult to disassemble the building in the future.\n> Label Components: Label each component of the building to make it easier to disassemble and recycle each part.\n> The use of recyclable materials in the designs e.g. such as steel or aluminium making it easier to recycle the building materials at the end of its life.\n> Educate the building users on the importance of disassembly and recycling, and provide information on how to properly disassemble and recycle the building materials. "]
[null,"Disassembly","All plots ","Examples of opportunities being considered are as follows:\n\n> Designing extension structures with standardised construction materials to aid disassembly and future re-use or recycling.\n> Mechanical and electrical systems that are easily accessible, including designing out false ceilings, ceiling access panels where necessary & accessible risers. Buried services to be kept to a minimum.\n> Consider modular design incorporating elements in the building that can be added or removed in sections as needed, prevent unnecessary removal of other parts not requiring replacement.\n> Choose materials that are readily available to make it easier to find replacements when needed\n> Specify standardised fixtures and finishes so that replacements can still be easily found should a like-for-like product no longer be available. \n> Create a material inventory for the Site so that components of the building can be identified and comparable replacements found. \n> Avoid using glue and adhesives in the building design, as these can make it difficult to disassemble the building in the future.\n> Label Components: Label each component of the building to make it easier to disassemble and recycle each part.\n> The use of recyclable materials in the designs e.g. such as steel or aluminium making it easier to recycle the building materials at the end of its life.\n> Educate the building users on the importance of disassembly and recycling, and provide information on how to properly disassemble and recycle the building materials. "]
[null,"Longevity","All plots ","Seen as a key criteria.\n\nExamples of our approach and opportunities being considered are as follows:\n\n> Designing for the occupant: Performance based outcomes for daylight, ventilation and outdoor space ensure the building provides appropriate space for users and doesn’t just design for compliance. \n> Green Spaces: Designing for green spaces, such as rooftop gardens or courtyards, can improve the building's environmental performance and increase its lifespan by reducing the urban heat island effect and help improve air quality.\n> Flexibility in Design: A building designed with flexibility in mind can adapt to different uses, occupants and changing needs over time.\n> Adaptive Reuse: Designing with adaptive reuse in mind can make it easier to repurpose the building in the future, reducing the need for demolition and new construction.\n> Durable Materials: High-quality, long-lasting materials that require minimal maintenance can reduce the need for replacements or repairs in the future.\n> Passive Design & Energy Efficiency: Designing for inherently low energy buildings can reduce the building's carbon footprint and operational costs , making it more adaptable to future changes.  \n> Easy Maintenance: Ensuring that the building systems are easily accessible and maintainable can extend their lifespan and reduce repair and replacement costs.\n> Accessibility: Ensuring the building is accessible for all can maintain its usability over time and reduce the need for retrofitting."]
[]
[]
[null,"Circular Economy Design Principles by Building Layer"]
[null,"The Circular Economy Commitments table should consider where the Applicant seeks to go beyond standard practice. If there are multiple phases / buildings / areas with different measures / strategies, please specify these separately within the table below."]
[null,null,null,null,"Building Layer",null,null,null,null,null,null,null,"Summary","Challenges","Actions & Counter-Actions, Who and When","Plan to Prove and Quantify"]
[null,null,null,null,"Site","Substructure","Superstructure","Shell/Skin","Services","Space ","Stuff","Construction Stuff"]
[null,"Is it likely the layer (or components within it) will need to be moved or otherwise modified within 5-15 years, e.g. due to changing use patterns or user requirements?",null,null,"N/A",null,null,null,null,null,null,"N/A"]
[null,"Is it likely the layer (or components within it) will need to be changed, upgraded or replaced within 5-15 years, e.g. for improved performance, aesthetics",null,null,"N/A",null,null,null,null,null,null,"N/A"]
[null,"The preferred strategy is:",null,null,"-",{"$f":"IF(F73=\"Yes\",\"Design for FLEXIBILITY\",IF(F74=\"Yes\",\"Design for REPLACEABILITY\",IF(AND(F73=\"No\",F74=\"No\"),\"Design for ADAPTABILITY\",\"\")))","v":""},{"$f":"IF(G73=\"Yes\",\"Design for FLEXIBILITY\",IF(G74=\"Yes\",\"Design for REPLACEABILITY\",IF(AND(G73=\"No\",G74=\"No\"),\"Design for ADAPTABILITY\",\"\")))","v":""},"","","","","-"]
[null,"Design Principles",null,null,"All developments should apply the 6 circular economy principles, including designing for DISASSEMBLY and ADAPTABILITY, MATERIAL REUSE ON-SITE and/or RECYCLING should be maximised."]
[null,"Designing out waste",null,"Module A - Product Sourcing and Construction Stage","As a minimum, construction, demolition and excavation waste policy targets will be met;  \n\nA pre-demolition audit will be  undertaken at detailed design stage; based on that reuse and recycling opportunities will be identified by the project team. \n\nThe relevant contractors will be required to review the opportunities for reclamation of concrete, bricks and timber including, for use during construction and upcycling for community use. \n\nEarly stage whole life carbon assessment of big ticket items to provide a outcome led / performance based direction of travel.","~86% of the existing site floor area will be retained including substructure.\n\nMinimise new excavation through the limited use of basements and ensuring the design of the development responds to the slope onsite. \n\nNo topsoil from site to be sent to landfill, where possible, pending the findings of the pre-demolition audit. \n\nAn assessment of structural loading specific to the proposed development to identify appropriate rooftops for extension based on the structural capacity of the existing buildings.\n\nOptimised superstructure for new buildings and extensions to limit the material use in the first instance and waste. \n\nLow carbon concrete shall be specified with a cement replacement of up to 70% in the sub-structure  (See Structural engineer specifications)The Pavilion building is proposed to be constructed using a CLT frame limiting substructure material & excavation.","~86% of the existing site floor area will be retained with only A & F, part B, C D, E & G to be demolished. \n\nThese plots offer low NIA, poor quality space and building fabric, and feature ground floor car park decks. \n\nIt is considered that all reasonable retention has been pursued as part of the development proposals. \n\nDetailed structural calculations have limited materials use in the superstructure in the first instance in line with LETI 2020 targets. \n\nLow carbon concrete shall be specified for the Plots A & F RC frames with a cement replacement of up to 50% in the super-structure  (See Structural engineer specifications)\n\nExtensions shall be constructed with prefabricated steel and pre-cast concrete slabs designed to standard sizes.\n\nThe Pavilion building is proposed to be constructed using a CLT frame.","~86% of the existing site floor area will be retained including building skin.\n\nNew buildings A&F have been designed with a repeating façade design that could enable a prefabricated wall panel construction pending further design development.\n\nMaterials and building elements will be designed to minimise the off cuts and waste and will be designed for longevity & adaptablity pending further design development.","Systems & services will be designed to minimise material use wherever possible e.g. stacking similar zone types to reduce service runs.\n\nOpportunities for modular pre-fabricated design will be investigated.","Finishes limited to 'showrooms' only to limit waste by avoiding strip out of virgin material by new tenants.\n\nExposed ceilings will reduce material use and therefore waste in the first instance \n\nInternal finishing materials with high recycled content and lower embodied carbon will be incorporated, examples might include:\n\n> Plasterboard specification with >30% recycled content and low product stage carbon emissions (A1-A3)\n> Use of screed options with >30% recycled content and product stage carbon emissions (A1-A3) in the range of 0.084-0.056 kg CO2e/ m2)\n> Carpets & underlay with >90% recycled content and low product stage carbon emissions (A1-A3)","Finishes limited to 'showrooms' only to limit waste by avoiding strip out of virgin material by new tenants.\n\nOpportunities will be explored further during detailed design.","Registering the scheme with Considerate Construction Scheme. This will require the scheme to monitor and report construction resource use.\n\nResource Management Plan by the relevant contractor to identify options for mitigation and track waste generated on site","Design to minimise resource use in the first instance and avoid then reduce waste.\n \nSpecification of higher recycled content of materials where possible; in particular on-site recycling of concrete waste. Enable off-site reuse and recycling where ever possible.","Site space constraints for storage, and proximity to residential buildings could limit viability of crushing concrete on site. \n\nOn-site storage constraints are a major constraint and could impact opportunities for re-use on Site. \n\nSuitable and reasonable interest from external parties could affect re-use opportunities.\n\nThe level of contamination and viability of onsite reuse of crushed aggregate from existing structures is unknown. \n\nAvailability of GGBS and other recycled materials within the UK, although this has been considered and alternatives potentially available at the time of construction are being considered..\n\nChanges to specification due to cost constraints and technical viability.","Structural engineer to confirm the final mix of concrete in line with GGBS & recycled content commitments.  Identify structural elements that could be pre-fabricated.  Incorporate these requirements within the employers requirements. \n\nArchitect to actively review material selections, seek reductions in material use, specify within employers requirement with recycled content requirements when known. \n\nDesign team to engage with contractors to establish a strategy for reuse and recycling of materials from existing buildings – RIBA 3+/S4. \n\nRelevant contractor to do site testing to determine how much demolition can be reused as recycled aggregate on site and reuse of any excavated soil for fill and landscaping Register the scheme with Considerate Construction Scheme.","On-going sustainability champion appointment including workshops, monitoring, assessment and reporting. \n\nCircular Economy Written evidence & Whole Life Carbon Assessment\n\nDetailed design specification [to be confirmed]\n\nRelevant contractor to update the Bill of Materials and Waste generated during demolition, excavation and construction \n\nAs-built Circular Economy Written evidence & Whole Life Carbon Assessment"]
[null,null,null,"Module B - In-Use Stage","Refuse stores provided with dedicated recycling volumes equal to waste, sized and with waste streams bespoke to the development.","n/a","n/a","The proposed development implements passive energy efficiency measures and will be served by ASHP. Passive design and energy efficiency measures exceed the London Plan requirements and a total reduction in regulated emission of over 35% compared to building regulations targets is predicted.","An outcome-led design approach has been adopted at an early stage to reduce in-use operational energy and emissions.  At this stage strategic decisions have been based on design team experience. Performance based modelling at the next design stage will optimise the operational energy performance, and seek operational energy ratings, where possible.\u000b\u000bProposals implement passive design & energy efficiency measures served by ASHP. Measures exceed London Plan requirements for both ‘Be Lean’ design & total regulated emissions.\u000b\u000bWater efficiency through low water use appliances targeting 12.5% reduction (BREEAM)\u000b\u000bMetering and monitoring (water & energy) via BMS will manage resource use efficiently, flag out of range values, and enable a quick response to leaks or unnecessary resource use. \u000b\u000bHybrid VRF systems are proposed to limit the use of and leakage of refrigerant on Site.",null,null,"The contractor will be required to set targets and monitor energy and water use during construction.","The contractor will be required to set targets and monitor energy and water use during construction.","> In-use performance targets and benchmarks not being met","In line with the London Plan  Be Seen requirement, operational performance will be tracked and reported on.","On-going sustainability champion appointment including workshops, monitoring, assessment and reporting \u000b\u000bAs built specification to be confirmed upon Post-completion"]
[null,null,null,"Module C - End-of-Life Stage",null,null,"Extensions shall be constructed with prefabricated steel and pre-cast concrete slabs designed to standard sizes that can e disassembled and re-used in future.","A pre-fabricated facade could be designed for disassembly e.g. supported with bolted connections. \n\nThe details for deconstruction are to be developed.","Accessible MEP services for maintenance and replacement.\n\nMechanical, rather than adhesive fixing, to facilitate systems being demounted and re-used or recycled, where possible",null,null,null,"Principles included that allow for disassembly. Additional studies at the next stage required to establish a greater level of detail.",null,"Architect / Façade consultant/Structural Engineer/ to actively review material selections, seek opportunities and specify within employers requirement.","On-going sustainability champion appointment including workshops, monitoring, assessment and reporting. \u000b\u000bAs-built Circular Economy Written evidence & Whole Life Carbon Assessment"]
[null,null,null,"Module D - Benefits and Loads Beyond the System Boundary","The project is located on previously developed land with no impact on virgin land."]
[null,"Designing for longevity",null,null,"The proposed underground drainage strategy involves a peak surface water flow rate and if the development allows for  1 in 100 year rainfall event 30% climate change. \n\nDrought resistant planting & rain gardens ","An assessment of structural loading of the existing buildings ensuring there ongoing use and longevity.\u000b\u000bNew structure has been designed in line with Eurocodes which give a minimum design life of 50 years for building structures. \u000b\u000bIt is highly likely that the concrete frame would remain serviceable for a longer period of time than this, subject to regular inspections and maintenance.","The structure has been designed in line with Eurocodes which give a minimum design life of 50 years for building structures. \u000b\u000bIt is highly likely that the concrete frame would remain serviceable for a longer period of time than this, subject to regular inspections and maintenance. \u000b\u000bDesigning for longevity and adaptability was a key consideration when selecting suitable structural solutions","The Energy Strategy details measures to enhance the existing building fabric to reduce energy demand to provide a more resilient design that is more adaptable to future changes.  \u000b\u000bNew buildings and extensions are designed to deliver passive design and energy efficiency beyond London Plan targets making it more adaptable to future changes.  \u000b\u000bGreen and brown roofs across the development help mitigate the urban heat island effect. ","Ease of maintenance has been considered through the services design to prevent unnecessary waste or damage to materials.\u000b\u000bDesign flexibility allows services to work with future tenant fitouts\n\nFurther opportunities to be explored as the design is developed during the next design stages.","Engagement with existing tenants where possible to ensure spaces are aligned with their current and known future needs.\n\nFurther opportunities to be explored as the design is developed during the next design stages.","Further opportunities to be explored as the design is developed during the next design stages.",null,"Opportunties highlighted and incorporated where possible at this stage of the design. Further design development required to finalise the approach.","Changes to specification due to cost constraints and technical viability.","On-going sustainability champion appointment including design team workshops, monitoring, assessment and reporting ","Landscape and surface water strategy for planning\u000b\u000bDetailed design drawings at Stage 4 and specification as installed.\u000b\u000bAs built drawings, surface water run-off features installed  & MEP system specification  on Post-completion.\u000b\u000bAsset Maintenance plans."]
[null,"Designing for adaptability or flexibility",null,null,null,"An assessment of structural loading of the existing buildings ensuring there ongoing use and longevity.\n\nNew structure has been designed in line with Eurocodes which give a minimum design life of 50 years for building structures. \n\nIt is highly likely that the concrete frame would remain serviceable for a longer period of time than this, subject to regular inspections and maintenance.","Maintaining ~86% of the existing buildings (by GIA) already well designed for adaptability and flexibility.\n\nThe proposed grid spacing, open plan design approach and non-load bearing walls offer greater internal flexibility for change of layouts. ","New buildings A & F have been designed to provide generous daylight across each floorplates and provide flexibility for future tenant fit-outs","A key design consideration of services is flexibility of design, working with open floor plates and potential tenant fit-outs\n\nSpare capacity included in plant space to allow for future adaptation e.g. increased ventilation rates, or responding to warmer climate scenarios.\n\nSmart Building Technology such as sensors and automation, allows for easy adaptation and customisation of the building's systems.","Including soundproofing materials in the building's design will help to reduce noise transfer between spaces, providing greater flexibility of space.","Energy efficient internal equipment to minimise energy demand e.g. Lifts, lighting ",null,"Opportunties highlighted and incorporated where possible at this stage of the design. Further design development required to finalise the approach.","as above.","On-going sustainability champion appointment including design team workshops, monitoring, assessment and reporting ","Submission of as built drawings, surface water run-off features installed  & MEP system specification on Post-completion by the development partner"]
[null,"Designing for disassembly",null,null,"Prioritise disassembly of existing structures where possible.",null,"Extensions shall be constructed with prefabricated steel and pre-cast concrete slabs designed to standard sizes and could be disassembled and re-used in future.","A pre-fabricated facade could be designed for disassembly e.g. supported with bolted connections. \n\nThe details for deconstruction are to be developed","Mechanical and electrical systems that are easily accessible, including designing out false ceilings, ceiling access panels where necessary & accessible risers. \n\nBuried services to be kept to a minimum, minimising adhesives in favour of mechanical fittings.","Further opportunities to be explored as the design is developed during the next design stages.","Further opportunities to be explored as the design is developed during the next design stages.",null,"Opportunties highlighted and incorporated where possible at this stage of the design. Further design development required to finalise the approach.","as above.","On-going sustainablity champion appointment including design team workshops, monitoring, assessment and reporting ","Circular Economy Written evidence & Whole Life Carbon Assessment\n\nDetailed design specification [to be confirmed]\n\nRelevant contractor to update the Bill of Materials and Waste generated during demolition, excavation and construction \n\nAs-built Circular Economy Written evidence & Whole Life Carbon Assessment"]
[null,"Using systems, elements or materials that can be re-used and recycled",null,null,"1.Reuse of concrete rubble from plots A & F for re use as a base for new concrete, a backfill material, or use as an aggregate in new concrete mixes.","Reuse of concrete rubble from plots A & F for re use as a base for new concrete, a backfill material, or use as an aggregate in new concrete mixes.","Extensions shall be constructed with prefabricated steel and pre-cast concrete slabs using standard sizes and could be disassembled and re-used in future.","Further opportunities to be explored as the design is developed during the next design stages,.","Existing ductwork to be re-used where possible.\n\nFurther opportunities to be explored as the design is developed during the next design stages,.","Further opportunities to be explored as the design is developed during the next design stages.","Further opportunities to be explored as the design is developed during the next design stages.","Reusable or recyclable materials for Site hording & temporary works where possible.","Opportunties highlighted and incorporated where possible at this stage of the design. Further design development required to finalise the approach.","Availability of recycled materials within the UK. \n\nChanges to specification due to cost constraints and technical viability.","On-going sustainability champion appointment including design team workshops, monitoring, assessment and reporting ","Circular Economy Written evidence & Whole Life Carbon Assessment\n\nDetailed design specification [to be confirmed]\n\nRelevant contractor to update the Bill of Materials and Waste generated during demolition, excavation and construction \n\nAs-built Circular Economy Written evidence & Whole Life Carbon Assessment"]
[]
[]
[null,"Bill of Materials"]
[null,"Please click the + symbol to the left hand side of the Bill of Materials table to view or hide the input rows for each Building Element Category. The rows for substructure and frame have been unhidden to highlight this."]
[null,null,"BUILDING ELEMENT CATEGORY -  LEVEL 1 (based on the RICS New Rules of\nMeasurement (NRM) classification system level 2 sub-elements https://www.rics.org/globalassets/rics-website/media/products/data-products/bcis-construction/bcis-elemental-standard-form-cost-analysis-4th-nrm-edition-2012.pdf)",null,"PRODUCT AND CONSTRUCTION STAGE (MODULE A)",null,null,null,null,null,null,null,"USE STAGE (MODULE B)",null,null,null,null,"END OF LIFE STAGE (MODULE C)",null,null,null,null,"BENEFITS BEYOND THE SYSTEM BOUNDARY (MODULE D)"]
[null,null,"Building Element Category",null,"Material Type","Material quantity\n(Module A)\n(kg)","Material intensity \n(Module A) \n(kg/m2 GIA)","Performance Indicator (LPG Appendix 1)","Construction Waste Factor \n(Module A)","Construction Waste \n(Module A)\n(kg)","Recycled Content \nby mass (kg)","Recycled Content \nby value (%)","Expected Lifespan\n(years)","Number of Replacements (over assumed 60-year period)","Repair and Replacement quantities of materials\n(Module B)\n (kg)","Construction Waste Factor \n(Module B)","Construction Waste \n(Module B)\n(kg)","Design for Disassembly","Assumed End of Life Scenario\n(Description)","% Reusing ","% Recycling","% Landfill","Estimated reusable materials (kg)","Estimated reusable materials intensity\n(kg/m2 GIA)","Estimated recyclable materials (kg)","Estimated recyclable materials intensity\n(kg/m2 GIA)"]
[null,0.1,"Demolition: Toxic/Hazardous/Contaminated Material Treatment",null,"-",{"$f":"SUM(F92:F106)","v":0},{"$f":"IF(AND(F91<>0,$D$31<>0),F91/$D$31,0)","v":0},"-","-",{"$f":"SUM(J92:J106)","v":0},"-","-","-","-",{"$f":"SUM(O92:O106)","v":0},"-",{"$f":"SUM(Q92:Q106)","v":0},"-","-",{"$f":"IF(W91<>0,W91/($F$91+$O$91),0)","v":0},{"$f":"IF(Y91<>0,Y91/($F$91+$O$91),0)","v":0},{"$f":"1-T91-U91","v":1},{"$f":"SUM(W92:W106)","v":0},{"$f":"IF(AND(W91<>0,$D$31<>0),W91/$D$31,0)","v":0},{"$f":"SUM(Y92:Y106)","v":0},{"$f":"IF(AND(Y91<>0,$D$31<>0),Y91/$D$31,0)","v":0}]
[null,0.1,"Demolition: Toxic/Hazardous/Contaminated Material Treatment",null,null,null,{"$f":"IF(AND(F92<>0,$D$31<>0),F92/$D$31,0)","v":0},"-",null,{"$f":"F92*I92","v":0},null,null,null,{"$f":"IF(M92<>0,INT(60/M92),0)","v":0},{"$f":"N92*I92","v":0},null,{"$f":"P92*M92","v":0},null,null,0,0,{"$f":"1-T92-U92","v":1},{"$f":"T92*(F92+O92)","v":0},{"$f":"IF(AND(W92<>0,$D$31<>0),W92/$D$31,0)","v":0},{"$f":"U92*(F92+O92)","v":0},{"$f":"IF(AND(Y92<>0,$D$31<>0),Y92/$D$31,0)","v":0}]
[null,null,null,null,null,null,{"$f":"IF(AND(F93<>0,$D$31<>0),F93/$D$31,0)","v":0},"-",null,{"$f":"F93*I93","v":0},null,null,null,{"$f":"IF(M93<>0,INT(60/M93),0)","v":0},{"$f":"N93*I93","v":0},null,{"$f":"P93*M93","v":0},null,null,0,0,{"$f":"1-T93-U93","v":1},{"$f":"T93*(F93+O93)","v":0},{"$f":"IF(AND(W93<>0,$D$31<>0),W93/$D$31,0)","v":0},{"$f":"U93*(F93+O93)","v":0},0]
[null,null,null,null,null,null,0,"-",null,0,null,null,null,0,0,null,0,null,null,0,0,1,0,0,0,0]
[null,null,null,null,null,null,0,"-",null,0,null,null,null,0,0,null,0,null,null,0,0,1,0,0,0,0]
[null,null,null,null,null,null,0,"-",null,0,null,null,null,0,0,null,0,null,null,0,0,1,0,0,0,0]
[null,null,null,null,null,null,0,"-",null,0,null,null,null,0,0,null,0,null,null,0,0,1,0,0,0,0]
[null,null,null,null,null,null,0,"-",null,0,null,null,null,0,0,null,0,null,null,0,0,1,0,0,0,0]
[null,null,null,null,null,null,0,"-",null,0,null,null,null,0,0,null,0,null,null,0,0,1,0,0,0,0]
[null,null,null,null,null,null,0,"-",null,0,null,null,null,0,0,null,0,null,null,0,0,1,0,0,0,0]
[null,null,null,null,null,null,0,"-",null,0,null,null,null,0,0,null,0,null,null,0,0,1,0,0,0,0]
[null,null,null,null,null,null,0,"-",null,0,null,null,null,0,0,null,0,null,null,0,0,1,0,0,0,0]
[null,null,null,null,null,null,0,"-",null,0,null,null,null,0,0,null,0,null,null,0,0,1,0,0,0,0]
[null,null,null,null,null,null,0,"-",null,0,null,null,null,0,0,null,0,null,null,0,0,1,0,0,0,0]
[null,null,null,null,null,null,0,"-",null,0,null,null,null,0,0,null,0,null,null,0,0,1,0,0,0,0]
[null,null,null,null,null,null,0,"-",null,0,null,null,null,0,0,null,0,null,null,0,0,1,0,0,0,0]
[null,0.2,"Major Demolition Works",null,"-",{"$f":"SUM(F108:F122)","v":0},{"$f":"IF(AND(F107<>0,$D$31<>0),F107/$D$31,0)","v":0},"-","-",{"$f":"SUM(J108:J122)","v":0},"-","-","-","-",{"$f":"SUM(O108:O122)","v":0},"-",{"$f":"SUM(Q108:Q122)","v":0},"-","-",{"$f":"IF(W107<>0,W107/($F$107+$O$107),0)","v":0},{"$f":"IF(Y107<>0,Y107/($F$107+$O$107),0)","v":0},{"$f":"1-T107-U107","v":1},{"$f":"SUM(W108:W122)","v":0},0,{"$f":"SUM(Y108:Y122)","v":0},0]
[null,0.2,"Major Demolition Works",null,null,null,{"$f":"IF(AND(F108<>0,$D$31<>0),F108/$D$31,0)","v":0},"-",null,{"$f":"I108*F108","v":0},null,null,null,0,0,null,0,null,null,0,0,1,0,0,0,0]
[null,null,null,null,null,null,{"$f":"IF(AND(F109<>0,$D$31<>0),F109/$D$31,0)","v":0},"-",null,0,null,null,null,0,0,null,0,null,null,0,0,1,0,0,0,0]
[null,null,null,null,null,null,{"$f":"IF(AND(F110<>0,$D$31<>0),F110/$D$31,0)","v":0},"-",null,0,null,null,null,0,0,null,0,null,null,0,0,1,0,0,0,0]
[null,null,null,null,null,null,0,"-",null,0,null,null,null,0,0,null,0,null,null,0,0,1,0,0,0,0]
[null,null,null,null,null,null,0,"-",null,0,null,null,null,0,0,null,0,null,null,0,0,1,0,0,0,0]
[null,null,null,null,null,null,0,"-",null,0,null,null,null,0,0,null,0,null,null,0,0,1,0,0,0,0]
[null,null,null,null,null,null,0,"-",null,0,null,null,null,0,0,null,0,null,null,0,0,1,0,0,0,0]
[null,null,null,null,null,null,0,"-",null,0,null,null,null,0,0,null,0,null,null,0,0,1,0,0,0,0]
[null,null,null,null,null,null,0,"-",null,0,null,null,null,0,0,null,0,null,null,0,0,1,0,0,0,0]
[null,null,null,null,null,null,0,"-",null,0,null,null,null,0,0,null,0,null,null,0,0,1,0,0,0,0]
[null,null,null,null,null,null,0,"-",null,0,null,null,null,0,0,null,0,null,null,0,0,1,0,0,0,0]
[null,null,null,null,null,null,0,"-",null,0,null,null,null,0,0,null,0,null,null,0,0,1,0,0,0,0]
[null,null,null,null,null,null,0,"-",null,0,null,null,null,0,0,null,0,null,null,0,0,1,0,0,0,0]
[null,null,null,null,null,null,0,"-",null,0,null,null,null,0,0,null,0,null,null,0,0,1,0,0,0,0]
[null,null,null,null,null,null,0,"-",null,0,null,null,null,0,0,null,0,null,null,0,0,1,0,0,0,0]
[null,0.3,"Temporary Support to Adjacent Structures",null,"-",{"$f":"SUM(F124:F138)","v":0},{"$f":"IF(AND(F123<>0,$D$31<>0),F123/$D$31,0)","v":0},"-","-",{"$f":"SUM(J124:J138)","v":0},"-","-","-","-",{"$f":"SUM(O124:O138)","v":0},"-",{"$f":"SUM(Q124:Q138)","v":0},"-","-",{"$f":"IF(W123<>0,W123/($F$123+$O$123),0)","v":0},{"$f":"IF(Y123<>0,Y123/($F$123+$O$123),0)","v":0},1,{"$f":"SUM(W124:W138)","v":0},0,{"$f":"SUM(Y124:Y138)","v":0},0]
[null,0.3,"Temporary Support to Adjacent Structures",null,null,null,{"$f":"IF(AND(F124<>0,$D$31<>0),F124/$D$31,0)","v":0},"-",null,{"$f":"I124*F124","v":0},null,null,null,0,0,null,0,null,null,0,0,1,0,0,0,0]
[null,null,null,null,null,null,{"$f":"IF(AND(F125<>0,$D$31<>0),F125/$D$31,0)","v":0},"-",null,0,null,null,null,0,0,null,0,null,null,0,0,1,0,0,0,0]
[null,null,null,null,null,null,{"$f":"IF(AND(F126<>0,$D$31<>0),F126/$D$31,0)","v":0},"-",null,0,null,null,null,0,0,null,0,null,null,0,0,1,0,0,0,0]
[null,null,null,null,null,null,0,"-",null,0,null,null,null,0,0,null,0,null,null,0,0,1,0,0,0,0]
[null,null,null,null,null,null,0,"-",null,0,null,null,null,0,0,null,0,null,null,0,0,1,0,0,0,0]
[null,null,null,null,null,null,0,"-",null,0,null,null,null,0,0,null,0,null,null,0,0,1,0,0,0,0]
[null,null,null,null,null,null,0,"-",null,0,null,null,null,0,0,null,0,null,null,0,0,1,0,0,0,0]
[null,null,null,null,null,null,0,"-",null,0,null,null,null,0,0,null,0,null,null,0,0,1,0,0,0,0]
[null,null,null,null,null,null,0,"-",null,0,null,null,null,0,0,null,0,null,null,0,0,1,0,0,0,0]
[null,null,null,null,null,null,0,"-",null,0,null,null,null,0,0,null,0,null,null,0,0,1,0,0,0,0]
[null,null,null,null,null,null,0,"-",null,0,null,null,null,0,0,null,0,null,null,0,0,1,0,0,0,0]
[null,null,null,null,null,null,0,"-",null,0,null,null,null,0,0,null,0,null,null,0,0,1,0,0,0,0]
[null,null,null,null,null,null,0,"-",null,0,null,null,null,0,0,null,0,null,null,0,0,1,0,0,0,0]
[null,null,null,null,null,null,0,"-",null,0,null,null,null,0,0,null,0,null,null,0,0,1,0,0,0,0]
[null,null,null,null,null,null,0,"-",null,0,null,null,null,0,0,null,0,null,null,0,0,1,0,0,0,0]
[null,0.4,"Specialist Ground Works",null,"-",{"$f":"SUM(F140:F154)","v":0},{"$f":"IF(AND(F139<>0,$D$31<>0),F139/$D$31,0)","v":0},"-","-",{"$f":"SUM(J140:J154)","v":0},"-","-","-","-",{"$f":"SUM(O140:O154)","v":0},"-",{"$f":"SUM(Q140:Q154)","v":0},"-","-",{"$f":"IF(W139<>0,W139/($F$139+$O$139),0)","v":0},{"$f":"IF(Y139<>0,Y139/($F$139+$O$139),0)","v":0},1,{"$f":"SUM(W140:W154)","v":0},0,{"$f":"SUM(Y140:Y154)","v":0},0]
[null,0.4,"Specialist Ground Works",null,null,null,{"$f":"IF(AND(F140<>0,$D$31<>0),F140/$D$31,0)","v":0},"-",null,{"$f":"I140*F140","v":0},null,null,null,0,0,null,0,null,null,0,0,1,0,0,0,0]
[null,null,null,null,null,null,{"$f":"IF(AND(F141<>0,$D$31<>0),F141/$D$31,0)","v":0},"-",null,0,null,null,null,0,0,null,0,null,null,0,0,1,0,0,0,0]
[null,null,null,null,null,null,{"$f":"IF(AND(F142<>0,$D$31<>0),F142/$D$31,0)","v":0},"-",null,0,null,null,null,0,0,null,0,null,null,0,0,1,0,0,0,0]
[null,null,null,null,null,null,0,"-",null,0,null,null,null,0,0,null,0,null,null,0,0,1,0,0,0,0]
[null,null,null,null,null,null,0,"-",null,0,null,null,null,0,0,null,0,null,null,0,0,1,0,0,0,0]
[null,null,null,null,null,null,0,"-",null,0,null,null,null,0,0,null,0,null,null,0,0,1,0,0,0,0]
[null,null,null,null,null,null,0,"-",null,0,null,null,null,0,0,null,0,null,null,0,0,1,0,0,0,0]
[null,null,null,null,null,null,0,"-",null,0,null,null,null,0,0,null,0,null,null,0,0,1,0,0,0,0]
[null,null,null,null,null,null,0,"-",null,0,null,null,null,0,0,null,0,null,null,0,0,1,0,0,0,0]
[null,null,null,null,null,null,0,"-",null,0,null,null,null,0,0,null,0,null,null,0,0,1,0,0,0,0]
[null,null,null,null,null,null,0,"-",null,0,null,null,null,0,0,null,0,null,null,0,0,1,0,0,0,0]
[null,null,null,null,null,null,0,"-",null,0,null,null,null,0,0,null,0,null,null,0,0,1,0,0,0,0]
[null,null,null,null,null,null,0,"-",null,0,null,null,null,0,0,null,0,null,null,0,0,1,0,0,0,0]
[null,null,null,null,null,null,0,"-",null,0,null,null,null,0,0,null,0,null,null,0,0,1,0,0,0,0]
[null,null,null,null,null,null,0,"-",null,0,null,null,null,0,0,null,0,null,null,0,0,1,0,0,0,0]
[null,1,"Substructure",null,"-",{"$f":"SUM(F156:F175)","v":13103135.800000001},{"$f":"IF(AND(F155<>0,$D$31<>0),F155/$D$31,0)","v":389.36011053992218},{"$f":"SUMPRODUCT((C91:D454=\"Substructure\")*G91:G454)","v":396.93941223665053},"-",{"$f":"SUM(J156:J175)","v":529626.09216000012},"-","-","-","-",{"$f":"SUM(O156:O175)","v":0.34399999999999997},"-",{"$f":"SUM(Q156:Q175)","v":20.639999999999997},"-","-",{"$f":"IF(W155<>0,W155/($F$155+$O$155),0)","v":0},{"$f":"IF(Y155<>0,Y155/($F$155+$O$155),0)","v":5.2474663809003307E-2},0.94752533619099666,{"$f":"SUM(W156:W175)","v":0},0,{"$f":"SUM(Y156:Y175)","v":687582.66399999999},20.431541437613287]
[null,1,"Substructure",null,"Ready-mix concrete, GEN3 (C20/25), C III A, (36-65%GGBS) (Hanson HCG)",255066.23999999999,{"$f":"IF(AND(F156<>0,$D$31<>0),F156/$D$31,0)","v":7.5793016967283746},"-",0.04,{"$f":"I156*F156","v":10202.649600000001},0,0,60,1,0.04,0.04,2.4,"No","Concrete crushed to aggregate (for sub-base layers), Portland Cement 200 kg / m3",0,0,1,0,0,0,0]
[null,null,null,null,"Ready-mix concrete, normal strength, generic, C32/40 (4600/5800 PSI) with CEM III/A, 60% GGBS content in cement (300 kg/m3; 18.7 lbs/ft3 total cement) (One Click LCA 2022)",4441382.4000000004,{"$f":"IF(AND(F157<>0,$D$31<>0),F157/$D$31,0)","v":131.97582384928538},"-",0.04,177655.29600000003,320292,4.3350000000000003E-3,60,{"$f":"IF(M157<>0,INT(60/M157),0)","v":1},{"$f":"N157*I157","v":0.04},0.04,{"$f":"P157*M157","v":2.4},"No","Concrete crushed to aggregate (for sub-base layers), Portland Cement 300 kg / m3",0,0,{"$f":"1-T157-U157","v":1},{"$f":"T157*(F157+O157)","v":0},{"$f":"IF(AND(W157<>0,$D$31<>0),W157/$D$31,0)","v":0},{"$f":"U157*(F157+O157)","v":0},0]
[null,null,null,null,"Ready-mix concrete, normal strength, generic, C35/45 (5000/6500 PSI) with CEM III/A, 50% GGBS content (340 kg/m3; 21.2 lbs/ft3 total cement)",37440,{"$f":"IF(AND(F158<>0,$D$31<>0),F158/$D$31,0)","v":1.1125308293465663},"-",0.04,1497.6000000000001,2520,9.2000000000000003E-4,60,1,0.04,0.04,2.4,"No","Concrete crushed to aggregate (for sub-base layers), Portland Cement 300 kg / m3",0,0,1,0,0,0,0]
[null,null,null,null,"Ready-mix concrete, RC 32/40 (32/40 MPa), 70% Cement replacement with blast furnace slag (GGBS)",4589669.76,136.3821876207173,"-",0.04,183586.7904,386150.09999999992,2.4500000000000004E-3,60,1,0.04,0.04,2.4,"No","Concrete crushed to aggregate (for sub-base layers), Portland Cement 300 kg / m3",0,0,1,0,0,0,0]
[null,null,null,null,"Ready-mix concrete, RC 35/45 (35/45 MPa), 70% Cement replacement with blast furnace slag (GGBS)",3091994.8800000004,91.878729385195982,"-",0.04,123679.79520000002,260143.80000000002,3.64E-3,60,1,0.04,0.04,2.4,"No","Concrete crushed to aggregate (for sub-base layers), Portland Cement 300 kg / m3",0,0,1,0,0,0,0]
[null,null,null,null,"Reinforcement steel (rebar), generic, 90% recycled content, A615",7610.01,0.22613169702552521,"-",4.8000000000000001E-2,365.28048000000001,6532.2,8.8000000000000005E-3,60,1,4.8000000000000001E-2,4.8000000000000001E-2,2.88,"No","Steel recycling",0,1,0,0,0,7610.058,0.22613312334710131]
[null,null,null,null,"Reinforcement steel (rebar), generic, 97% recycled content (typical), A615",521894.35000000003,15.508107746709062,"-",4.8000000000000001E-2,25050.928800000002,482820.71,2.0807692307692308E-2,60,1,4.8000000000000001E-2,4.8000000000000001E-2,2.88,"No","Steel recycling",0,1,0,0,0,521894.39800000004,15.508109173030638]
[null,null,null,null,"Reinforcement steel (rebar), generic, 97% recycled content (typical), A615 (One Click LCA 2022)",158078.16,4.697297714913975,"-",4.8000000000000001E-2,7587.7516800000003,146243.01999999999,3.2549999999999996E-2,60,1,4.8000000000000001E-2,4.8000000000000001E-2,2.88,"No","Steel recycling",0,1,0,0,0,158078.20800000001,4.6972991412355514]
[null,null,null,null,null,null,0,"-",null,0,null,null,null,0,0,null,0,null,null,0,0,1,0,0,0,0]
[null,null,null,null,null,null,0,"-",null,0,null,null,null,0,0,null,0,null,null,0,0,1,0,0,0,0]
[null,null,null,null,null,null,0,"-",null,0,null,null,null,0,0,null,0,null,null,0,0,1,0,0,0,0]
[null,null,null,null,null,null,0,"-",null,0,null,null,null,0,0,null,0,null,null,0,0,1,0,0,0,0]
[null,null,null,null,null,null,0,"-",null,0,null,null,null,0,0,null,0,null,null,0,0,1,0,0,0,0]
[null,null,null,null,null,null,0,"-",null,0,null,null,null,0,0,null,0,null,null,0,0,1,0,0,0,0]
[null,null,null,null,null,null,{"$f":"IF(AND(F170<>0,$D$31<>0),F170/$D$31,0)","v":0},"-",null,0,null,null,null,0,0,null,0,null,null,0,0,1,0,0,0,0]
[null,null,null,null,null,null,{"$f":"IF(AND(F171<>0,$D$31<>0),F171/$D$31,0)","v":0},"-",null,0,null,null,null,0,0,null,0,null,null,0,0,1,0,0,0,0]
[null,null,null,null,null,null,{"$f":"IF(AND(F172<>0,$D$31<>0),F172/$D$31,0)","v":0},"-",null,0,null,null,null,0,0,null,0,null,null,0,0,1,0,0,0,0]
[null,null,null,null,null,null,0,"-",null,0,null,null,null,0,0,null,0,null,null,0,0,1,0,0,0,0]
[null,null,null,null,null,null,0,"-",null,0,null,null,null,0,0,null,0,null,null,0,0,1,0,0,0,0]
[null,null,null,null,null,null,{"$f":"IF(AND(F175<>0,$D$31<>0),F175/$D$31,0)","v":0},"-",null,0,null,null,null,0,0,null,0,null,null,0,0,1,0,0,0,0]
[null,2.1,"Superstructure: Frame",null,"-",{"$f":"SUM(F177:F196)","v":3023797.27},{"$f":"IF(AND(F176<>0,$D$31<>0),F176/$D$31,0)","v":89.852235164769851},{"$f":"SUMPRODUCT((C91:D454=\"Superstructure: Frame\")*G91:G454)","v":90.295174278667574},"-",{"$f":"SUM(J177:J196)","v":117920.76264999999},"-","-","-","-",{"$f":"SUM(O177:O196)","v":1.123},"-",{"$f":"SUM(Q177:Q196)","v":52.079999999999991},"-","-",{"$f":"IF(W176<>0,W176/($F$176+$O$176),0)","v":0},{"$f":"IF(Y176<>0,Y176/($F$176+$O$176),0)","v":0.33178000402489138},0.66821999597510862,{"$f":"SUM(W177:W196)","v":0},0,{"$f":"SUM(Y177:Y196)","v":1003235.8430000001},29.811186016105552]
[null,2.1,"Superstructure: Frame",null,"Glue laminated timber (Glulam), 544 kg/m3, 12% (± 3%) moisture content (One Click LCA)",14906.23,{"$f":"IF(AND(F177<>0,$D$31<>0),F177/$D$31,0)","v":0.44293911389772084},"-",0.17,{"$f":"I177*F177","v":2534.0590999999999},0,0,60,1,0.17,0.17,10.200000000000001,"No","Wood incineration",0,0,1,0,0,0,0]
[null,null,null,null,"Plywood, generic, 4-50 mm (0.16-1.97 in), 620 kg/m3 (38.7 lbs/ft3)",1808.85,{"$f":"IF(AND(F178<>0,$D$31<>0),F178/$D$31,0)","v":5.3750037143791042E-2},"-",0.17,307.50450000000001,0,0,30,2,0.34,0.17,5.1000000000000005,"No","Wood incineration",0,0,1,0,0,0,0]
[null,null,null,null,"Ready-mix concrete, normal strength, generic, C35/45 (5000/6500 PSI) with CEM III/A, 50% GGBS content (340 kg/m3; 21.2 lbs/ft3 total cement)",189696,{"$f":"IF(AND(F179<>0,$D$31<>0),F179/$D$31,0)","v":5.6368228686892703},"-",0.04,7587.84,12768,6.9000000000000008E-4,60,1,0.04,0.04,2.4,"No","Concrete crushed to aggregate (for sub-base layers), Portland Cement 300 kg / m3",0,0,1,0,0,0,0]
[null,null,null,null,"Ready-mix concrete, normal-strength, generic, C40/50 (5800/7300 PSI), 0% recycled binders in cement (400 kg/m3 / 24.97 lbs/ft3)",14227.2,0.42276171515169525,"-",0.04,569.08800000000008,0,0,60,1,0.04,0.04,2.4,"No","Concrete crushed to aggregate (for sub-base layers), Portland Cement 400 kg / m3",0,0,1,0,0,0,0]
[null,null,null,null,"Ready-mix concrete, RC 32/40 (32/40 MPa), 50% Cement replacement with blast furnace slag (GGBS)",26332.799999999999,0.78248001664041833,"-",0.04,1053.3119999999999,1582.5,5.7999999999999994E-5,60,1,0.04,0.04,2.4,"No","Concrete crushed to aggregate (for sub-base layers), Portland Cement 300 kg / m3",0,0,1,0,0,0,0]
[null,null,null,null,"Ready-mix concrete, RC 35/45 (35/45 MPa), 50% Cement replacement with blast furnace slag (GGBS)",1333562.8799999999,39.626864766885561,"-",0.04,53342.515199999994,80142,1.2199999999999999E-3,60,1,0.04,0.04,2.4,"No","Concrete crushed to aggregate (for sub-base layers), Portland Cement 300 kg / m3",0,0,1,0,0,0,0]
[null,null,null,null,"Ready-mix concrete, RC 40/50 (40/50 MPa), 50% Cement replacement with blast furnace slag (GGBS)",439296,13.053695064333047,"-",0.04,17571.84,26400,8.3000000000000001E-4,60,1,0.04,0.04,2.4,"No","Concrete crushed to aggregate (for sub-base layers), Portland Cement 400 kg / m3",0,0,1,0,0,0,0]
[null,null,null,null,"Reinforcement steel (rebar), generic, 90% recycled content, A615",600.79,1.7852494577006505E-2,"-",4.8000000000000001E-2,28.83792,515.70000000000005,2.9999999999999997E-4,60,1,4.8000000000000001E-2,4.8000000000000001E-2,2.88,"No","Steel recycling",0,1,0,0,0,600.83799999999997,1.7853920898582593E-2]
[null,null,null,null,"Reinforcement steel (rebar), generic, 97% recycled content (typical), A615",80596.100000000006,2.3949157578819125,"-",4.8000000000000008E-2,3868.6128000000008,74561.959999999992,1.0046666666666667E-2,60,1,4.8000000000000008E-2,4.8000000000000008E-2,2.8800000000000003,"No","Steel recycling",0,1,0,0,0,80596.148000000001,2.3949171842034884]
[null,null,null,null,"Reinforcement steel (rebar), generic, 97% recycled content (typical), A615 (One Click LCA 2022)",33699,1.001366891510415,"-",4.8000000000000001E-2,1617.5520000000001,31175.99,5.1000000000000004E-3,60,1,4.8000000000000001E-2,4.8000000000000001E-2,2.88,"No","Steel recycling",0,1,0,0,0,33699.048000000003,1.0013683178319912]
[null,null,null,null,"Structural laminated veneer lumber (LVL), 570 kg/m3, moisture content 13 %, NelsonPine® LVL, NP Frame LVL 8, NP Frame LVL 11, NP Frame LVL 13, NP Form LVL 9, NP Form LVL 11, NP Boxxa, NP Plank (Nelson Pine Industries Ltd)",731.71,2.1742786675779276E-2,"-",0.17,124.39070000000001,0,0,60,1,0.17,0.17,10.200000000000001,"No","Wood incineration",0,0,1,0,0,0,0]
[null,null,null,null,"Structural steel profiles, generic, 20% recycled content,  I, H, U, L, and T sections, S235, S275 and S355",251461.64,7.4721908893709328,"-",3.3000000000000002E-2,8298.234120000001,48685.7,7.0857142857142855E-3,60,1,3.3000000000000002E-2,3.3000000000000002E-2,1.98,"No","Steel recycling",0,1,0,0,0,251461.67300000001,7.4721918699670162]
[null,null,null,null,"Structural steel profiles, generic, 40% recycled content,  I, H, U, L, and T sections, S235, S275 and S355",635992.79,18.898546637744037,"-",3.3000000000000002E-2,20987.762070000001,246270.2,3.8633333333333332E-2,60,1,3.3000000000000002E-2,3.3000000000000002E-2,1.98,"No","Steel recycling",0,1,0,0,0,635992.82300000009,18.898547618340121]
[null,null,null,null,"Structural steel profiles, generic, 60% recycled content,  I, H, U, L, and T sections, S235, S275 and S355",885.28,2.6306124268267315E-2,"-",3.3000000000000002E-2,29.21424,514.20000000000005,5.1499999999999994E-4,60,1,3.3000000000000002E-2,3.3000000000000002E-2,1.98,"No","Steel recycling",0,1,0,0,0,885.31299999999999,2.6307104864350873E-2]
[null,null,null,null,null,null,{"$f":"IF(AND(F191<>0,$D$31<>0),F191/$D$31,0)","v":0},"-",null,0,null,null,null,0,0,null,0,null,null,0,0,1,0,0,0,0]
[null,null,null,null,null,null,{"$f":"IF(AND(F192<>0,$D$31<>0),F192/$D$31,0)","v":0},"-",null,0,null,null,null,0,0,null,0,null,null,0,0,1,0,0,0,0]
[null,null,null,null,null,null,{"$f":"IF(AND(F193<>0,$D$31<>0),F193/$D$31,0)","v":0},"-",null,0,null,null,null,0,0,null,0,null,null,0,0,1,0,0,0,0]
[null,null,null,null,null,null,{"$f":"IF(AND(F194<>0,$D$31<>0),F194/$D$31,0)","v":0},"-",null,0,null,null,null,0,0,null,0,null,null,0,0,1,0,0,0,0]
[null,null,null,null,null,null,0,"-",null,0,null,null,null,0,0,null,0,null,null,0,0,1,0,0,0,0]
[null,null,null,null,null,null,0,"-",null,0,null,null,null,0,0,null,0,null,null,0,0,1,0,0,0,0]
[null,2.2000000000000002,"Superstructure: Upper Floors",null,"-",{"$f":"SUM(F198:F217)","v":14107088.73},{"$f":"IF(AND(F197<>0,$D$31<>0),F197/$D$31,0)","v":419.19260481977835},{"$f":"SUMPRODUCT((C176:D459=\"Superstructure: Upper Floors\")*G176:G459)","v":419.30752889786947},"-",{"$f":"SUM(J198:J217)","v":527792.43969999987},"-","-","-","-",{"$f":"SUM(O198:O217)","v":1.7160000000000002},"-",{"$f":"SUM(Q198:Q217)","v":64.260000000000005},"-","-",{"$f":"IF(W197<>0,W197/($F$197+$O$197),0)","v":0},{"$f":"IF(Y197<>0,Y197/($F$197+$O$197),0)","v":5.5960709901299512E-2},0.94403929009870047,{"$f":"SUM(W198:W217)","v":0},0,{"$f":"SUM(Y198:Y217)","v":789442.79599999997},23.458318604582058]
[null,2.2000000000000002,"Superstructure: Upper Floors",null,"Cross laminated timber (CLT), 481 kg/m3, 12% (± 3%) moisture content (One Click LCA)",3867.54,{"$f":"IF(AND(F198<>0,$D$31<>0),F198/$D$31,0)","v":0.11492407809110629},"-",0.17,{"$f":"I198*F198","v":657.48180000000002},0,0,60,1,0.17,0.17,10.200000000000001,"No","Wood incineration",0,0,1,0,0,0,0]
[null,null,null,null,"EPS foam insulation, 0.034 W/mK, 25 kg/m3, max. 8000 x 1300 x 1000 mm (EUMEPS)",6751.32,{"$f":"IF(AND(F199<>0,$D$31<>0),F199/$D$31,0)","v":0.2006156954803435},"-",0.04,270.05279999999999,0,0,60,1,0.04,0.04,2.4,"No","Plastic-based material incineration",0,0,1,0,0,0,0]
[null,null,null,null,"Flooring screed, C20/25 - XC1 - S3 - 20 CEM I, 50mm, 116.8kg/m2, 2336 kg/m3 (SNBPE)",586680.08999999985,{"$f":"IF(AND(F200<>0,$D$31<>0),F200/$D$31,0)","v":17.433218138056038},"-",0.12999999999999995,76268.411699999953,0,0,30,2,0.2599999999999999,0.12999999999999995,3.8999999999999986,"No","Cement/mortar use in a backfill",0,0,1,0,0,0,0]
[null,null,null,null,"HS2 baseline - Cement grout, Cementitious modified mineral mortar (-)",97660.260000000009,2.9019778325855055,"-",0.13,12695.833800000002,0,0,30,2,0.26,0.13,3.9000000000000004,"No","Cement/mortar use in a backfill",0,0,1,0,0,0,0]
[null,null,null,null,"Plywood, generic, 4-50 mm (0.16-1.97 in), 620 kg/m3 (38.7 lbs/ft3)",3740.7,0.11115502332630077,"-",0.17,635.91899999999998,0,0,30,2,0.34,0.17,5.1000000000000005,"No","Wood incineration",0,0,1,0,0,0,0]
[null,null,null,null,"Precast concrete paver, 60 mm, 135.78 kg/m2 (CENTRE D`ETUDES ET DE RECHERCHES DE L`INDUSTRIE DU BÉTON)",30801.69,0.91527322972691882,"-",0,0,0,0,60,1,0,0,0,"No","Rebar separated (2 %), concrete to aggregate",0,0,1,0,0,0,0]
[null,null,null,null,"Precast hollow core flooring, 150 mm, 2000 kg/m3 (PFF, BPCF)",2156900,64.09235432205152,"-",0,0,0,0,60,1,0,0,0,"No","Rebar separated (2 %), concrete to aggregate",0,0,1,0,0,0,0]
[null,null,null,null,"Ready-mix concrete, GEN3 (C20/25), C III A, (36-65%GGBS) (Hanson HCG)",29827.200000000001,0.88631622737943128,"-",0.04,1193.088,0,0,60,1,0.04,0.04,2.4,"No","Concrete crushed to aggregate (for sub-base layers), Portland Cement 200 kg / m3",0,0,1,0,0,0,0]
[null,null,null,null,"Ready-mix concrete, normal strength, generic, C32/40 (4600/5800 PSI) with CEM III/A, 50% GGBS content in cement (300 kg/m3; 18.7 lbs/ft3 total cement) (One Click LCA 2022)",3041475.84,90.377554452797668,"-",0.04,121659.0336,204714.72,4.0233333333333328E-3,60,1,0.04,0.04,2.4,"No","Concrete crushed to aggregate (for sub-base layers), Portland Cement 300 kg / m3",0,0,1,0,0,0,0]
[null,null,null,null,"Ready-mix concrete, normal strength, generic, C35/45 (5000/6500 PSI) with CEM III/A, 50% GGBS content (340 kg/m3; 21.2 lbs/ft3 total cement)",40934.400000000001,1.2163670400855793,"-",0.04,1637.3760000000002,2755.2,3.1E-4,60,1,0.04,0.04,2.4,"No","Concrete crushed to aggregate (for sub-base layers), Portland Cement 300 kg / m3",0,0,1,0,0,0,0]
[null,null,null,null,"Ready-mix concrete, normal-strength, generic, C30/37 (4400/5400 PSI), 0% recycled binders in cement (300 kg/m3 / 18.72 lbs/ft3)",771264,22.918135084539269,"-",0.04,30850.560000000001,0,0,60,1,0.04,0.04,2.4,"No","Concrete crushed to aggregate (for sub-base layers), Portland Cement 300 kg / m3",0,0,1,0,0,0,0]
[null,null,null,null,"Ready-mix concrete, RC 32/40 (32/40 MPa), 50% Cement replacement with blast furnace slag (GGBS)",6045312,179.63664457849225,"-",0.04,241812.48000000001,363300,1.1000000000000001E-2,60,1,0.04,0.04,2.4,"No","Concrete crushed to aggregate (for sub-base layers), Portland Cement 300 kg / m3",0,0,1,0,0,0,0]
[null,null,null,null,"Reinforced concrete beam for interior use, 2387.04 kg/m3, C25/30 XC1/XC2 CEM II/A L or LL (SNBPE)",489677.38,14.550779425311266,"-",0,0,0,0,60,1,0,0,0,"No","Rebar separated (2 %), concrete to aggregate",0,0,1,0,0,0,0]
[null,null,null,null,"Reinforcement steel (rebar), generic, 90% recycled content, A615",257167.69,7.6417463524797196,"-",4.8000000000000001E-2,12344.04912,220744.8,3.415E-2,60,1,4.8000000000000001E-2,4.8000000000000001E-2,2.88,"No","Steel recycling",0,1,0,0,0,257167.73800000001,7.641747778801296]
[null,null,null,null,"Reinforcement steel (rebar), generic, 97% recycled content (typical), A615",532275.01,{"$f":"IF(AND(F212<>0,$D$31<>0),F212/$D$31,0)","v":15.816569399459187},"-",4.7999999999999994E-2,25549.200479999996,492424.18000000005,2.9399999999999999E-2,60,1,4.7999999999999994E-2,4.7999999999999994E-2,2.8799999999999994,"No","Steel recycling",0,1,0,0,0,532275.05799999996,15.816570825780762]
[null,null,null,null,"Structural laminated veneer lumber (LVL), 570 kg/m3, moisture content 13 %, NelsonPine® LVL, NP Frame LVL 8, NP Frame LVL 11, NP Frame LVL 13, NP Form LVL 9, NP Form LVL 11, NP Boxxa, NP Plank (Nelson Pine Industries Ltd)",7669.64,{"$f":"IF(AND(F213<>0,$D$31<>0),F213/$D$31,0)","v":0.2279036044334829},"-",0.17,1303.8388000000002,0,0,60,1,0.17,0.17,10.200000000000001,"No","Wood incineration",0,0,1,0,0,0,0]
[null,null,null,null,"Wooden decking, cladding and planed timber for joinery applications, 755kg/m3, Moistr. 3-5%, Accoya Beech (Accsys Technologies PLC)",5083.97,{"$f":"IF(AND(F214<>0,$D$31<>0),F214/$D$31,0)","v":0.15107033548272072},"-",0.18,915.1146,0,0,60,1,0.18,0.18,10.799999999999999,"No","Wood incineration",0,0,1,0,0,0,0]
[null,null,null,null,null,null,{"$f":"IF(AND(F215<>0,$D$31<>0),F215/$D$31,0)","v":0},"-",null,0,null,null,null,0,0,null,0,null,null,0,0,1,0,0,0,0]
[null,null,null,null,null,null,0,"-",null,0,null,null,null,0,0,null,0,null,null,0,0,1,0,0,0,0]
[null,null,null,null,null,null,0,"-",null,{"$f":"I217*F217","v":0},null,null,null,0,0,null,0,null,null,0,0,1,0,0,0,0]
[null,2.2999999999999998,"Superstructure: Roof",null,"-",{"$f":"SUM(F219:F238)","v":966547.61999999988},{"$f":"IF(AND(F218<>0,$D$31<>0),F218/$D$31,0)","v":28.720994264998659},{"$f":"SUMPRODUCT((C91:D454=\"Superstructure: Roof\")*G91:G454)","v":29.024168721956432},"-",{"$f":"SUM(J219:J238)","v":13013.623500000002},"-","-","-","-",{"$f":"SUM(O219:O238)","v":2.1749999999999998},"-",{"$f":"SUM(Q219:Q238)","v":40.630000000000003},"-","-",{"$f":"IF(W218<>0,W218/($F$218+$O$218),0)","v":0},{"$f":"IF(Y218<>0,Y218/($F$218+$O$218),0)","v":0},1,{"$f":"SUM(W219:W238)","v":0},0,{"$f":"SUM(Y219:Y238)","v":0},0]
[null,2.2999999999999998,"Superstructure: Roof",null,"Bituminous waterproofing system - Single layer, 5.44 kg/m2, AXTER, DERBIGUM, MEPLE, SIPLAST-ICOPAL, SOPREMA (Chambre Syndicale Française de l’Etanchéité)",10202.73,{"$f":"IF(AND(F219<>0,$D$31<>0),F219/$D$31,0)","v":0.30317445695777495},"-",0.1,{"$f":"I219*F219","v":1020.273},0,0,30,2,0.2,0.1,3,"No","Landfilling (for inert materials)",0,0,1,0,0,0,0]
[null,null,null,null,"Drainage floor underlay from EPS, ép.25 mm, DONNEE PAR DEFAUT (DED)",868.87,{"$f":"IF(AND(F220<>0,$D$31<>0),F220/$D$31,0)","v":2.581850057944314E-2},"-",0.04,34.754800000000003,0,0,60,1,0.04,0.04,2.4,"No","Plastic-based material incineration",0,0,1,0,0,0,0]
[null,null,null,null,"Drainage layer for green roofs from pozzolona and conifer bark, biogenic CO2 not subtracted (for CML), 971 kg/m3, Couche de drainage SOPRALITHE Z (SOPREMA SAS)",3538.38,{"$f":"IF(AND(F221<>0,$D$31<>0),F221/$D$31,0)","v":0.10514307788310107},"-",0,0,0,0,60,{"$f":"IF(M221<>0,INT(60/M221),0)","v":1},{"$f":"N221*I221","v":0},0,{"$f":"P221*M221","v":0},"No","null",0,0,{"$f":"1-T221-U221","v":1},{"$f":"T221*(F221+O221)","v":0},{"$f":"IF(AND(W221<>0,$D$31<>0),W221/$D$31,0)","v":0},{"$f":"U221*(F221+O221)","v":0},0]
[null,null,null,null,"Geocellular system for sub-base drainage, Permavoid 150 (PVPP150) (Polypipe Civils & Green Urbanisation)",49676.55,1.4761403143850476,"-",7.4999999999999983E-2,3725.7412499999996,0,0,30,2,0.14999999999999997,7.4999999999999983E-2,2.2499999999999996,"No","Plastic-based material incineration",0,0,1,0,0,0,0]
[null,null,null,null,"Geotextile from polypropylene, 300 g/m2 (MDEGD)",562.65,1.6719163224675364E-2,"-",0.1,56.265000000000001,0,0,10,6,0.60000000000000009,0.1,1,"No","Plastic-based material incineration",0,0,1,0,0,0,0]
[null,null,null,null,"Glass wool insulation, R=5.0 m2K/W, L=0.040 W/mK, ép. 200 mm,  2.295 kg/m2, Lambda=0.04 W/(m.K), ISOLANT TOITURE 200 (ISOVER)",4226.01,0.12557602591150863,"-",0.08,338.08080000000001,2113.0100000000002,2.294E-3,60,1,0.08,0.08,4.8,"No","Landfilling (for inert materials)",0,0,1,0,0,0,0]
[null,null,null,null,"Laminated veneer lumber (LVL), 9% moisture content, 510 kg/m3 (Stora Enso)",5368.43,0.15952307372299648,"-",0.17,912.63310000000013,0,0,60,1,0.17,0.17,10.200000000000001,"No","Wood incineration",0,0,1,0,0,0,0]
[null,null,null,null,"Laminated zinc cladding with standing seam, 0.7x200x4000 mm, 6.4 kg/m2, VMZINC (UMICORE)",4432.6899999999996,0.13171752889786942,"-",7.4999999999999997E-2,332.45174999999995,82.47,2E-3,60,1,7.4999999999999997E-2,7.4999999999999997E-2,4.5,"No","Landfilling (for inert materials)",0,0,1,0,0,0,0]
[null,null,null,null,"Polyethylene sealing film for slabs, ép. 150 micron, Donnee par default (MDEGD)",253.19,7.5235491635218255E-3,"-",0.1,25.319000000000003,0,0,30,2,0.2,0.1,3,"No","Plastic-based material incineration",0,0,1,0,0,0,0]
[null,null,null,null,"Polypropylene vapour membrane, French average, 0.18 kg/m2 (MDEGD)",337.59000000000003,1.003149793480522E-2,"-",0.1,33.759000000000007,0,0,30,2,0.2,0.1,3,"No","Plastic-based material incineration",0,0,1,0,0,0,0]
[null,null,null,null,"Precast concrete paver, 60 mm, 135.78 kg/m2 (CENTRE D`ETUDES ET DE RECHERCHES DE L`INDUSTRIE DU BÉTON)",639188.89,18.993518854188334,"-",0,0,0,0,60,1,0,0,0,"No","Rebar separated (2 %), concrete to aggregate",0,0,1,0,0,0,0]
[null,null,null,null,"Precast hollow core flooring, 150 mm, 2000 kg/m3 (PFF, BPCF)",194000,5.7647163700115884,"-",0,0,0,0,60,1,0,0,0,"No","Rebar separated (2 %), concrete to aggregate",0,0,1,0,0,0,0]
[null,null,null,null,"Rock wool insulation for ETICS and flat roofs, R=1 m2K/W, L=0.044 W/mK, 44 mm, 0.97 kg/m2, 22 kg/m3, Lambda=0.044 W/(m.K) (Rockwool)",21342.19,0.63418387662318365,"-",0.08,1707.3751999999999,14820.960000000003,2.5058823529411759E-3,60,1,0.08,0.04,2.4,"No","Landfilling (for inert materials)",0,0,1,0,0,0,0]
[null,null,null,null,"Waterproofing membrane, 1.8 mm, 2090 g/m2, BlueProof BASTA (Protan)",12899.13,0.38329807149436895,"-",0.10000000000000002,1289.9130000000002,0,0,30,2,0.20000000000000004,0.04,1.2,"No","Plastic-based material incineration",0,0,1,0,0,0,0]
[null,null,null,null,"Wooden cladding and decking, pine or spruce, 445 kg/m3, 7-29 mm, 8-18%, moisture content (Stora Enso)",19650.32,{"$f":"IF(AND(F233<>0,$D$31<>0),F233/$D$31,0)","v":0.58390990402044396},"-",0.18,3537.0575999999996,0,0,60,1,0.18,4.8000000000000001E-2,2.88,"No","Wood incineration",0,0,1,0,0,0,0]
[null,null,null,null,null,null,{"$f":"IF(AND(F234<>0,$D$31<>0),F234/$D$31,0)","v":0},"-",null,0,null,null,null,0,0,4.8000000000000001E-2,0,null,null,0,0,1,0,0,0,0]
[null,null,null,null,null,null,{"$f":"IF(AND(F235<>0,$D$31<>0),F235/$D$31,0)","v":0},"-",null,0,null,null,null,0,0,0.08,0,null,null,0,0,1,0,0,0,0]
[null,null,null,null,null,null,{"$f":"IF(AND(F236<>0,$D$31<>0),F236/$D$31,0)","v":0},"-",null,0,null,null,null,0,0,0.10000000000000002,0,null,null,0,0,1,0,0,0,0]
[null,null,null,null,null,null,0,"-",null,0,null,null,null,0,0,0.18,0,null,null,0,0,1,0,0,0,0]
[null,null,null,null,null,null,0,"-",null,0,null,null,null,0,0,null,0,null,null,0,0,1,0,0,0,0]
[null,2.4,"Superstructure: Stairs and Ramps",null,"-",{"$f":"SUM(F240:F254)","v":1057404.74},{"$f":"IF(AND(F239<>0,$D$31<>0),F239/$D$31,0)","v":31.420816569102307},"-","-",{"$f":"SUM(J240:J254)","v":43028.308800000006},"-","-","-","-",{"$f":"SUM(O240:O254)","v":0.316},"-",{"$f":"SUM(Q240:Q254)","v":18.959999999999997},"-","-",{"$f":"IF(W239<>0,W239/($F$239+$O$239),0)","v":0},{"$f":"IF(Y239<>0,Y239/($F$239+$O$239),0)","v":8.3980869484323706E-2},0.91601913051567629,{"$f":"SUM(W240:W254)","v":0},0,{"$f":"SUM(Y240:Y254)","v":88801.796000000002},2.6387482839568537]
[null,2.4,"Superstructure: Stairs and Ramps",null,"One storey timber staircase, 2587x225x905 mm, 41.9 deg (Stair Craft)",155.04,{"$f":"IF(AND(F240<>0,$D$31<>0),F240/$D$31,0)","v":4.6070186907556532E-3},"-",0.18,{"$f":"I240*F240","v":27.907199999999996},0,0,60,1,0.18,0.18,10.799999999999999,"No",60,0,0,1,0,0,0,0]
[null,null,null,null,"Ready-mix concrete, RC 35/45 (35/45 MPa), 50% Cement replacement with blast furnace slag (GGBS)",968448,{"$f":"IF(AND(F241<>0,$D$31<>0),F241/$D$31,0)","v":28.77746411909785},"-",0.04,38737.919999999998,58200,3.3849999999999999E-4,60,1,0.04,0.04,2.4,"No",60,0,0,1,0,0,0,0]
[null,null,null,null,"Reinforcement steel (rebar), generic, 90% recycled content, A615",50009.279999999999,{"$f":"IF(AND(F242<>0,$D$31<>0),F242/$D$31,0)","v":1.486027397260274},"-",4.8000000000000001E-2,2400.44544,42926.400000000001,2.4738461538461537E-3,60,1,4.8000000000000001E-2,4.8000000000000001E-2,2.88,"No",60,0,1,0,0,0,50009.328000000001,1.4860288235818502]
[null,null,null,null,"Reinforcement steel (rebar), generic, 97% recycled content (typical), A615",38792.420000000006,1.1527180340534278,"-",4.8000000000000001E-2,1862.0361600000003,35888.06,3.0325E-3,60,1,4.8000000000000001E-2,4.8000000000000001E-2,2.88,"No",60,0,1,0,0,0,38792.468000000008,1.1527194603750039]
[null,null,null,null,null,null,0,"-",null,0,null,null,null,0,0,null,0,null,null,0,0,1,0,0,0,0]
[null,null,null,null,null,null,0,"-",null,0,null,null,null,0,0,null,0,null,null,0,0,1,0,0,0,0]
[null,null,null,null,null,null,0,"-",null,0,null,null,null,0,0,null,0,null,null,0,0,1,0,0,0,0]
[null,null,null,null,null,null,0,"-",null,0,null,null,null,0,0,null,0,null,null,0,0,1,0,0,0,0]
[null,null,null,null,null,null,0,"-",null,0,null,null,null,0,0,null,0,null,null,0,0,1,0,0,0,0]
[null,null,null,null,null,null,0,"-",null,0,null,null,null,0,0,null,0,null,null,0,0,1,0,0,0,0]
[null,null,null,null,null,null,0,"-",null,0,null,null,null,0,0,null,0,null,null,0,0,1,0,0,0,0]
[null,null,null,null,null,null,0,"-",null,0,null,null,null,0,0,null,0,null,null,0,0,1,0,0,0,0]
[null,null,null,null,null,null,0,"-",null,0,null,null,null,0,0,null,0,null,null,0,0,1,0,0,0,0]
[null,null,null,null,null,null,0,"-",null,0,null,null,null,0,0,null,0,null,null,0,0,1,0,0,0,0]
[null,null,null,null,null,null,{"$f":"IF(AND(F254<>0,$D$31<>0),F254/$D$31,0)","v":0},"-",null,0,null,null,null,0,0,null,0,null,null,0,0,1,0,0,0,0]
[null,2.5,"Superstructure: External Walls",null,"-",{"$f":"SUM(F256:F275)","v":7668788.5299999993},{"$f":"IF(AND(F255<>0,$D$31<>0),F255/$D$31,0)","v":227.87830297447476},{"$f":"SUMPRODUCT((C91:D454=\"Superstructure: External Walls\")*G91:G454)+SUMPRODUCT((C91:D454=\"Superstructure: Windows and External Doors\")*G91:G454)","v":231.47520518230172},"-",{"$f":"SUM(J256:J275)","v":410923.53147999995},"-","-","-","-",{"$f":"SUM(O256:O275)","v":2.2160000000000006},"-",{"$f":"SUM(Q256:Q275)","v":86.160000000000011},"-","-",{"$f":"IF(W255<>0,W255/($F$255+$O$255),0)","v":0},{"$f":"IF(Y255<>0,Y255/($F$255+$O$255),0)","v":2.7294594797645042E-2},0.97270540520235493,{"$f":"SUM(W256:W275)","v":0},0,{"$f":"SUM(Y256:Y275)","v":209316.53600000002},6.2198477401717538]
[null,2.5,"Superstructure: External Walls",null,"Aluminium facade cladding for ventilated curtain walls (VCW), 1 mm, 5.05 kg/m2, wellTEC, planTEC and colTEC (MN Metall)",7415.67,{"$f":"IF(AND(F256<>0,$D$31<>0),F256/$D$31,0)","v":0.22035687754434968},"-",7.4999999999999997E-2,{"$f":"I256*F256","v":556.17525000000001},0,0,60,1,7.4999999999999997E-2,7.4999999999999997E-2,4.5,"No","Aluminium recycling",0,1,0,0,0,7415.7449999999999,0.22035910617181231]
[null,null,null,null,"Cement bonded particle board, 8-32 mm, 10.8-43.2 kg/m2, 1350 kg/m3 (VIROC)",2905.88,{"$f":"IF(AND(F257<>0,$D$31<>0),F257/$D$31,0)","v":8.6348319614893171E-2},"-",0.05,145.29400000000001,0,0,30,2,0.1,0.05,1.5,"No","Concrete crushed to aggregate (for sub-base layers), Portland Cement 300 kg / m3",0,0,1,0,0,0,0]
[null,null,null,null,"Cross laminated timber (CLT), 481 kg/m3, 12% (± 3%) moisture content (One Click LCA)",12888.07,{"$f":"IF(AND(F258<>0,$D$31<>0),F258/$D$31,0)","v":0.38296942323121264},"-",0.17,2190.9719,0,0,60,1,0.17,0.17,10.200000000000001,"No","Wood incineration",0,0,1,0,0,0,0]
[null,null,null,null,"Galvanized steel joists for drywall, Steel type: X51D+ Z 100 g/m2, steel sheet: 0.5 mm, Gypsteel ELPR, ELR, GK, GKC, SLIM, SK, SKP, SKF, SKE, SKT, ATR, XR. (Lundell)",49742.47,1.478099129349538,"-",7.4999999999999997E-2,3730.68525,13511.429999999998,1.5825000000000001E-3,60,1,7.4999999999999997E-2,7.4999999999999997E-2,4.5,"No","Steel recycling",0,1,0,0,0,49742.544999999998,1.4781013579770006]
[null,null,null,null,"Glass wool/mineral wool insulation with ECOSE Technology, 0.031-0.033 W/mK (Knauf)",20653.920000000002,0.61373191097376167,"-",0.08,1652.3136000000002,12430.599999999999,5.3666666666666663E-3,60,1,0.08,0.08,4.8,"No","Landfilling (for inert materials)",0,0,1,0,0,0,0]
[null,null,null,null,"Glass wool/mineral wool insulation with ECOSE Technology, 0.040-0.046 W/mK (Knauf)",14024.130000000001,0.41672748343386923,"-",0.08,1121.9304000000002,8440.4499999999989,8.2000000000000007E-3,60,1,0.08,0.08,4.8,"No","Landfilling (for inert materials)",0,0,1,0,0,0,0]
[null,null,null,null,"Glued laminated timber (Glulam), 100-2400mm  x 60-240mm x 50m, 483.21 kg/m3 (Studiengemeinschaft Holzleimbau e.V.)",62593.57,1.8599699878168365,"-",0.17,10640.9069,0,0,60,1,0.17,0.17,10.200000000000001,"No","Wood incineration",0,0,1,0,0,0,0]
[null,null,null,null,"Gypsum plasterboard, 12.5 mm, 8.985 kg/m2 (average product weight) (Etex Building Performance)",76311.08,2.2675862478828042,"-",0.13,9920.4404000000013,1085.3100000000002,3.7666666666666663E-5,30,2,0.26,0.13,3.9000000000000004,"No","Gypsum recycling",0,1,0,0,0,76311.34,2.2675939737913411]
[null,null,null,null,"Particleboard, 660 kg/m3 (Norbord)",68595.8,2.0383264493507265,"-",0.17,11661.286000000002,0,0,30,2,0.34,0.17,5.1000000000000005,"No","Wood incineration",0,0,1,0,0,0,0]
[null,null,null,null,"Particleboard, type P2, 28mm, 18.4kg/m2, 659kg/m3, biogenic CO2 not subtracted (for CML) (INSTITUT TECHNOLOGIQUE FCBA)",13094.57,0.38910557751166314,"-",0.17,2226.0769,0,0,30,2,0.34,0.17,5.1000000000000005,"No","Wood incineration",0,0,1,0,0,0,0]
[null,null,null,null,"Reinforcement steel (rebar), generic, 90% recycled content, A615",60971.320000000007,1.8117647758000774,"-",4.8000000000000001E-2,2926.6233600000005,52335.9,1.1039999999999999E-2,60,1,4.8000000000000001E-2,4.8000000000000001E-2,2.88,"No","Steel recycling",0,1,0,0,0,60971.368000000009,1.8117662021216536]
[null,null,null,null,"Reinforcement steel (rebar), generic, 97% recycled content (typical), A615",14875.49,0.44202567378836954,"-",4.8000000000000001E-2,714.02351999999996,13761.779999999999,3.0000000000000001E-3,60,1,4.8000000000000001E-2,4.8000000000000001E-2,2.88,"No","Steel recycling",0,1,0,0,0,14875.538,0.44202710010994561]
[null,null,null,null,"Rock wool insulation panels, L=0.037 W/mK, R=2.63 m2k/W, 100 mm, 3.3 kg/m2, 33 kg/m3, Lambda=0.037 W/(m.K), FLEXI 1200x600x100 (ROCKWOOL, UK plant)",7302.6399999999994,0.21699818738299703,"-",0.08,584.21119999999996,5071.28,4.0000000000000001E-3,60,1,0.08,0.08,4.8,"No","Landfilling (for inert materials)",0,0,1,0,0,0,0]
[null,null,null,null,"Rock wool/mineral wool insulation, L = 0.035-0.037 W/mK, 33-45 kg/m3, Fire resistance class = A1 (Knauf Insulation (2019))",45032.6,1.3381451876504322,"-",0.08,3602.6080000000002,8339.3700000000008,1.392E-3,60,1,0.08,0.08,4.8,"No","Landfilling (for inert materials)",0,0,1,0,0,0,0]
[null,null,null,null,"Single skin wall from bricks, including mortar, with Mortar 1:3 cement:sand mix (Using CEM I cement)",7002384.6599999992,{"$f":"IF(AND(F270<>0,$D$31<>0),F270/$D$31,0)","v":208.07609009597954},"-",4.9999999999999996E-2,350119.23299999995,0,0,60,1,4.9999999999999996E-2,4.9999999999999996E-2,2.9999999999999996,"No","Brick/stone crushed to aggregate (for sub-base layers)",0,0,1,0,0,0,0]
[null,null,null,null,"Wooden decking, cladding and planed timber for joinery applications, 540kg/m3, Moistr. 3-5%, Accoya Scots Pine (Accsys Technologies PLC)",5220.6099999999997,{"$f":"IF(AND(F271<>0,$D$31<>0),F271/$D$31,0)","v":0.1551305975693103},"-",0.18,939.70979999999986,0,0,60,1,0.18,0.18,10.799999999999999,"No","Wood incineration",0,0,1,0,0,0,0]
[null,null,null,null,"Ready mix concrete",{"$f":"SUM(F275:F281)","v":204776.05000000002},{"$f":"IF(AND(F272<>0,$D$31<>0),F272/$D$31,0)","v":6.0849270495943903},"-",0.04,8191.0420000000013,51837.189999999995,2.8039523809523809E-4,60,1,0.04,0.04,2.4,"No","Concrete crushed to aggregate (for sub-base layers), Portland Cement 300 kg / m3",0,0,1,0,0,0,0]
[null,null,null,null,null,null,{"$f":"IF(AND(F273<>0,$D$31<>0),F273/$D$31,0)","v":0},"-",null,0,null,null,null,0,0,null,0,null,null,0,0,1,0,0,0,0]
[null,null,null,null,null,null,0,"-",null,0,null,null,null,0,0,null,0,null,null,0,0,1,0,0,0,0]
[null,null,null,null,null,null,0,"-",null,0,null,null,null,0,0,null,0,null,null,0,0,1,0,0,0,0]
[null,2.6,"Superstructure: Windows and External Doors",null,"-",{"$f":"SUM(F277:F291)","v":111348.35},{"$f":"IF(AND(F276<>0,$D$31<>0),F276/$D$31,0)","v":3.3087198763854637},{"$f":"SUMPRODUCT((C91:D454=\"Superstructure: External Walls\")*G91:G454)+SUMPRODUCT((C91:D454=\"Superstructure: Windows and External Doors\")*G91:G454)","v":231.47520518230172},"-",{"$f":"SUM(J277:J291)","v":0},"-","-","-","-",{"$f":"SUM(O277:O291)","v":0},"-",{"$f":"SUM(Q277:Q291)","v":0},"-","-",{"$f":"IF(W276<>0,W276/($F$276+$O$276),0)","v":0},{"$f":"IF(Y276<>0,Y276/($F$276+$O$276),0)","v":1},0,{"$f":"SUM(W277:W291)","v":0},0,{"$f":"SUM(Y277:Y291)","v":111348.35},3.3087198763854637]
[null,2.6,"Superstructure: Windows and External Doors",null,"Aluminium frame sliding windows and patio doors, 25.28 kg/m2 (SNFA)",2282.5300000000002,{"$f":"IF(AND(F277<>0,$D$31<>0),F277/$D$31,0)","v":6.7825453897126561E-2},"-",0,0,0,0,30,2,0,0,0,"No","Glass-containing product recycling (80 % glass)",0,1,0,0,0,2282.5300000000002,6.7825453897126561E-2]
[null,null,null,null,"Aluminium framed sliding windows and patio doors, 23.24 kg/m2, Coulissant ASKEY  (HYDRO BUILDING SYSTEMS)",3734.67,{"$f":"IF(AND(F278<>0,$D$31<>0),F278/$D$31,0)","v":0.11097584167830506},"-",0,0,549.58999999999992,0,30,2,0,0,0,"No","Glass-containing product recycling (80 % glass)",0,1,0,0,0,3734.67,0.11097584167830506]
[null,null,null,null,"Aluminium framed windows, double leaf, 26.55 kg/m2 (SNFA)",86076.42,{"$f":"IF(AND(F279<>0,$D$31<>0),F279/$D$31,0)","v":2.5577636466288296},"-",0,0,0,0,30,2,0,0,0,"No","Glass-containing product recycling (80 % glass)",0,1,0,0,0,86076.42,2.5577636466288296]
[null,null,null,null,"Aluminum frame sliding door, size: 3 x 2.18m, double glazing, 33.954 kg/m2, SlimPatio 68 Sliding Door (Reynaers)",1204.3499999999999,3.5787299794966268E-2,"-",0,0,4.04,0,30,2,0,0,0,"No","Glass-containing product recycling (80 % glass)",0,1,0,0,0,1204.3499999999999,3.5787299794966268E-2]
[null,null,null,null,"Double metal door (for technical premises, cellars, service ...), ép.42mm, DONNEE PAR DEFAUT (DED)",129.72999999999999,3.8549312096989863E-3,"-",0,0,0,0,30,2,0,0,0,"No","Metal-containing product recycling (90 % metal)",0,1,0,0,0,129.72999999999999,3.8549312096989863E-3]
[null,null,null,null,"Façade glass brick, 190x190 mm, 55 kg/m2, DONNEE PAR DEFAUT (DED)",17920.650000000001,0.53251270317653709,"-",0,0,0,0,35,1,0,0,0,"No","Glass recycling",0,1,0,0,0,17920.650000000001,0.53251270317653709]
[null,null,null,null,null,null,0,"-",null,0,null,null,null,0,0,null,0,null,null,0,0,1,0,0,0,0]
[null,null,null,null,null,null,0,"-",null,0,null,null,null,0,0,null,0,null,null,0,0,1,0,0,0,0]
[null,null,null,null,null,null,0,"-",null,0,null,null,null,{"$f":"IF(M285<>0,INT(60/M285),0)","v":0},{"$f":"N285*I285","v":0},null,{"$f":"P285*M285","v":0},null,null,0,0,{"$f":"1-T285-U285","v":1},{"$f":"T285*(F285+O285)","v":0},{"$f":"IF(AND(W285<>0,$D$31<>0),W285/$D$31,0)","v":0},{"$f":"U285*(F285+O285)","v":0},0]
[null,null,null,null,null,null,0,"-",null,0,null,null,null,0,0,null,0,null,null,0,0,1,0,0,0,0]
[null,null,null,null,null,null,0,"-",null,0,null,null,null,0,0,null,0,null,null,0,0,1,0,0,0,0]
[null,null,null,null,null,null,0,"-",null,0,null,null,null,0,0,null,0,null,null,0,0,1,0,0,0,0]
[null,null,null,null,null,null,0,"-",null,0,null,null,null,0,0,null,0,null,null,0,0,1,0,0,0,0]
[null,null,null,null,null,null,0,"-",null,0,null,null,null,0,0,null,0,null,null,0,0,1,0,0,0,0]
[null,null,null,null,null,null,{"$f":"IF(AND(F291<>0,$D$31<>0),F291/$D$31,0)","v":0},"-",null,0,null,null,null,0,0,null,0,null,null,0,0,1,0,0,0,0]
[null,2.7,"Superstructure: Internal Walls and Partitions",null,"-",{"$f":"SUM(F293:F312)","v":1081609.53},{"$f":"IF(AND(F292<>0,$D$31<>0),F292/$D$31,0)","v":32.140062698719284},{"$f":"SUMPRODUCT((C91:D454=\"Superstructure: Internal Doors\")*G91:G454)+SUMPRODUCT((C91:D454=\"Superstructure: Internal Walls and Partitions\")*G91:G454)","v":32.645411404629606},"-",{"$f":"SUM(J293:J312)","v":84030.275089999981},"-","-","-","-",{"$f":"SUM(O293:O312)","v":1.133},"-",{"$f":"SUM(Q293:Q312)","v":22.080000000000002},"-","-",{"$f":"IF(W292<>0,W292/($F$292+$O$292),0)","v":0},{"$f":"IF(Y292<>0,Y292/($F$292+$O$292),0)","v":0.357923508193077},0.64207649180692306,{"$f":"SUM(W293:W312)","v":0},0,{"$f":"SUM(Y293:Y312)","v":387133.88299999991},11.503696044929127]
[null,2.7,"Superstructure: Internal Walls and Partitions",null,"Aluminium framed glazed partition systems, single glazed, per m2, 90% glass, 9% aluminium, width 3.0m; height 2.70m, glazing thickness 12mm, Optima 117, 217, Revolution 54,100, Kinetic, Technishield (Optima)",226.8,{"$f":"IF(AND(F293<>0,$D$31<>0),F293/$D$31,0)","v":6.7393694470032394E-3},"-",0,0,75.98,0,30,2,0,0,0,"No","Glass-containing product recycling (80 % glass)",0,1,0,0,0,226.8,6.7393694470032394E-3]
[null,null,null,null,"Concrete block wall, with cellular high density solid blocks, per m2 of wall including mortar, 140 mm thickness wall",422936.58,{"$f":"IF(AND(F294<>0,$D$31<>0),F294/$D$31,0)","v":12.567574361869671},"-",5.000000000000001E-2,21146.829000000005,0,0,60,1,5.000000000000001E-2,5.000000000000001E-2,3.0000000000000004,"No","Concrete crushed to aggregate (for sub-base layers), Portland Cement 200 kg / m3",0,0,1,0,0,0,0]
[null,null,null,null,"Concrete block wall, with high density solid blocks, per m2 of wall including mortar, 140 mm thickness wall",255017.95,{"$f":"IF(AND(F295<>0,$D$31<>0),F295/$D$31,0)","v":7.5778667577927674},"-",0.05,12750.897500000001,0,0,60,1,0.05,0.05,3,"No","Concrete crushed to aggregate (for sub-base layers), Portland Cement 200 kg / m3",0,0,1,0,0,0,0]
[null,null,null,null,"Glass wool insulation panels, unfaced, generic, L = 0.031 W/mK, R = 3.23 m2K/W (18 ft2°Fh/BTU), 25 kg/m3 (1.56 lbs/ft3), (applicable for densities: 0-25 kg/m3 (0-1.56 lbs/ft3)), Lambda=0.031 W/(m.K)",14199.569999999998,0.42194068879446106,"-",0.08,1135.9655999999998,1577.73,3.0128571428571428E-4,60,1,0.08,0.08,4.8,"No","Landfilling (for inert materials)",0,0,1,0,0,0,0]
[null,null,null,null,"Gypsum plaster board, regular, generic, 6.5-25 mm (0.25-0.98 in), 10.725 kg/m2 (2.20 lbs/ft2) (for 12.5 mm/0.49 in), 858 kg/m3 (53.6 lbs/ft3)",306635.17999999988,9.111674442100254,"-",0.12999999999999995,39862.573399999965,8722.0599999999977,9.2571428571428595E-5,30,2,0.2599999999999999,0.12999999999999995,3.8999999999999986,"No","Gypsum recycling",0,1,0,0,0,306635.43999999989,9.1116821680087927]
[null,null,null,null,"Gypsum plasterboard, 12.5 mm, 8.985 kg/m2 (average product weight) (Etex Building Performance)",64462.320000000007,1.915499955427451,"-",0.13,8380.1016000000018,916.80000000000007,2.9966666666666669E-5,30,2,0.26,0.13,3.9000000000000004,"No","Gypsum recycling",0,1,0,0,0,64462.580000000009,1.9155076813359881]
[null,null,null,null,"Structural steel profiles, generic, 60% recycled content,  I, H, U, L, and T sections, S235, S275 and S355",15809.03,0.46976584554125933,"-",3.3000000000000002E-2,521.69799,9182.4,1.042E-3,60,1,3.3000000000000002E-2,3.3000000000000002E-2,1.98,"No","Steel recycling",0,1,0,0,0,15809.063,0.46976682613734289]
[null,null,null,null,"Water-borne interior paints, 1.36 kg/L, average coverage 8-10 m2/L, Biora, Ekora, Kolibri Sand, Paneelikattomaali, Ranch, Superlateksi, Tapettipohjamaali, Teknospro, Tela, Timantti, Trend (Teknos)",2322.1,6.9001277746411904E-2,"-",9.9999999999999992E-2,232.20999999999998,0,0,15,4,0.39999999999999997,9.9999999999999992E-2,1.4999999999999998,"No","Landfilling (for inert materials)",0,0,1,0,0,0,0]
[null,null,null,null,null,null,0,"-",null,0,null,null,null,0,0,null,0,null,null,0,0,1,0,0,0,0]
[null,null,null,null,null,null,0,"-",null,0,null,null,null,0,0,null,0,null,null,0,0,1,0,0,0,0]
[null,null,null,null,null,null,0,"-",null,0,null,null,null,0,0,null,0,null,null,0,0,1,0,0,0,0]
[null,null,null,null,null,null,0,"-",null,0,null,null,null,0,0,null,0,null,null,0,0,1,0,0,0,0]
[null,null,null,null,null,null,0,"-",null,0,null,null,null,0,0,null,0,null,null,0,0,1,0,0,0,0]
[null,null,null,null,null,null,0,"-",null,0,null,null,null,0,0,null,0,null,null,0,0,1,0,0,0,0]
[null,null,null,null,null,null,{"$f":"IF(AND(F307<>0,$D$31<>0),F307/$D$31,0)","v":0},"-",null,0,null,null,null,0,0,null,0,null,null,0,0,1,0,0,0,0]
[null,null,null,null,null,null,{"$f":"IF(AND(F308<>0,$D$31<>0),F308/$D$31,0)","v":0},"-",null,0,null,null,null,0,0,null,0,null,null,0,0,1,0,0,0,0]
[null,null,null,null,null,null,{"$f":"IF(AND(F309<>0,$D$31<>0),F309/$D$31,0)","v":0},"-",null,0,null,null,null,0,0,null,0,null,null,0,0,1,0,0,0,0]
[null,null,null,null,null,null,{"$f":"IF(AND(F310<>0,$D$31<>0),F310/$D$31,0)","v":0},"-",null,0,null,null,null,0,0,null,0,null,null,0,0,1,0,0,0,0]
[null,null,null,null,null,null,0,"-",null,0,null,null,null,0,0,null,0,null,null,0,0,1,0,0,0,0]
[null,null,null,null,null,null,0,"-",null,0,null,null,null,0,0,null,0,null,null,0,0,1,0,0,0,0]
[null,2.8,"Superstructure: Internal Doors",null,"-",{"$f":"SUM(F314:F328)","v":8894.16},{"$f":"IF(AND(F313<>0,$D$31<>0),F313/$D$31,0)","v":0.26429025644073334},{"$f":"SUMPRODUCT((C91:D454=\"Superstructure: Internal Doors\")*G91:G454)+SUMPRODUCT((C91:D454=\"Superstructure: Internal Walls and Partitions\")*G91:G454)","v":32.645411404629606},"-",{"$f":"SUM(J314:J328)","v":0},"-","-","-","-",{"$f":"SUM(O314:O328)","v":0},"-",{"$f":"SUM(Q314:Q328)","v":0},"-","-",{"$f":"IF(W313<>0,W313/($F$313+$O$313),0)","v":0},{"$f":"IF(Y313<>0,Y313/($F$313+$O$313),0)","v":0.11340250231612654},0.88659749768387341,{"$f":"SUM(W314:W328)","v":0},0,{"$f":"SUM(Y314:Y328)","v":1008.62},2.9971176418149944E-2]
[null,2.8,"Superstructure: Internal Doors",null,"Doors with wooden frame, interior, DONNEE PAR DEFAUT (DED)",7885.54,{"$f":"IF(AND(F314<>0,$D$31<>0),F314/$D$31,0)","v":0.23431908002258342},"-",0,0,0,0,30,2,0,0,0,"No","Wood-containing product incineration (80% wood)",0,0,1,0,0,0,0]
[null,null,null,null,"Double metal door (for technical premises, cellars, service ...), ép.42mm, DONNEE PAR DEFAUT (DED)",1008.62,{"$f":"IF(AND(F315<>0,$D$31<>0),F315/$D$31,0)","v":2.9971176418149944E-2},"-",0,0,0,0,30,2,0,0,0,"No","Metal-containing product recycling (90 % metal)",0,1,0,0,0,1008.62,2.9971176418149944E-2]
[null,null,null,null,null,null,{"$f":"IF(AND(F316<>0,$D$31<>0),F316/$D$31,0)","v":0},"-",null,0,null,null,null,0,0,null,0,null,null,0,0,1,0,0,0,0]
[null,null,null,null,null,null,0,"-",null,0,null,null,null,0,0,null,0,null,null,0,0,1,0,0,0,0]
[null,null,null,null,null,null,0,"-",null,0,null,null,null,0,0,null,0,null,null,0,0,1,0,0,0,0]
[null,null,null,null,null,null,0,"-",null,0,null,null,null,0,0,null,0,null,null,0,0,1,0,0,0,0]
[null,null,null,null,null,null,0,"-",null,{"$f":"I320*F320","v":0},null,null,null,0,0,null,0,null,null,0,0,1,0,0,0,0]
[null,null,null,null,null,null,0,"-",null,0,null,null,null,0,0,null,0,null,null,0,0,1,0,0,0,0]
[null,null,null,null,null,null,0,"-",null,0,null,null,null,0,0,null,0,null,null,0,0,1,0,0,0,0]
[null,null,null,null,null,null,0,"-",null,0,null,null,null,0,0,null,0,null,null,0,0,1,0,0,0,0]
[null,null,null,null,null,null,0,"-",null,0,null,null,null,0,0,null,0,null,null,0,0,1,0,0,0,0]
[null,null,null,null,null,null,0,"-",null,0,null,null,null,0,0,null,0,null,null,0,0,1,0,0,0,0]
[null,null,null,null,null,null,0,"-",null,0,null,null,null,0,0,null,0,null,null,0,0,1,0,0,0,0]
[null,null,null,null,null,null,0,"-",null,0,null,null,null,0,0,null,0,null,null,0,0,1,0,0,0,0]
[null,null,null,null,null,null,{"$f":"IF(AND(F328<>0,$D$31<>0),F328/$D$31,0)","v":0},"-",null,0,null,null,null,0,0,null,0,null,null,0,0,1,0,0,0,0]
[null,3,"Finishes",null,"-",{"$f":"SUM(F330:F349)","v":543990.65000000014},{"$f":"IF(AND(F329<>0,$D$31<>0),F329/$D$31,0)","v":16.164700026743535},"-","-",{"$f":"SUM(J330:J349)","v":38909.743800000011},"-","-","-","-",{"$f":"SUM(O330:O349)","v":4.0600000000000005},"-",{"$f":"SUM(Q330:Q349)","v":12.899999999999999},"-","-",{"$f":"IF(W329<>0,W329/($F$329+$O$329),0)","v":0},{"$f":"IF(Y329<>0,Y329/($F$329+$O$329),0)","v":0.57601999475325771},0.42398000524674229,{"$f":"SUM(W330:W349)","v":0},0,{"$f":"SUM(Y330:Y349)","v":313351.83000000007},9.3112599173922117]
[null,3,"Finishes",null,"Ceramic wall tile, 6 mm, average density 2000 kg/m3 (Mosa)",1892,{"$f":"IF(AND(F330<>0,$D$31<>0),F330/$D$31,0)","v":5.622084212403055E-2},"-",0.1,189.20000000000002,0,0,10,6,0.60000000000000009,0.1,1,"No","Brick/stone crushed to aggregate (for sub-base layers)",0,0,1,0,0,0,0]
[null,null,null,null,"Ceramic wall tiles, 7.5 mm, 3000 kg/m2 (Seranit Granit Seramik)",192409.8,{"$f":"IF(AND(F331<>0,$D$31<>0),F331/$D$31,0)","v":5.7174635247971946},"-",0.10000000000000002,19240.980000000003,0,0,10,6,0.60000000000000009,0.10000000000000002,1.0000000000000002,"No","Brick/stone crushed to aggregate (for sub-base layers)",0,0,1,0,0,0,0]
[null,null,null,null,"Emulsion matt paint for allround interior use, Pigment: Lightfast Pigments, binder: PVA Copolymer emulsion , solvent: Water, 1.443 kg/l, 18m2/l, 0.16 kg/m2, Supermatt White, Almond White, Gardenia, Magnolia, Light Base, Medium Base (Dulux Trade)",1523.67,{"$f":"IF(AND(F332<>0,$D$31<>0),F332/$D$31,0)","v":4.5275904079874009E-2},"-",9.9999999999999992E-2,152.36699999999999,0,0,10,6,0.6,9.9999999999999992E-2,0.99999999999999989,"No","Landfilling (for inert materials)",0,0,1,0,0,0,0]
[null,null,null,null,"Raised access flooring panels, chipboard in galvanized steel envelope, per m2, 600 x 600 mm, 28.6 kg/m2, RG3 (Kingspan Access Floors)",171516.34000000003,5.0966136748581112,"-",0.05,8575.8170000000009,0,0,30,2,0.1,0.05,1.5,"No","Steel recycling",0,1,0,0,0,171516.44000000003,5.0966166463613956]
[null,null,null,null,"Raised access flooring panels, chipboard in galvanized steel envelope, per m2, 600 x 600 mm, 28.6 kg/m2, RG5 (Kingspan Access Floors)",141835.29,4.2146402995275309,"-",0.05,7091.7645000000011,0,0,30,2,0.1,0.05,1.5,"No","Steel recycling",0,1,0,0,0,141835.39000000001,4.2146432710308153]
[null,null,null,null,"Tile adhesive, all round, for ceramics, 1-5 mm, 1400 kg/m3, Verlegemörtel (PCI Augsburg)",5942.0099999999993,0.17656702225655957,"-",0.12999999999999995,772.4612999999996,0,0,30,2,0.2599999999999999,0.12999999999999995,3.8999999999999986,"No","Cement/mortar use in a backfill",0,0,1,0,0,0,0]
[null,null,null,null,"Water based lacquer, white",3333.11,9.9043473093037765E-2,"-",0.1,333.31100000000004,0,0,10,6,0.60000000000000009,0.1,1,"No","Landfilling (for inert materials)",0,0,1,0,0,0,0]
[null,null,null,null,"Water-based epoxy floor paint, 1.44 kg/l, 6 m2/l, 0.48 kg/m2, Dulux Trade High Performance Floor Paint (AkzoNobel)",19341.03,0.57471934151487236,"-",0.1,1934.1030000000001,0,0,10,6,0.60000000000000009,0.1,1,"No","Landfilling (for inert materials)",0,0,1,0,0,0,0]
[null,null,null,null,"Waterproof, protective, flexible coating, 1.5 kg/l, Lastogum (PCI Augsburg)",6197.4,0.18415594449231865,"-",0.10000000000000002,619.74000000000012,0,0,10,6,0.60000000000000009,0.10000000000000002,1.0000000000000002,"No","Landfilling (for inert materials)",0,0,1,0,0,0,0]
[null,null,null,null,null,null,0,"-",null,0,null,null,null,0,0,null,0,null,null,0,0,1,0,0,0,0]
[null,null,null,null,null,null,0,"-",null,0,null,null,null,0,0,null,0,null,null,0,0,1,0,0,0,0]
[null,null,null,null,null,null,0,"-",null,0,null,null,null,0,0,null,0,null,null,0,0,1,0,0,0,0]
[null,null,null,null,null,null,0,"-",null,0,null,null,null,0,0,null,0,null,null,0,0,1,0,0,0,0]
[null,null,null,null,null,null,0,"-",null,0,null,null,null,0,0,null,0,null,null,0,0,1,0,0,0,0]
[null,null,null,null,null,null,{"$f":"IF(AND(F344<>0,$D$31<>0),F344/$D$31,0)","v":0},"-",null,0,null,null,null,0,0,null,0,null,null,0,0,1,0,0,0,0]
[null,null,null,null,null,null,{"$f":"IF(AND(F345<>0,$D$31<>0),F345/$D$31,0)","v":0},"-",null,0,null,null,null,0,0,null,0,null,null,0,0,1,0,0,0,0]
[null,null,null,null,null,null,{"$f":"IF(AND(F346<>0,$D$31<>0),F346/$D$31,0)","v":0},"-",null,0,null,null,null,0,0,null,0,null,null,0,0,1,0,0,0,0]
[null,null,null,null,null,null,{"$f":"IF(AND(F347<>0,$D$31<>0),F347/$D$31,0)","v":0},"-",null,0,null,null,null,0,0,null,0,null,null,0,0,1,0,0,0,0]
[null,null,null,null,null,null,0,"-",null,0,null,null,null,0,0,null,0,null,null,0,0,1,0,0,0,0]
[null,null,null,null,null,null,0,"-",null,0,null,null,null,{"$f":"IF(M349<>0,INT(60/M349),0)","v":0},{"$f":"N349*I349","v":0},null,{"$f":"P349*M349","v":0},null,null,0,0,{"$f":"1-T349-U349","v":1},{"$f":"T349*(F349+O349)","v":0},{"$f":"IF(AND(W349<>0,$D$31<>0),W349/$D$31,0)","v":0},{"$f":"U349*(F349+O349)","v":0},0]
[null,4,"Fittings, furnishings & equipment (FFE)",null,"-",{"$f":"SUM(F351:F370)","v":5703.46},{"$f":"IF(AND(F350<>0,$D$31<>0),F350/$D$31,0)","v":0.1694785011737438},"-","-",{"$f":"SUM(J351:J370)","v":0},"-","-","-","-",{"$f":"SUM(O351:O370)","v":0},"-",{"$f":"SUM(Q351:Q370)","v":0},"-","-",{"$f":"IF(W350<>0,W350/($F$350+$O$350),0)","v":0},{"$f":"IF(Y350<>0,Y350/($F$350+$O$350),0)","v":0},1,{"$f":"SUM(W351:W370)","v":0},0,{"$f":"SUM(Y351:Y370)","v":0},0]
[null,4,"Fittings, furnishings & equipment (FFE)",null,"Ceramic bathroom sink, 9.54 kg/unit, GROHE Essence Undermount Sink (LIXIL Water Technology)",1803.0600000000002,{"$f":"IF(AND(F351<>0,$D$31<>0),F351/$D$31,0)","v":5.3577987103675756E-2},"-",0,0,0,0,20,3,0,0,0,"No","Landfilling (for inert materials)",0,0,1,0,0,0,0]
[null,null,null,null,"Ceramic toilet, 19.6 kg/unit, - DURAVIT : Starck 3 (420009; 452709; 220209).  ME by Starck (452909; 453009). DuraStyle (455209; 457109). // - KOHLER : Struktura (EDE101-00 ; EDF101-00). Patio (EDV101-00 ; E1534-00). Brive (E4345-00) // - ROCA : DEBBA (A346998000 ; A34699L000). VICTORIA (A34630300S). (Association Française des Industries de la Salle de Bains)",3900.3999999999996,{"$f":"IF(AND(F352<>0,$D$31<>0),F352/$D$31,0)","v":0.11590051407006803},"-",0,0,0,0,20,3,0,0,0,"No","Landfilling (for inert materials)",0,0,1,0,0,0,0]
[null,null,null,null,null,null,{"$f":"IF(AND(F353<>0,$D$31<>0),F353/$D$31,0)","v":0},"-",null,0,null,null,null,0,0,null,0,null,null,0,0,1,0,0,0,0]
[null,null,null,null,null,null,0,"-",null,0,null,null,null,0,0,null,0,null,null,0,0,1,0,0,0,0]
[null,null,null,null,null,null,0,"-",null,0,null,null,null,0,0,null,0,null,null,0,0,1,0,0,0,0]
[null,null,null,null,null,null,0,"-",null,0,null,null,null,0,0,null,0,null,null,0,0,1,0,0,0,0]
[null,null,null,null,null,null,0,"-",null,0,null,null,null,0,0,null,0,null,null,0,0,1,0,0,0,0]
[null,null,null,null,null,null,0,"-",null,0,null,null,null,0,0,null,0,null,null,0,0,1,0,0,0,0]
[null,null,null,null,null,null,0,"-",null,0,null,null,null,0,0,null,0,null,null,0,0,1,0,0,0,0]
[null,null,null,null,null,null,0,"-",null,0,null,null,null,0,0,null,0,null,null,0,0,1,0,0,0,0]
[null,null,null,null,null,null,0,"-",null,0,null,null,null,0,0,null,0,null,null,0,0,1,0,0,0,0]
[null,null,null,null,null,null,0,"-",null,0,null,null,null,0,0,null,0,null,null,0,0,1,0,0,0,0]
[null,null,null,null,null,null,0,"-",null,0,null,null,null,0,0,null,0,null,null,0,0,1,0,0,0,0]
[null,null,null,null,null,null,0,"-",null,0,null,null,null,0,0,null,0,null,null,0,0,1,0,0,0,0]
[null,null,null,null,null,null,{"$f":"IF(AND(F365<>0,$D$31<>0),F365/$D$31,0)","v":0},"-",null,0,null,null,null,0,0,null,0,null,null,0,0,1,0,0,0,0]
[null,null,null,null,null,null,{"$f":"IF(AND(F366<>0,$D$31<>0),F366/$D$31,0)","v":0},"-",null,0,null,null,null,0,0,null,0,null,null,0,0,1,0,0,0,0]
[null,null,null,null,null,null,{"$f":"IF(AND(F367<>0,$D$31<>0),F367/$D$31,0)","v":0},"-",null,0,null,null,null,0,0,null,0,null,null,0,0,1,0,0,0,0]
[null,null,null,null,null,null,{"$f":"IF(AND(F368<>0,$D$31<>0),F368/$D$31,0)","v":0},"-",null,0,null,null,null,0,0,null,0,null,null,0,0,1,0,0,0,0]
[null,null,null,null,null,null,0,"-",null,0,null,null,null,0,0,null,0,null,null,0,0,1,0,0,0,0]
[null,null,null,null,null,null,0,"-",null,0,null,null,null,0,0,null,0,null,null,0,0,1,0,0,0,0]
[null,5,"Services (MEP)",null,"-",{"$f":"SUM(F372:F391)","v":379827.05},{"$f":"IF(AND(F371<>0,$D$31<>0),F371/$D$31,0)","v":11.286573262413455},"-","-",{"$f":"SUM(J372:J391)","v":4248.5306},"-","-","-","-",{"$f":"SUM(O372:O391)","v":0.60000000000000009},"-",{"$f":"SUM(Q372:Q391)","v":8.15},"-","-",{"$f":"IF(W371<>0,W371/($F$371+$O$371),0)","v":0},{"$f":"IF(Y371<>0,Y371/($F$371+$O$371),0)","v":1.0000000000000002},0,{"$f":"SUM(W372:W391)","v":0},0,{"$f":"SUM(Y372:Y391)","v":379827.65},11.286591091433158]
[null,5,"Services (MEP)",null,"Air handling unit, with heat recovery through indirect liquid circulation heat recovery, 1000 m3/h (588.6 ft3/min), 92 kg/unit (203 lbs/unit)",465.12,{"$f":"IF(AND(F372<>0,$D$31<>0),F372/$D$31,0)","v":1.382105607226696E-2},"-",0.01,4.6512000000000002,0,0,20,3,0.03,0.01,0.2,"No","Metal-containing product recycling (90 % metal)",0,1,0,0,0,465.15,1.3821947523252012E-2]
[null,null,null,null,"Air handling unit, with heat recovery through plate heat exchanger, 10 000 m3/h (5885.8 ft3/min), 1256 kg/unit (2769 lbs/unit)",6550.11,{"$f":"IF(AND(F373<>0,$D$31<>0),F373/$D$31,0)","v":0.19463673372359075},"-",0.01,65.501099999999994,0,0,25,2,0.02,0.01,0.25,"No","Metal-containing product recycling (90 % metal)",0,1,0,0,0,6550.13,0.19463732802424746]
[null,null,null,null,"Aluminium air intake vent, 200 x 200 mm, 0.04 m2/unit, 1.295 kg/unit, DONNEE PAR DEFAUT (DED)",81.09,{"$f":"IF(AND(F374<>0,$D$31<>0),F374/$D$31,0)","v":2.4095920125991742E-3},"-",0.01,0.81090000000000007,0,0,20,3,0.03,0.01,0.2,"No","Metal-containing product recycling (90 % metal)",0,1,0,0,0,81.12,2.4104834635842276E-3]
[null,null,null,null,"District heat distribution center, per 1kW",3699.62,0.10993432977743441,"-",0.01,36.996200000000002,0,0,30,2,0.02,0.01,0.3,"No","Metal-containing product recycling (90 % metal)",0,1,0,0,0,3699.64,0.10993492407809111]
[null,null,null,null,"Drinking water supply piping network, per m2 GIFA (residential buildings)",7249.8899999999994,0.21543071940094491,"-",6.0000000000000005E-2,434.99340000000001,0,0,30,2,0.12000000000000001,6.0000000000000005E-2,1.8,"No","Metal-containing product recycling (90 % metal)",0,1,0,0,0,7250.0099999999993,0.21543428520488514]
[null,null,null,null,"Electricity distribution system, cabling and central, for all building types, per m2 GFA",104441.55,3.103484087599917,"-",0.01,1044.4155000000001,0,0,30,2,0.02,0.01,0.3,"No","Metal-containing product recycling (90 % metal)",0,1,0,0,0,104441.57,3.1034846819005737]
[null,null,null,null,"Elevator basic component (dependent of floor), 333.0 kg/unit",8658,0.25727275428639351,"-",0,0,0,0,20,3,0,0,0,"No","Metal-containing product recycling (90 % metal)",0,1,0,0,0,8658,0.25727275428639351]
[null,null,null,null,"Fan coil unit, 50 kg/unit, P=1 kW (One Click LCA)",32804.800000000003,0.97479570914925873,"-",0.01,328.04800000000006,0,0,20,3,0.03,0.01,0.2,"No","Metal-containing product recycling (90 % metal)",0,1,0,0,0,32804.83,0.97479660060024376]
[null,null,null,null,"Heat distribution piping network, per m2 heated area, all building types",2395.48,7.1181766855852383E-2,"-",0.06,143.72880000000001,0,0,30,2,0.12,0.06,1.7999999999999998,"No","Metal-containing product recycling (90 % metal)",0,1,0,0,0,2395.6,7.1185332659792586E-2]
[null,null,null,null,"Heat distribution system (water heat distribution) for office and care buildings, per m2 GFA",63566.369999999995,1.8888767717588326,"-",0.01,635.66369999999995,0,0,20,3,0.03,0.01,0.2,"No","Metal-containing product recycling (90 % metal)",0,1,0,0,0,63566.399999999994,1.8888776632098176]
[null,null,null,null,"Photovoltaic monocrystalline panel (PV), per m2, 42mm, 11.6 kg/m2, 60 cells per module, TARKA VSMS 300  (VOLTEC SOLAR)",2378.2599999999998,7.067007399043175E-2,"-",0,0,0,0,20,3,0,0,0,"No","Metal-containing product recycling (90 % metal)",0,1,0,0,0,2378.2599999999998,7.067007399043175E-2]
[null,null,null,null,"Photovoltaic monocrystalline panel, per m2, 14.5 kg/m2, 224 Wp (One Click LCA)",652.5,1.9389058924910111E-2,"-",0,0,0,0,20,3,0,0,0,"No","Metal-containing product recycling (90 % metal)",0,1,0,0,0,652.5,1.9389058924910111E-2]
[null,null,null,null,"Reversible variable refrigerant flow (VRF), external unit, 216.62 kg/unit, 21.28 kW (Uniclima)",17112.98,0.50851276260660272,"-",0,{"$f":"I384*F384","v":0},0,0,20,3,0,0,0,"No","Metal-containing product recycling (90 % metal)",0,1,0,0,0,17112.98,0.50851276260660272]
[null,null,null,null,"Sewage water drainage piping network, per m2 GIFA (residential buildings)",5120.18,0.15214631682168009,"-",6.0000000000000005E-2,307.21080000000006,0,0,30,2,0.12000000000000001,6.0000000000000005E-2,1.8,"No","Metal-containing product recycling (90 % metal)",0,1,0,0,0,5120.3,0.15214988262562032]
[null,null,null,null,"Ventilation ducting, per m linear, D: 500 mm (19.69 in)",7463.7,{"$f":"IF(AND(F386<>0,$D$31<>0),F386/$D$31,0)","v":0.22178409057142007},"-",0.01,74.637,0,0,60,1,0.01,0.01,0.6,"No","Metal-containing product recycling (90 % metal)",0,1,0,0,0,7463.71,0.22178438772174844]
[null,null,null,null,"Ventilation system for office and care buildings, per m2 GFA",52716.959999999992,{"$f":"IF(AND(F387<>0,$D$31<>0),F387/$D$31,0)","v":1.5664861973672479},"-",0.01,527.16959999999995,0,0,20,3,0.03,0.01,0.2,"No","Metal-containing product recycling (90 % metal)",0,1,0,0,0,52716.989999999991,1.566487088818233]
[null,null,null,null,"Water circulation radiator, per 1kW / unit",64470.44000000001,{"$f":"IF(AND(F388<>0,$D$31<>0),F388/$D$31,0)","v":1.9157412414940722},"-",0.01,644.70440000000008,0,0,30,2,0.02,0.01,0.3,"No","Metal-containing product recycling (90 % metal)",0,1,0,0,0,64470.460000000006,1.9157418357947287]
[null,null,null,null,null,null,{"$f":"IF(AND(F389<>0,$D$31<>0),F389/$D$31,0)","v":0},"-",null,0,null,null,null,0,0,null,0,null,null,0,0,1,0,0,0,0]
[null,null,null,null,null,null,0,"-",null,0,null,null,null,0,0,null,0,null,null,0,0,1,0,0,0,0]
[null,null,null,null,null,null,0,"-",null,0,null,null,null,0,0,null,0,null,null,0,0,1,0,0,0,0]
[null,6,"Prefabricated Buildings and Building Units",null,"-",{"$f":"SUM(F393:F412)","v":0},{"$f":"IF(AND(F392<>0,$D$31<>0),F392/$D$31,0)","v":0},"-","-",{"$f":"SUM(J393:J412)","v":0},"-","-","-","-",{"$f":"SUM(O393:O412)","v":0},"-",{"$f":"SUM(Q393:Q412)","v":0},"-","-",{"$f":"IF(W392<>0,W392/($F$392+$O$392),0)","v":0},{"$f":"IF(Y392<>0,Y392/($F$392+$O$392),0)","v":0},1,{"$f":"SUM(W393:W412)","v":0},0,{"$f":"SUM(Y393:Y412)","v":0},0]
[null,6,"Prefabricated Buildings and Building Units",null,null,null,{"$f":"IF(AND(F393<>0,$D$31<>0),F393/$D$31,0)","v":0},"-",null,0,null,null,null,0,0,null,0,null,null,0,0,1,0,0,0,0]
[null,null,null,null,null,null,{"$f":"IF(AND(F394<>0,$D$31<>0),F394/$D$31,0)","v":0},"-",null,0,null,null,null,0,0,null,0,null,null,0,0,1,0,0,0,0]
[null,null,null,null,null,null,{"$f":"IF(AND(F395<>0,$D$31<>0),F395/$D$31,0)","v":0},"-",null,0,null,null,null,0,0,null,0,null,null,0,0,1,0,0,0,0]
[null,null,null,null,null,null,0,"-",null,0,null,null,null,0,0,null,0,null,null,0,0,1,0,0,0,0]
[null,null,null,null,null,null,0,"-",null,0,null,null,null,0,0,null,0,null,null,0,0,1,0,0,0,0]
[null,null,null,null,null,null,0,"-",null,0,null,null,null,0,0,null,0,null,null,0,0,1,0,0,0,0]
[null,null,null,null,null,null,0,"-",null,0,null,null,null,0,0,null,0,null,null,0,0,1,0,0,0,0]
[null,null,null,null,null,null,0,"-",null,0,null,null,null,0,0,null,0,null,null,0,0,1,0,0,0,0]
[null,null,null,null,null,null,0,"-",null,0,null,null,null,0,0,null,0,null,null,0,0,1,0,0,0,0]
[null,null,null,null,null,null,0,"-",null,0,null,null,null,0,0,null,0,null,null,0,0,1,0,0,0,0]
[null,null,null,null,null,null,0,"-",null,0,null,null,null,0,0,null,0,null,null,0,0,1,0,0,0,0]
[null,null,null,null,null,null,0,"-",null,0,null,null,null,0,0,null,0,null,null,0,0,1,0,0,0,0]
[null,null,null,null,null,null,0,"-",null,0,null,null,null,0,0,null,0,null,null,0,0,1,0,0,0,0]
[null,null,null,null,null,null,0,"-",null,0,null,null,null,0,0,null,0,null,null,0,0,1,0,0,0,0]
[null,null,null,null,null,null,{"$f":"IF(AND(F407<>0,$D$31<>0),F407/$D$31,0)","v":0},"-",null,0,null,null,null,0,0,null,0,null,null,0,0,1,0,0,0,0]
[null,null,null,null,null,null,{"$f":"IF(AND(F408<>0,$D$31<>0),F408/$D$31,0)","v":0},"-",null,0,null,null,null,0,0,null,0,null,null,0,0,1,0,0,0,0]
[null,null,null,null,null,null,{"$f":"IF(AND(F409<>0,$D$31<>0),F409/$D$31,0)","v":0},"-",null,0,null,null,null,0,0,null,0,null,null,0,0,1,0,0,0,0]
[null,null,null,null,null,null,{"$f":"IF(AND(F410<>0,$D$31<>0),F410/$D$31,0)","v":0},"-",null,0,null,null,null,0,0,null,0,null,null,0,0,1,0,0,0,0]
[null,null,null,null,null,null,0,"-",null,0,null,null,null,0,0,null,0,null,null,0,0,1,0,0,0,0]
[null,null,null,null,null,null,0,"-",null,0,null,null,null,0,0,null,0,null,null,0,0,1,0,0,0,0]
[null,7,"Work to Existing Building",null,"-",{"$f":"SUM(F414:F433)","v":0},{"$f":"IF(AND(F413<>0,$D$31<>0),F413/$D$31,0)","v":0},"-","-",{"$f":"SUM(J414:J433)","v":0},"-","-","-","-",{"$f":"SUM(O414:O433)","v":0},"-",{"$f":"SUM(Q414:Q433)","v":0},"-","-",{"$f":"IF(W413<>0,W413/($F$413+$O$413),0)","v":0},{"$f":"IF(Y413<>0,Y413/($F$413+$O$413),0)","v":0},{"$f":"1-T413-U413","v":1},{"$f":"SUM(W414:W433)","v":0},{"$f":"IF(AND(W413<>0,$D$31<>0),W413/$D$31,0)","v":0},{"$f":"SUM(Y414:Y433)","v":0},0]
[null,7,"Work to Existing Building",null,null,null,{"$f":"IF(AND(F414<>0,$D$31<>0),F414/$D$31,0)","v":0},"-",null,0,null,null,null,{"$f":"IF(M414<>0,INT(60/M414),0)","v":0},{"$f":"N414*I414","v":0},null,{"$f":"P414*M414","v":0},null,null,0,0,1,{"$f":"T414*(F414+O414)","v":0},0,{"$f":"U414*(F414+O414)","v":0},0]
[null,null,null,null,null,null,{"$f":"IF(AND(F415<>0,$D$31<>0),F415/$D$31,0)","v":0},"-",null,0,null,null,null,0,0,null,0,null,null,0,0,1,0,0,0,0]
[null,null,null,null,null,null,{"$f":"IF(AND(F416<>0,$D$31<>0),F416/$D$31,0)","v":0},"-",null,0,null,null,null,0,0,null,0,null,null,0,0,1,0,0,0,0]
[null,null,null,null,null,null,0,"-",null,0,null,null,null,0,0,null,0,null,null,0,0,1,0,0,0,0]
[null,null,null,null,null,null,0,"-",null,0,null,null,null,0,0,null,0,null,null,0,0,1,0,0,0,0]
[null,null,null,null,null,null,0,"-",null,0,null,null,null,0,0,null,0,null,null,0,0,1,0,0,0,0]
[null,null,null,null,null,null,0,"-",null,0,null,null,null,0,0,null,0,null,null,0,0,1,0,0,0,0]
[null,null,null,null,null,null,0,"-",null,0,null,null,null,0,0,null,0,null,null,0,0,1,0,0,0,0]
[null,null,null,null,null,null,0,"-",null,0,null,null,null,{"$f":"IF(M422<>0,INT(60/M422),0)","v":0},0,null,0,null,null,0,0,1,0,0,0,0]
[null,null,null,null,null,null,0,"-",null,0,null,null,null,0,0,null,0,null,null,0,0,1,0,0,0,0]
[null,null,null,null,null,null,0,"-",null,0,null,null,null,0,0,null,0,null,null,0,0,1,0,0,0,0]
[null,null,null,null,null,null,0,"-",null,0,null,null,null,0,0,null,0,null,null,0,0,1,0,0,0,0]
[null,null,null,null,null,null,0,"-",null,0,null,null,null,0,0,null,0,null,null,0,0,1,0,0,0,0]
[null,null,null,null,null,null,0,"-",null,0,null,null,null,0,0,null,0,null,null,0,0,1,0,0,0,0]
[null,null,null,null,null,null,{"$f":"IF(AND(F428<>0,$D$31<>0),F428/$D$31,0)","v":0},"-",null,0,null,null,null,0,0,null,0,null,null,0,0,1,0,0,0,0]
[null,null,null,null,null,null,{"$f":"IF(AND(F429<>0,$D$31<>0),F429/$D$31,0)","v":0},"-",null,0,null,null,null,0,0,null,0,null,null,0,0,1,0,0,0,0]
[null,null,null,null,null,null,{"$f":"IF(AND(F430<>0,$D$31<>0),F430/$D$31,0)","v":0},"-",null,0,null,null,null,0,0,null,0,null,null,0,0,1,0,0,0,0]
[null,null,null,null,null,null,{"$f":"IF(AND(F431<>0,$D$31<>0),F431/$D$31,0)","v":0},"-",null,0,null,null,null,0,0,null,0,null,null,0,0,1,0,0,0,0]
[null,null,null,null,null,null,0,"-",null,0,null,null,null,0,0,null,0,null,null,0,0,1,0,0,0,0]
[null,null,null,null,null,null,0,"-",null,0,null,null,null,0,0,null,0,null,null,0,0,1,0,0,0,0]
[null,8,"External works",null,"-",{"$f":"SUM(F435:F454)","v":66948.070000000007},{"$f":"IF(AND(F434<>0,$D$31<>0),F434/$D$31,0)","v":1.9893640982973289},"-","-",{"$f":"SUM(J435:J454)","v":1057.3177499999999},"-","-","-","-",{"$f":"SUM(O435:O454)","v":0.22499999999999998},"-",{"$f":"SUM(Q435:Q454)","v":6.75},"-","-",{"$f":"IF(W434<>0,W434/($F$434+$O$434),0)","v":0},{"$f":"IF(Y434<>0,Y434/($F$434+$O$434),0)","v":4.0914484827432859E-2},0.95908551517256713,{"$f":"SUM(W435:W454)","v":0},0,{"$f":"SUM(Y435:Y454)","v":2739.1549999999997},8.1394080765459245E-2]
[null,8,"External works",null,"Concrete paving blocks, semi dry mix, 60 mm, 138 kg/m2 (Marshalls Plc)",7469.25,null,"-",0,0,0,0,60,1,0,0,0,"No","Rebar separated (2 %), concrete to aggregate",0,0,1,0,0,0,0]
[null,null,null,null,"Corrugated galvanized steel sheets, 10.02 kg/m2, ép. 0,5mm et 0,88mm (L’ENVELOPPE METALLIQUE DU BATIMENT)",2739.08,{"$f":"IF(AND(F436<>0,$D$31<>0),F436/$D$31,0)","v":8.1391852137996615E-2},"-",7.4999999999999997E-2,205.43099999999998,1783.5900000000001,0,60,1,7.4999999999999997E-2,7.4999999999999997E-2,4.5,"No","Steel recycling",0,1,0,0,0,2739.1549999999997,8.1394080765459245E-2]
[null,null,null,null,"Plastic slab for surface reinforcement, 27.19 kg/m2, TTE®-MultiDrainPLUS (HUEBNER-LEE GMBH & CO. KG)",11358.49,{"$f":"IF(AND(F437<>0,$D$31<>0),F437/$D$31,0)","v":0.33751790330728315},"-",7.4999999999999997E-2,851.88675000000001,0,0,30,2,0.15,7.4999999999999997E-2,2.25,"No","Plastic-based material incineration",0,0,1,0,0,0,0]
[null,null,null,null,"Resin bound aggregate decorative paving system, 3-10 mm grain size, 100 - 150 mm, 1060 kg/m3, Addaset, Addabound, Terrabound and Terrabase (Addagrip Terraco)",45381.25,{"$f":"IF(AND(F438<>0,$D$31<>0),F438/$D$31,0)","v":1.3485053338483939},"-",0,0,9076.25,2.4649999999999998E-2,60,1,0,0,0,"No","Asphalt reuse via reprocessing",0,0,1,0,0,0,0]
[null,null,null,null,null,null,0,"-",null,0,null,null,null,0,0,null,0,null,null,0,0,1,0,0,0,0]
[null,null,null,null,null,null,0,"-",null,0,null,null,null,0,0,null,0,null,null,0,0,1,0,0,0,0]
[null,null,null,null,null,null,0,"-",null,0,null,null,null,0,0,null,0,null,null,0,0,1,0,0,0,0]
[null,null,null,null,null,null,0,"-",null,0,null,null,null,0,0,null,0,null,null,0,0,1,0,0,0,0]
[null,null,null,null,null,null,0,"-",null,0,null,null,null,0,0,null,0,null,null,0,0,1,0,0,0,0]
[null,null,null,null,null,null,0,"-",null,0,null,null,null,0,0,null,0,null,null,0,0,1,0,0,0,0]
[null,null,null,null,null,null,0,"-",null,0,null,null,null,0,0,null,0,null,null,0,0,1,0,0,0,0]
[null,null,null,null,null,null,0,"-",null,0,null,null,null,0,0,null,0,null,null,0,0,1,0,0,0,0]
[null,null,null,null,null,null,0,"-",null,0,null,null,null,0,0,null,0,null,null,0,0,1,0,0,0,0]
[null,null,null,null,null,null,0,"-",null,{"$f":"I448*F448","v":0},null,null,null,0,0,null,0,null,null,0,0,1,0,0,0,0]
[null,null,null,null,null,null,0,"-",null,0,null,null,null,0,0,null,0,null,null,0,0,1,0,0,0,0]
[null,null,null,null,null,null,0,"-",null,0,null,null,null,0,0,null,0,null,null,0,0,1,0,0,0,0]
[null,null,null,null,null,null,0,"-",null,0,null,null,null,0,0,null,0,null,null,0,0,1,0,0,0,0]
[null,null,null,null,null,null,0,"-",null,0,null,null,null,0,0,null,0,null,null,0,0,1,0,0,0,0]
[null,null,null,null,null,null,0,"-",null,{"$f":"I453*F453","v":0},null,null,null,{"$f":"IF(M453<>0,INT(60/M453),0)","v":0},0,null,0,null,null,0,0,1,0,0,0,0]
[null,null,null,null,null,null,0,"-",null,{"$f":"I454*F454","v":0},null,null,null,{"$f":"IF(M454<>0,INT(60/M454),0)","v":0},{"$f":"N454*I454","v":0},null,{"$f":"P454*M454","v":0},null,null,0,0,1,{"$f":"T454*(F454+O454)","v":0},0,0,{"$f":"IF(AND(Y454<>0,$D$31<>0),Y454/$D$31,0)","v":0}]
[null,null,"Overall",null,null,{"$f":"SUM(F91,F107,F123,F139,F155,F176,F197,F218,F239,F255,F276,F292,F313,F329,F350,F371,F392,F413,F434)","v":42125083.959999993},1251.7482530532195,null,null,{"$f":"SUM(J91,J107,J123,J139,J155,J176,J197,J218,J239,J255,J276,J292,J313,J329,J350,J371,J392,J413,J434)","v":1770550.6255299996},null,null,null,null,{"$f":"SUM(O91,O107,O123,O139,O155,O176,O197,O218,O239,O255,O276,O292,O313,O329,O350,O371,O392,O413,O434)","v":13.907999999999999},null,{"$f":"SUM(Q91:Q454)","v":665.21999999999969},null,null,{"$f":"IF(AND($F$455<>0,$O$455<>0),SUM(W91,W107,W123,W139,W155,W176,W197,W218,W239,W255,W276,W292,W313,W329,W350,W371,W392,W413,W434)/($F$455+$O$455),0)","v":0},{"$f":"IF(AND($F$455<>0,$O$455<>0),SUM(Y91,Y107,Y123,Y139,Y155,Y176,Y197,Y218,Y239,Y255,Y276,Y292,Y313,Y329,Y350,Y371,Y392,Y413,Y434)/($F$455+$O$455),0)","v":9.4333053787838406E-2},{"$f":"1-T455-U455","v":0.90566694621216159},{"$f":"SUM(W91:W454)","v":0},{"$f":"SUM(X91:X454)","v":0},{"$f":"SUM(Y91:Y454)","v":7947578.2460000012},{"$f":"SUM(Z91:Z454)","v":236.16254853950613}]
[]
[]
[]
[]
[null,"Recycling and Waste Reporting table"]
[null,"The light green-coloured cells should be completed to achieve 'pioneering' status."]
[null,null,null,null,"TOTAL ESTIMATES OF WASTE",null,null,"WASTE MANAGEMENT ROUTES",null,null,null,null,null,"SUMMARY"]
[null,null,null,null,"Overall Waste \n(tonnes)","Overall Waste\n(tonnes/m2 GIA)","Performance Indicator (LPG Appendix 1)","REUSE ",null,"RECYCLE",null,"OTHER DISPOSAL",null,"Total Reuse (%)","Total Recycle (%)","Total Reuse and Recycle (%)","Total Waste Reported (%)"]
[null,null,"Type of Waste","Source of Information",null,null,null,"Reuse Onsite (%)","Reuse Offsite (%)","Recycle Onsite(%)","Recycle Offsite (%)","To Landfill (%)","To Other Management (%)"]
[null,null,null,null,"PRODUCT AND CONSTRUCTION STAGE (MODULE A)"]
[null,1,"Demolition Waste",null,null,{"$f":"IF($D$31>0,IF(E466>0,E466/$D$31,0),0)","v":0},{"$f":"F466","v":0},null,null,null,null,null,null,{"$f":"SUM(H466:I466)","v":0},{"$f":"SUM(J466:K466)","v":0},{"$f":"SUM(N466:O466)","v":0},{"$f":"SUM(H466:M466)","v":0}]
[null,2.1,"Excavation Waste",null,null,{"$f":"IF($D$31>0,IF(E467>0,E467/$D$31,0),0)","v":0},{"$f":"F467","v":0},null,null,null,null,null,null,{"$f":"SUM(H467:I467)","v":0},{"$f":"SUM(J467:K467)","v":0},{"$f":"SUM(N467:O467)","v":0},{"$f":"SUM(H467:M467)","v":0}]
[null,2.8,"Construction Waste",null,null,{"$f":"IF($D$31>0,IF(E468>0,E468/$D$31,0),0)","v":0},{"$f":"F468","v":0},null,null,null,null,null,null,{"$f":"SUM(H468:I468)","v":0},{"$f":"SUM(J468:K468)","v":0},{"$f":"SUM(N468:O468)","v":0},{"$f":"SUM(H468:M468)","v":0}]
[null,null,null,null,"USE STAGE (MODULE B)"]
[null,3,"Demolition / Strip-out Waste",null,{"$f":"IF(ISNUMBER(S109),S109/1000,0)","v":0},{"$f":"IF($D$31>0,IF(E470>0,E470/$D$31,0),0)","v":0},"-",null,null,null,null,null,null,{"$f":"SUM(H470:I470)","v":0},{"$f":"SUM(J470:K470)","v":0},{"$f":"SUM(N470:O470)","v":0},{"$f":"SUM(H470:M470)","v":0}]
[null,4,"Construction Waste",null,{"$f":"IF(ISNUMBER(U109),U109/1000,0)","v":0},{"$f":"IF($D$31>0,IF(E471>0,E471/$D$31,0),0)","v":0},"-",null,null,null,null,null,null,{"$f":"SUM(H471:I471)","v":0},{"$f":"SUM(J471:K471)","v":0},{"$f":"SUM(N471:O471)","v":0},{"$f":"SUM(H471:M471)","v":0}]
[null,null,null,null,"Overall Waste (tonnes/annum)","Overall Waste (tonnes/annum\n/m2)","Performance Indicator (LPG Appendix 1)","Reuse Onsite (%)","Reuse Offsite (%)","Recycle Offsite(%)","Recycle Offsite (%)","To Landfill (%)","To Other Management (%)","Total Reuse (%)","Total Recycle (%)","Total Reuse and Recycle (%)","Total Waste Reported (%)"]
[null,5,"Municipal Waste",null,null,{"$f":"IF($D$31>0,IF(E473>0,E473/$D$31,0),0)","v":0},{"$f":"F473","v":0},null,null,null,null,null,null,{"$f":"SUM(H473:I473)","v":0},{"$f":"SUM(J473:K473)","v":0},{"$f":"SUM(N473:O473)","v":0},{"$f":"SUM(H473:M473)","v":0}]
[null,6,"Industrial Waste (if applicable)",null,null,"-","-",null,null,null,null,null,null,{"$f":"SUM(H474:I474)","v":0},{"$f":"SUM(J474:K474)","v":0},{"$f":"SUM(N474:O474)","v":0},{"$f":"SUM(H474:M474)","v":0}]
[null,null,null,null,"MODULE A - MODULE C"]
[null,null,null,null,"Overall Materials \n(tonnes)","Overall Materials (Modules A-C) (tonnes\n/m2)","-","Reuse Onsite (%)","Reuse Offsite (%)","Recycle Offsite(%)","Recycle Offsite (%)","To Landfill (%)","To Other Management (%)","Total Reuse (%)","Total Recycle (%)","Total Reuse and Recycle (%)","Total Waste Reported (%)"]
[null,7,"Total Materials",null,{"$f":"IF(AND(ISNUMBER(F109),ISNUMBER(J109),ISNUMBER(S109),ISNUMBER(U109)),((U109+S109+F109+J109)/1000),0)","v":0},{"$f":"IF($D$31>0,IF(E477>0,E477/$D$31,0),0)","v":0},"-",null,null,null,null,null,null,{"$f":"SUM(H477:I477)","v":0},{"$f":"SUM(J477:K477)","v":0},{"$f":"SUM(N477:O477)","v":0},{"$f":"SUM(H477:M477)","v":0}]
[]
[]
[null,"Circular Economy Targets"]
[null,"Circular economy targets for existing and new development",null,"Policy Requirement","Target Aiming For (%)","Policy Met?","Explanation (How will performance against this metric be secured through design, implementation and monitoring?)"]
[null,"Demolition waste materials (non-hazardous)",null,"Minimum of 95% diverted from landfill for reuse, recycling or recovery.",0.95,{"$f":"IF(ISNUMBER(E482),IF(E482>100%,\"Input not valid\",IF(E482=95%,\"Yes\",IF(100%>=E482>95%,\"Exceeds Policy\",\"No\"))),\"\")","v":"Yes"},"The relevant  contractor will be required to develop a Resource Management Plan to target, monitor and report all waste types on a regular basis. The plan shall form part of the method statement, and contain:\n\n1. a description of the existing materials in terms of potential waste management route  and relative quantities;\n2. details of where and how these materials will be stored;\n3. details of the intended final destination and use of these materials;\n4. details’ of how these materials are to be tracked and moved\n\nBefore soft strip, the demo contractor to allow for and engage with wider supply chain to enable material recovery for on-site reuse and enabling wider community reuse, before commencing main demolition. "]
[null,"Excavation waste materials",null,"Minimum of 95% diverted from landfill for beneficial reuse.",0.95,{"$f":"IF(ISNUMBER(E483),IF(E483>100%,\"Input not valid\",IF(E483=95%,\"Yes\",IF(100%>=E483>95%,\"Exceeds Policy\",\"No\"))),\"\")","v":"Yes"},"The relevant contractor will be required to develop a Soil Resource Plan as part of the Resource Management Plan, for re-using reserves of topsoil and/or subsoil have been identified by the Soil Resource Survey (or Geo technical survey).  \n\nThe SRP should include:\n1. the areas and types of topsoil and subsoil to be stripped, haul routes, stockpile locations, reuse locations;\n2. the methods for stripping, stockpiling, respreading and ameliorating landscape soils;"]
[null,"Construction waste materials",null,"Minimum of 95% diverted from landfill for reuse, recycling or recovery.",0.95,"Yes","A Resource Management Plan will outline the strategy to maximise opportunities for minimising, reusing and recycling construction waste.  This will be produced in the next design stages. "]
[null,"Municipal waste",null,"Minimum 65% recycling rate by 2030.",0.65,{"$f":"IF(ISNUMBER(E485),IF(E485>100%,\"Input not valid\",IF(E485=65%,\"Yes\",IF(100%>=E485>65%,\"Exceeds Policy\",\"No\"))),\"\")","v":"Yes"},"A Delivery & Servicing Management Plan provided by RGP in support of this application has been developed with consideration to the London Borough of Camden’s Waste and Recycling Guidance. Please refer to this doucment for more information."]
[null,"Recycled content",null,"Minimum 20% of the building material elements to be comprised of recycled or reused content.",0.2,{"$f":"IF(ISNUMBER(E486),IF(E486>100%,\"Input not valid\",IF(E486=20%,\"Yes\",IF(100%>=E486>20%,\"Exceeds Policy\",\"No\"))),\"\")","v":"Yes"},"A complete materials palette will be developed in the following RIBA Stages. Savills Earth will help monitor the materials selected and work with the design team to achieve at least 20% recycled content."]
[null,"Additional requirements",null,"Policy Requirement","Please acknowledge acceptance for a planning condition",null,"Please set out an indicative timescale and responsible party for the provision of this information"]
[null,"Post-Construction Report",null,"A CE Statement is required at post-construction (i.e. upon commencement of RIBA Stage 6 and prior to the building being handed over, if applicable. Generally, it would be expected that the assessment would be received no more than three months post-construction)","It is accepted that the Post Construction Reporting will be conditioned",null,"Savills Earth / Optimo / Contractor(s) / Kentish Town UK Office Propco Limited\nEstimated date ~2026"]

{"sheet":"Post-Construction Stage","index":4,"n_rows":458,"n_cols":26,"rows_kept":458,"cut":false,"hidden":false,"merged":[[408,13,408,16],[53,2,53,3],[431,7,431,9],[432,7,432,9],[0,0,1,6],[3,0,3,5],[4,0,4,2],[4,4,4,5],[5,2,5,3],[408,4,408,6],[408,7,408,12],[409,4,410,4],[409,5,410,5],[409,6,410,6],[409,7,409,8],[409,9,409,10],[409,11,409,12],[428,7,428,9],[429,7,429,9],[430,7,430,9],[35,2,35,3],[36,2,36,3],[37,2,37,3],[35,4,35,11],[470,3,470,4],[471,3,471,4],[461,3,461,4],[462,3,462,4],[463,3,463,4],[464,3,464,4],[465,3,465,4],[466,3,466,4],[469,1,469,2],[470,1,470,2],[471,1,471,2],[463,1,463,2],[464,1,464,2],[465,1,465,2],[466,1,466,2],[467,1,467,2],[468,1,468,2],[461,1,461,2],[462,1,462,2],[467,3,467,4],[468,3,468,4],[469,3,469,4],[455,1,455,4],[456,1,456,2],[456,3,456,4],[457,3,457,4],[458,3,458,4],[459,3,459,4],[460,3,460,4],[457,1,457,2],[458,1,458,2],[459,1,459,2],[460,1,460,2],[451,1,451,2],[452,1,452,2],[438,3,438,4],[439,3,439,4],[440,3,440,4],[441,3,441,4],[442,3,442,4],[442,1,442,2],[443,1,443,2],[444,1,444,2],[445,1,445,2],[446,1,446,2],[447,1,447,2],[438,1,438,2],[439,1,439,2],[440,1,440,2],[441,1,441,2],[446,3,446,4],[447,3,447,4],[448,3,448,4],[448,1,448,2],[451,5,451,6],[452,5,452,6],[437,3,437,4],[437,5,437,6],[444,5,444,6],[445,5,445,6],[446,5,446,6],[447,5,447,6],[448,5,448,6],[449,3,449,4],[450,3,450,4],[451,3,451,4],[452,3,452,4],[438,5,438,6],[439,5,439,6],[440,5,440,6],[441,5,441,6],[442,5,442,6],[443,5,443,6],[443,3,443,4],[444,3,444,4],[445,3,445,4],[35,12,35,16],[35,17,35,21],[35,22,35,25],[449,5,449,6],[450,5,450,6],[449,1,449,2],[450,1,450,2],[437,1,437,2],[436,1,436,6],[431,1,431,2],[432,1,432,2],[428,1,428,2],[429,1,429,2],[430,1,430,2],[409,13,410,13],[409,14,410,14],[409,15,410,15],[409,16,410,16],[427,1,427,2],[427,7,427,9],[38,1,52,1],[38,2,52,3],[54,1,68,1],[54,2,68,3],[69,2,69,3],[70,1,84,1],[70,2,84,3],[85,2,85,3],[86,1,100,1],[86,2,100,3],[101,2,101,3],[102,1,121,1],[102,2,121,3],[122,2,122,3],[123,1,142,1],[123,2,142,3],[143,2,143,3],[144,1,163,1],[144,2,163,3],[164,2,164,3],[165,1,184,1],[165,2,184,3],[185,2,185,3],[186,1,200,1],[186,2,200,3],[201,2,201,3],[202,1,221,1],[202,2,221,3],[222,2,222,3],[223,1,237,1],[223,2,237,3],[238,2,238,3],[239,1,258,1],[239,2,258,3],[259,2,259,3],[260,1,274,1],[260,2,274,3],[275,2,275,3],[276,1,295,1],[276,2,295,3],[359,2,359,3],[360,1,379,1],[360,2,379,3],[380,2,380,3],[381,1,400,1],[381,2,400,3],[296,2,296,3],[297,1,316,1],[297,2,316,3],[317,2,317,3],[318,1,337,1],[318,2,337,3],[338,2,338,3],[339,1,358,1],[339,2,358,3]]}
[]
[]
[]
["Post-Construction Stage - Circular Economy Statement"]
[]
[null,null,"Project details"]
[null,null,"Project name"]
[null,null,"Planning application reference number (if applicable)"]
[null,null,"Applicant"]
[null,null,"London Borough"]
[null,null,"Brief description of the project"]
[null,null,"Author/s"]
[null,null,"Date of assessment"]
[null,null,"Number of Use Types"]
[null,null,"Use Class / Type","Floor Area by use type (m2)"]
[null,null,"Use Class / Type 1","Use Class / Type 1 GIA"]
[null,null,"Use Class / Type 2","Use Class / Type 2 GIA"]
[null,null,"Use Class / Type 3","Use Class / Type 3 GIA"]
[null,null,"Use Class / Type 4","Use Class / Type 4 GIA"]
[null,null,"Use Class / Type 5","Use Class / Type 5 GIA"]
[null,null,"Use Class / Type 6","Use Class / Type 6 GIA"]
[null,null,"Use Class / Type 7","Use Class / Type 7 GIA"]
[null,null,"Use Class / Type 8","Use Class / Type 8 GIA"]
[null,null,"Use Class / Type 9","Use Class / Type 9 GIA"]
[null,null,"Use Class / Type 10","Use Class / Type 10 GIA"]
[null,null,"Use Class / Type 11","Use Class / Type 11 GIA"]
[null,null,"Use Class / Type 12","Use Class / Type 12 GIA"]
[null,null,"Use Class / Type 13","Use Class / Type 13 GIA"]
[null,null,"Use Class / Type 14","Use Class / Type 14 GIA"]
[null,null,"Use Class / Type 15","Use Class / Type 15 GIA"]
[null,null,"Overall GIA (m2)",{"$f":"SUM(D16:D30)","v":0}]
[]
[]
[null,"Bill of Materials"]
[null,"Please click the + symbol to the left hand side of the Bill of Materials table to view or hide the input rows for each Building Element Category. The rows for substructure and frame have been unhidden to highlight this."]
[null,null,"BUILDING ELEMENT CATEGORY -  LEVEL 1 (based on the RICS New Rules of\nMeasurement (NRM) classification system level 2 sub-elements https://www.rics.org/globalassets/rics-website/media/products/data-products/bcis-construction/bcis-elemental-standard-form-cost-analysis-4th-nrm-edition-2012.pdf)",null,"PRODUCT AND CONSTRUCTION STAGE (MODULE A)",null,null,null,null,null,null,null,"USE STAGE (MODULE B)",null,null,null,null,"END OF LIFE STAGE (MODULE C)",null,null,null,null,"BENEFITS BEYOND THE SYSTEM BOUNDARY (MODULE D)"]
[null,null,"Building Element Category",null,"Material Type","Material quantity\n(Module A)\n(kg)","Material intensity \n(Module A) \n(kg/m2 GIA)","Performance Indicator (Planning Stage Estimate)","Construction Waste Factor \n(Module A)","Construction Waste \n(Module A)\n(kg)","Recycled Content \nby mass (kg)","Recycled Content \nby value (%)","Expected Lifespan\n(years)","Number of Replacements (over assumed 60-year period)","Repair and Replacement quantities of materials\n(Module B)\n (kg)","Construction Waste Factor \n(Module B)","Construction Waste \n(Module B)\n(kg)","Design for Disassembly","Assumed End of Life Scenario\n(Description)","% Reusing ","% Recycling","% Landfill","Estimated reusable materials (kg)","Estimated reusable materials intensity\n(kg/m2 GIA)","Estimated recyclable materials (kg)","Estimated recyclable materials intensity\n(kg/m2 GIA)"]
[null,0.1,"Demolition: Toxic/Hazardous/Contaminated Material Treatment",null,"-",{"$f":"SUM(F39:F53)","v":0},{"$f":"IF(AND(F38<>0,$D$31<>0),F38/$D$31,0)","v":0},"-","-",{"$f":"SUM(J39:J53)","v":0},"-","-","-","-",{"$f":"SUM(O39:O53)","v":0},"-",{"$f":"SUM(Q39:Q53)","v":0},"-","-",{"$f":"IF(W38<>0,W38/($F$91+$O$91),0)","v":0},{"$f":"IF(Y38<>0,Y38/($F$91+$O$91),0)","v":0},{"$f":"1-T38-U38","v":1},{"$f":"SUM(W39:W53)","v":0},{"$f":"IF(AND(W38<>0,$D$31<>0),W38/$D$31,0)","v":0},{"$f":"SUM(Y39:Y53)","v":0},{"$f":"IF(AND(Y38<>0,$D$31<>0),Y38/$D$31,0)","v":0}]
[null,0.1,"Demolition: Toxic/Hazardous/Contaminated Material Treatment",null,null,null,{"$f":"IF(AND(F39<>0,$D$31<>0),F39/$D$31,0)","v":0},"-",null,{"$f":"F39*I39","v":0},null,null,null,{"$f":"IF(M39<>0,INT(60/M39),0)","v":0},{"$f":"N39*I39","v":0},null,{"$f":"P39*M39","v":0},null,null,0,0,{"$f":"1-T39-U39","v":1},{"$f":"T39*(F39+O39)","v":0},{"$f":"IF(AND(W39<>0,$D$31<>0),W39/$D$31,0)","v":0},{"$f":"U39*(F39+O39)","v":0},{"$f":"IF(AND(Y39<>0,$D$31<>0),Y39/$D$31,0)","v":0}]
[null,null,null,null,null,null,{"$f":"IF(AND(F40<>0,$D$31<>0),F40/$D$31,0)","v":0},"-",null,{"$f":"F40*I40","v":0},null,null,null,{"$f":"IF(M40<>0,INT(60/M40),0)","v":0},{"$f":"N40*I40","v":0},null,{"$f":"P40*M40","v":0},null,null,0,0,{"$f":"1-T40-U40","v":1},{"$f":"T40*(F40+O40)","v":0},{"$f":"IF(AND(W40<>0,$D$31<>0),W40/$D$31,0)","v":0},{"$f":"U40*(F40+O40)","v":0},0]
[null,null,null,null,null,null,0,"-",null,0,null,null,null,0,0,null,0,null,null,0,0,1,0,0,0,0]
[null,null,null,null,null,null,0,"-",null,0,null,null,null,0,0,null,0,null,null,0,0,1,0,0,0,0]
[null,null,null,null,null,null,0,"-",null,0,null,null,null,0,0,null,0,null,null,0,0,1,0,0,0,0]
[null,null,null,null,null,null,0,"-",null,0,null,null,null,0,0,null,0,null,null,0,0,1,0,0,0,0]
[null,null,null,null,null,null,0,"-",null,0,null,null,null,0,0,null,0,null,null,0,0,1,0,0,0,0]
[null,null,null,null,null,null,0,"-",null,0,null,null,null,0,0,null,0,null,null,0,0,1,0,0,0,0]
[null,null,null,null,null,null,0,"-",null,0,null,null,null,0,0,null,0,null,null,0,0,1,0,0,0,0]
[null,null,null,null,null,null,0,"-",null,0,null,null,null,0,0,null,0,null,null,0,0,1,0,0,0,0]
[null,null,null,null,null,null,0,"-",null,0,null,null,null,0,0,null,0,null,null,0,0,1,0,0,0,0]
[null,null,null,null,null,null,0,"-",null,0,null,null,null,0,0,null,0,null,null,0,0,1,0,0,0,0]
[null,null,null,null,null,null,0,"-",null,0,null,null,null,0,0,null,0,null,null,0,0,1,0,0,0,0]
[null,null,null,null,null,null,0,"-",null,0,null,null,null,0,0,null,0,null,null,0,0,1,0,0,0,0]
[null,null,null,null,null,null,0,"-",null,0,null,null,null,0,0,null,0,null,null,0,0,1,0,0,0,0]
[null,0.2,"Major Demolition Works",null,"-",{"$f":"SUM(F55:F69)","v":0},{"$f":"IF(AND(F54<>0,$D$31<>0),F54/$D$31,0)","v":0},"-","-",{"$f":"SUM(J55:J69)","v":0},"-","-","-","-",{"$f":"SUM(O55:O69)","v":0},"-",{"$f":"SUM(Q55:Q69)","v":0},"-","-",{"$f":"IF(W54<>0,W54/($F$107+$O$107),0)","v":0},{"$f":"IF(Y54<>0,Y54/($F$107+$O$107),0)","v":0},{"$f":"1-T54-U54","v":1},{"$f":"SUM(W55:W69)","v":0},0,{"$f":"SUM(Y55:Y69)","v":0},0]
[null,0.2,"Major Demolition Works",null,null,null,{"$f":"IF(AND(F55<>0,$D$31<>0),F55/$D$31,0)","v":0},"-",null,{"$f":"I55*F55","v":0},null,null,null,0,0,null,0,null,null,0,0,1,0,0,0,0]
[null,null,null,null,null,null,{"$f":"IF(AND(F56<>0,$D$31<>0),F56/$D$31,0)","v":0},"-",null,0,null,null,null,0,0,null,0,null,null,0,0,1,0,0,0,0]
[null,null,null,null,null,null,{"$f":"IF(AND(F57<>0,$D$31<>0),F57/$D$31,0)","v":0},"-",null,0,null,null,null,0,0,null,0,null,null,0,0,1,0,0,0,0]
[null,null,null,null,null,null,0,"-",null,0,null,null,null,0,0,null,0,null,null,0,0,1,0,0,0,0]
[null,null,null,null,null,null,0,"-",null,0,null,null,null,0,0,null,0,null,null,0,0,1,0,0,0,0]
[null,null,null,null,null,null,0,"-",null,0,null,null,null,0,0,null,0,null,null,0,0,1,0,0,0,0]
[null,null,null,null,null,null,0,"-",null,0,null,null,null,0,0,null,0,null,null,0,0,1,0,0,0,0]
[null,null,null,null,null,null,0,"-",null,0,null,null,null,0,0,null,0,null,null,0,0,1,0,0,0,0]
[null,null,null,null,null,null,0,"-",null,0,null,null,null,0,0,null,0,null,null,0,0,1,0,0,0,0]
[null,null,null,null,null,null,0,"-",null,0,null,null,null,0,0,null,0,null,null,0,0,1,0,0,0,0]
[null,null,null,null,null,null,0,"-",null,0,null,null,null,0,0,null,0,null,null,0,0,1,0,0,0,0]
[null,null,null,null,null,null,0,"-",null,0,null,null,null,0,0,null,0,null,null,0,0,1,0,0,0,0]
[null,null,null,null,null,null,0,"-",null,0,null,null,null,0,0,null,0,null,null,0,0,1,0,0,0,0]
[null,null,null,null,null,null,0,"-",null,0,null,null,null,0,0,null,0,null,null,0,0,1,0,0,0,0]
[null,null,null,null,null,null,0,"-",null,0,null,null,null,0,0,null,0,null,null,0,0,1,0,0,0,0]
[null,0.3,"Temporary Support to Adjacent Structures",null,"-",{"$f":"SUM(F71:F85)","v":0},{"$f":"IF(AND(F70<>0,$D$31<>0),F70/$D$31,0)","v":0},"-","-",{"$f":"SUM(J71:J85)","v":0},"-","-","-","-",{"$f":"SUM(O71:O85)","v":0},"-",{"$f":"SUM(Q71:Q85)","v":0},"-","-",{"$f":"IF(W70<>0,W70/($F$123+$O$123),0)","v":0},{"$f":"IF(Y70<>0,Y70/($F$123+$O$123),0)","v":0},1,{"$f":"SUM(W71:W85)","v":0},0,{"$f":"SUM(Y71:Y85)","v":0},0]
[null,0.3,"Temporary Support to Adjacent Structures",null,null,null,{"$f":"IF(AND(F71<>0,$D$31<>0),F71/$D$31,0)","v":0},"-",null,{"$f":"I71*F71","v":0},null,null,null,0,0,null,0,null,null,0,0,1,0,0,0,0]
[null,null,null,null,null,null,{"$f":"IF(AND(F72<>0,$D$31<>0),F72/$D$31,0)","v":0},"-",null,0,null,null,null,0,0,null,0,null,null,0,0,1,0,0,0,0]
[null,null,null,null,null,null,{"$f":"IF(AND(F73<>0,$D$31<>0),F73/$D$31,0)","v":0},"-",null,0,null,null,null,0,0,null,0,null,null,0,0,1,0,0,0,0]
[null,null,null,null,null,null,0,"-",null,0,null,null,null,0,0,null,0,null,null,0,0,1,0,0,0,0]
[null,null,null,null,null,null,0,"-",null,0,null,null,null,0,0,null,0,null,null,0,0,1,0,0,0,0]
[null,null,null,null,null,null,0,"-",null,0,null,null,null,0,0,null,0,null,null,0,0,1,0,0,0,0]
[null,null,null,null,null,null,0,"-",null,0,null,null,null,0,0,null,0,null,null,0,0,1,0,0,0,0]
[null,null,null,null,null,null,0,"-",null,0,null,null,null,0,0,null,0,null,null,0,0,1,0,0,0,0]
[null,null,null,null,null,null,0,"-",null,0,null,null,null,0,0,null,0,null,null,0,0,1,0,0,0,0]
[null,null,null,null,null,null,0,"-",null,0,null,null,null,0,0,null,0,null,null,0,0,1,0,0,0,0]
[null,null,null,null,null,null,0,"-",null,0,null,null,null,0,0,null,0,null,null,0,0,1,0,0,0,0]
[null,null,null,null,null,null,0,"-",null,0,null,null,null,0,0,null,0,null,null,0,0,1,0,0,0,0]
[null,null,null,null,null,null,0,"-",null,0,null,null,null,0,0,null,0,null,null,0,0,1,0,0,0,0]
[null,null,null,null,null,null,0,"-",null,0,null,null,null,0,0,null,0,null,null,0,0,1,0,0,0,0]
[null,null,null,null,null,null,0,"-",null,0,null,null,null,0,0,null,0,null,null,0,0,1,0,0,0,0]
[null,0.4,"Specialist Ground Works",null,"-",{"$f":"SUM(F87:F101)","v":0},{"$f":"IF(AND(F86<>0,$D$31<>0),F86/$D$31,0)","v":0},"-","-",{"$f":"SUM(J87:J101)","v":0},"-","-","-","-",{"$f":"SUM(O87:O101)","v":0},"-",{"$f":"SUM(Q87:Q101)","v":0},"-","-",{"$f":"IF(W86<>0,W86/($F$139+$O$139),0)","v":0},{"$f":"IF(Y86<>0,Y86/($F$139+$O$139),0)","v":0},1,{"$f":"SUM(W87:W101)","v":0},0,{"$f":"SUM(Y87:Y101)","v":0},0]
[null,0.4,"Specialist Ground Works",null,null,null,{"$f":"IF(AND(F87<>0,$D$31<>0),F87/$D$31,0)","v":0},"-",null,{"$f":"I87*F87","v":0},null,null,null,0,0,null,0,null,null,0,0,1,0,0,0,0]
[null,null,null,null,null,null,{"$f":"IF(AND(F88<>0,$D$31<>0),F88/$D$31,0)","v":0},"-",null,0,null,null,null,0,0,null,0,null,null,0,0,1,0,0,0,0]
[null,null,null,null,null,null,{"$f":"IF(AND(F89<>0,$D$31<>0),F89/$D$31,0)","v":0},"-",null,0,null,null,null,0,0,null,0,null,null,0,0,1,0,0,0,0]
[null,null,null,null,null,null,0,"-",null,0,null,null,null,0,0,null,0,null,null,0,0,1,0,0,0,0]
[null,null,null,null,null,null,0,"-",null,0,null,null,null,0,0,null,0,null,null,0,0,1,0,0,0,0]
[null,null,null,null,null,null,0,"-",null,0,null,null,null,0,0,null,0,null,null,0,0,1,0,0,0,0]
[null,null,null,null,null,null,0,"-",null,0,null,null,null,0,0,null,0,null,null,0,0,1,0,0,0,0]
[null,null,null,null,null,null,0,"-",null,0,null,null,null,0,0,null,0,null,null,0,0,1,0,0,0,0]
[null,null,null,null,null,null,0,"-",null,0,null,null,null,0,0,null,0,null,null,0,0,1,0,0,0,0]
[null,null,null,null,null,null,0,"-",null,0,null,null,null,0,0,null,0,null,null,0,0,1,0,0,0,0]
[null,null,null,null,null,null,0,"-",null,0,null,null,null,0,0,null,0,null,null,0,0,1,0,0,0,0]
[null,null,null,null,null,null,0,"-",null,0,null,null,null,0,0,null,0,null,null,0,0,1,0,0,0,0]
[null,null,null,null,null,null,0,"-",null,0,null,null,null,0,0,null,0,null,null,0,0,1,0,0,0,0]
[null,null,null,null,null,null,0,"-",null,0,null,null,null,0,0,null,0,null,null,0,0,1,0,0,0,0]
[null,null,null,null,null,null,0,"-",null,0,null,null,null,0,0,null,0,null,null,0,0,1,0,0,0,0]
[null,1,"Substructure",null,"-",{"$f":"SUM(F103:F122)","v":0},{"$f":"IF(AND(F102<>0,$D$31<>0),F102/$D$31,0)","v":0},{"$f":"IF(AND('Detailed Application Stage'!G155<>0,'Post-Construction Stage'!G102<>0),IF('Detailed Application Stage'!G155='Post-Construction Stage'!G102,\"Equal to planning stage estimate\",IF('Detailed Application Stage'!G155<'Post-Construction Stage'!G102,\"Greater than planning stage estimate\",\"Less than planning stage estimate\")),\"\")","v":""},"-",{"$f":"SUM(J103:J122)","v":0},"-","-","-","-",{"$f":"SUM(O103:O122)","v":0},"-",{"$f":"SUM(Q103:Q122)","v":0},"-","-",{"$f":"IF(W102<>0,W102/($F$155+$O$155),0)","v":0},{"$f":"IF(Y102<>0,Y102/($F$155+$O$155),0)","v":0},1,{"$f":"SUM(W103:W122)","v":0},0,{"$f":"SUM(Y103:Y122)","v":0},0]
[null,1,"Substructure",null,null,null,{"$f":"IF(AND(F103<>0,$D$31<>0),F103/$D$31,0)","v":0},"-",null,{"$f":"I103*F103","v":0},null,null,null,0,0,null,0,null,null,0,0,1,0,0,0,0]
[null,null,null,null,null,null,{"$f":"IF(AND(F104<>0,$D$31<>0),F104/$D$31,0)","v":0},"-",null,0,null,null,null,{"$f":"IF(M104<>0,INT(60/M104),0)","v":0},{"$f":"N104*I104","v":0},null,{"$f":"P104*M104","v":0},null,null,0,0,{"$f":"1-T104-U104","v":1},{"$f":"T104*(F104+O104)","v":0},{"$f":"IF(AND(W104<>0,$D$31<>0),W104/$D$31,0)","v":0},{"$f":"U104*(F104+O104)","v":0},0]
[null,null,null,null,null,null,{"$f":"IF(AND(F105<>0,$D$31<>0),F105/$D$31,0)","v":0},"-",null,0,null,null,null,0,0,null,0,null,null,0,0,1,0,0,0,0]
[null,null,null,null,null,null,0,"-",null,0,null,null,null,0,0,null,0,null,null,0,0,1,0,0,0,0]
[null,null,null,null,null,null,0,"-",null,0,null,null,null,0,0,null,0,null,null,0,0,1,0,0,0,0]
[null,null,null,null,null,null,0,"-",null,0,null,null,null,0,0,null,0,null,null,0,0,1,0,0,0,0]
[null,null,null,null,null,null,0,"-",null,0,null,null,null,0,0,null,0,null,null,0,0,1,0,0,0,0]
[null,null,null,null,null,null,0,"-",null,0,null,null,null,0,0,null,0,null,null,0,0,1,0,0,0,0]
[null,null,null,null,null,null,0,"-",null,0,null,null,null,0,0,null,0,null,null,0,0,1,0,0,0,0]
[null,null,null,null,null,null,0,"-",null,0,null,null,null,0,0,null,0,null,null,0,0,1,0,0,0,0]
[null,null,null,null,null,null,0,"-",null,0,null,null,null,0,0,null,0,null,null,0,0,1,0,0,0,0]
[null,null,null,null,null,null,0,"-",null,0,null,null,null,0,0,null,0,null,null,0,0,1,0,0,0,0]
[null,null,null,null,null,null,0,"-",null,0,null,null,null,0,0,null,0,null,null,0,0,1,0,0,0,0]
[null,null,null,null,null,null,0,"-",null,0,null,null,null,0,0,null,0,null,null,0,0,1,0,0,0,0]
[null,null,null,null,null,null,{"$f":"IF(AND(F117<>0,$D$31<>0),F117/$D$31,0)","v":0},"-",null,0,null,null,null,0,0,null,0,null,null,0,0,1,0,0,0,0]
[null,null,null,null,null,null,{"$f":"IF(AND(F118<>0,$D$31<>0),F118/$D$31,0)","v":0},"-",null,0,null,null,null,0,0,null,0,null,null,0,0,1,0,0,0,0]
[null,null,null,null,null,null,{"$f":"IF(AND(F119<>0,$D$31<>0),F119/$D$31,0)","v":0},"-",null,0,null,null,null,0,0,null,0,null,null,0,0,1,0,0,0,0]
[null,null,null,null,null,null,0,"-",null,0,null,null,null,0,0,null,0,null,null,0,0,1,0,0,0,0]
[null,null,null,null,null,null,0,"-",null,0,null,null,null,0,0,null,0,null,null,0,0,1,0,0,0,0]
[null,null,null,null,null,null,{"$f":"IF(AND(F122<>0,$D$31<>0),F122/$D$31,0)","v":0},"-",null,0,null,null,null,0,0,null,0,null,null,0,0,1,0,0,0,0]
[null,2.1,"Superstructure: Frame",null,"-",{"$f":"SUM(F124:F143)","v":0},{"$f":"IF(AND(F123<>0,$D$31<>0),F123/$D$31,0)","v":0},{"$f":"IF(AND('Detailed Application Stage'!G176<>0,'Post-Construction Stage'!G123<>0),IF('Detailed Application Stage'!G176='Post-Construction Stage'!G123,\"Equal to planning stage estimate\",IF('Detailed Application Stage'!G176<'Post-Construction Stage'!G123,\"Greater than planning stage estimate\",\"Less than planning stage estimate\")),\"\")","v":""},"-",{"$f":"SUM(J124:J143)","v":0},"-","-","-","-",{"$f":"SUM(O124:O143)","v":0},"-",{"$f":"SUM(Q124:Q143)","v":0},"-","-",{"$f":"IF(W123<>0,W123/($F$176+$O$176),0)","v":0},{"$f":"IF(Y123<>0,Y123/($F$176+$O$176),0)","v":0},1,{"$f":"SUM(W124:W143)","v":0},0,{"$f":"SUM(Y124:Y143)","v":0},0]
[null,2.1,"Superstructure: Frame",null,null,null,{"$f":"IF(AND(F124<>0,$D$31<>0),F124/$D$31,0)","v":0},"-",null,{"$f":"I124*F124","v":0},null,null,null,0,0,null,0,null,null,0,0,1,0,0,0,0]
[null,null,null,null,null,null,{"$f":"IF(AND(F125<>0,$D$31<>0),F125/$D$31,0)","v":0},"-",null,0,null,null,null,0,0,null,0,null,null,0,0,1,0,0,0,0]
[null,null,null,null,null,null,{"$f":"IF(AND(F126<>0,$D$31<>0),F126/$D$31,0)","v":0},"-",null,0,null,null,null,0,0,null,0,null,null,0,0,1,0,0,0,0]
[null,null,null,null,null,null,0,"-",null,0,null,null,null,0,0,null,0,null,null,0,0,1,0,0,0,0]
[null,null,null,null,null,null,0,"-",null,0,null,null,null,0,0,null,0,null,null,0,0,1,0,0,0,0]
[null,null,null,null,null,null,0,"-",null,0,null,null,null,0,0,null,0,null,null,0,0,1,0,0,0,0]
[null,null,null,null,null,null,0,"-",null,0,null,null,null,0,0,null,0,null,null,0,0,1,0,0,0,0]
[null,null,null,null,null,null,0,"-",null,0,null,null,null,0,0,null,0,null,null,0,0,1,0,0,0,0]
[null,null,null,null,null,null,0,"-",null,0,null,null,null,0,0,null,0,null,null,0,0,1,0,0,0,0]
[null,null,null,null,null,null,0,"-",null,0,null,null,null,0,0,null,0,null,null,0,0,1,0,0,0,0]
[null,null,null,null,null,null,0,"-",null,0,null,null,null,0,0,null,0,null,null,0,0,1,0,0,0,0]
[null,null,null,null,null,null,0,"-",null,0,null,null,null,0,0,null,0,null,null,0,0,1,0,0,0,0]
[null,null,null,null,null,null,0,"-",null,0,null,null,null,0,0,null,0,null,null,0,0,1,0,0,0,0]
[null,null,null,null,null,null,0,"-",null,0,null,null,null,0,0,null,0,null,null,0,0,1,0,0,0,0]
[null,null,null,null,null,null,{"$f":"IF(AND(F138<>0,$D$31<>0),F138/$D$31,0)","v":0},"-",null,0,null,null,null,0,0,null,0,null,null,0,0,1,0,0,0,0]
[null,null,null,null,null,null,{"$f":"IF(AND(F139<>0,$D$31<>0),F139/$D$31,0)","v":0},"-",null,0,null,null,null,0,0,null,0,null,null,0,0,1,0,0,0,0]
[null,null,null,null,null,null,{"$f":"IF(AND(F140<>0,$D$31<>0),F140/$D$31,0)","v":0},"-",null,0,null,null,null,0,0,null,0,null,null,0,0,1,0,0,0,0]
[null,null,null,null,null,null,{"$f":"IF(AND(F141<>0,$D$31<>0),F141/$D$31,0)","v":0},"-",null,0,null,null,null,0,0,null,0,null,null,0,0,1,0,0,0,0]
[null,null,null,null,null,null,0,"-",null,0,null,null,null,0,0,null,0,null,null,0,0,1,0,0,0,0]
[null,null,null,null,null,null,0,"-",null,0,null,null,null,0,0,null,0,null,null,0,0,1,0,0,0,0]
[null,2.2000000000000002,"Superstructure: Upper Floors",null,"-",{"$f":"SUM(F145:F164)","v":0},{"$f":"IF(AND(F144<>0,$D$31<>0),F144/$D$31,0)","v":0},{"$f":"IF(AND('Detailed Application Stage'!G197<>0,'Post-Construction Stage'!G144<>0),IF('Detailed Application Stage'!G197='Post-Construction Stage'!G144,\"Equal to planning stage estimate\",IF('Detailed Application Stage'!G197<'Post-Construction Stage'!G144,\"Greater than planning stage estimate\",\"Less than planning stage estimate\")),\"\")","v":""},"-",{"$f":"SUM(J145:J164)","v":0},"-","-","-","-",{"$f":"SUM(O145:O164)","v":0},"-",{"$f":"SUM(Q145:Q164)","v":0},"-","-",{"$f":"IF(W144<>0,W144/($F$197+$O$197),0)","v":0},{"$f":"IF(Y144<>0,Y144/($F$197+$O$197),0)","v":0},1,{"$f":"SUM(W145:W164)","v":0},0,{"$f":"SUM(Y145:Y164)","v":0},0]
[null,2.2000000000000002,"Superstructure: Upper Floors",null,null,null,{"$f":"IF(AND(F145<>0,$D$31<>0),F145/$D$31,0)","v":0},"-",null,{"$f":"I145*F145","v":0},null,null,null,0,0,null,0,null,null,0,0,1,0,0,0,0]
[null,null,null,null,null,null,{"$f":"IF(AND(F146<>0,$D$31<>0),F146/$D$31,0)","v":0},"-",null,0,null,null,null,0,0,null,0,null,null,0,0,1,0,0,0,0]
[null,null,null,null,null,null,{"$f":"IF(AND(F147<>0,$D$31<>0),F147/$D$31,0)","v":0},"-",null,0,null,null,null,0,0,null,0,null,null,0,0,1,0,0,0,0]
[null,null,null,null,null,null,0,"-",null,0,null,null,null,0,0,null,0,null,null,0,0,1,0,0,0,0]
[null,null,null,null,null,null,0,"-",null,0,null,null,null,0,0,null,0,null,null,0,0,1,0,0,0,0]
[null,null,null,null,null,null,0,"-",null,0,null,null,null,0,0,null,0,null,null,0,0,1,0,0,0,0]
[null,null,null,null,null,null,0,"-",null,0,null,null,null,0,0,null,0,null,null,0,0,1,0,0,0,0]
[null,null,null,null,null,null,0,"-",null,0,null,null,null,0,0,null,0,null,null,0,0,1,0,0,0,0]
[null,null,null,null,null,null,0,"-",null,0,null,null,null,0,0,null,0,null,null,0,0,1,0,0,0,0]
[null,null,null,null,null,null,0,"-",null,0,null,null,null,0,0,null,0,null,null,0,0,1,0,0,0,0]
[null,null,null,null,null,null,0,"-",null,0,null,null,null,0,0,null,0,null,null,0,0,1,0,0,0,0]
[null,null,null,null,null,null,0,"-",null,0,null,null,null,0,0,null,0,null,null,0,0,1,0,0,0,0]
[null,null,null,null,null,null,0,"-",null,0,null,null,null,0,0,null,0,null,null,0,0,1,0,0,0,0]
[null,null,null,null,null,null,0,"-",null,0,null,null,null,0,0,null,0,null,null,0,0,1,0,0,0,0]
[null,null,null,null,null,null,{"$f":"IF(AND(F159<>0,$D$31<>0),F159/$D$31,0)","v":0},"-",null,0,null,null,null,0,0,null,0,null,null,0,0,1,0,0,0,0]
[null,null,null,null,null,null,{"$f":"IF(AND(F160<>0,$D$31<>0),F160/$D$31,0)","v":0},"-",null,0,null,null,null,0,0,null,0,null,null,0,0,1,0,0,0,0]
[null,null,null,null,null,null,{"$f":"IF(AND(F161<>0,$D$31<>0),F161/$D$31,0)","v":0},"-",null,0,null,null,null,0,0,null,0,null,null,0,0,1,0,0,0,0]
[null,null,null,null,null,null,{"$f":"IF(AND(F162<>0,$D$31<>0),F162/$D$31,0)","v":0},"-",null,0,null,null,null,0,0,null,0,null,null,0,0,1,0,0,0,0]
[null,null,null,null,null,null,0,"-",null,0,null,null,null,0,0,null,0,null,null,0,0,1,0,0,0,0]
[null,null,null,null,null,null,0,"-",null,{"$f":"I164*F164","v":0},null,null,null,0,0,null,0,null,null,0,0,1,0,0,0,0]
[null,2.2999999999999998,"Superstructure: Roof",null,"-",{"$f":"SUM(F166:F185)","v":0},{"$f":"IF(AND(F165<>0,$D$31<>0),F165/$D$31,0)","v":0},{"$f":"IF(AND('Detailed Application Stage'!G218<>0,'Post-Construction Stage'!G165<>0),IF('Detailed Application Stage'!G218='Post-Construction Stage'!G165,\"Equal to planning stage estimate\",IF('Detailed Application Stage'!G218<'Post-Construction Stage'!G165,\"Greater than planning stage estimate\",\"Less than planning stage estimate\")),\"\")","v":""},"-",{"$f":"SUM(J166:J185)","v":0},"-","-","-","-",{"$f":"SUM(O166:O185)","v":0},"-",{"$f":"SUM(Q166:Q185)","v":0},"-","-",{"$f":"IF(W165<>0,W165/($F$218+$O$218),0)","v":0},{"$f":"IF(Y165<>0,Y165/($F$218+$O$218),0)","v":0},1,{"$f":"SUM(W166:W185)","v":0},0,{"$f":"SUM(Y166:Y185)","v":0},0]
[null,2.2999999999999998,"Superstructure: Roof",null,null,null,{"$f":"IF(AND(F166<>0,$D$31<>0),F166/$D$31,0)","v":0},"-",null,{"$f":"I166*F166","v":0},null,null,null,0,0,null,0,null,null,0,0,1,0,0,0,0]
[null,null,null,null,null,null,{"$f":"IF(AND(F167<>0,$D$31<>0),F167/$D$31,0)","v":0},"-",null,0,null,null,null,0,0,null,0,null,null,0,0,1,0,0,0,0]
[null,null,null,null,null,null,{"$f":"IF(AND(F168<>0,$D$31<>0),F168/$D$31,0)","v":0},"-",null,0,null,null,null,{"$f":"IF(M168<>0,INT(60/M168),0)","v":0},{"$f":"N168*I168","v":0},null,{"$f":"P168*M168","v":0},null,null,0,0,{"$f":"1-T168-U168","v":1},{"$f":"T168*(F168+O168)","v":0},{"$f":"IF(AND(W168<>0,$D$31<>0),W168/$D$31,0)","v":0},{"$f":"U168*(F168+O168)","v":0},0]
[null,null,null,null,null,null,0,"-",null,0,null,null,null,0,0,null,0,null,null,0,0,1,0,0,0,0]
[null,null,null,null,null,null,0,"-",null,0,null,null,null,0,0,null,0,null,null,0,0,1,0,0,0,0]
[null,null,null,null,null,null,0,"-",null,0,null,null,null,0,0,null,0,null,null,0,0,1,0,0,0,0]
[null,null,null,null,null,null,0,"-",null,0,null,null,null,0,0,null,0,null,null,0,0,1,0,0,0,0]
[null,null,null,null,null,null,0,"-",null,0,null,null,null,0,0,null,0,null,null,0,0,1,0,0,0,0]
[null,null,null,null,null,null,0,"-",null,0,null,null,null,0,0,null,0,null,null,0,0,1,0,0,0,0]
[null,null,null,null,null,null,0,"-",null,0,null,null,null,0,0,null,0,null,null,0,0,1,0,0,0,0]
[null,null,null,null,null,null,0,"-",null,0,null,null,null,0,0,null,0,null,null,0,0,1,0,0,0,0]
[null,null,null,null,null,null,0,"-",null,0,null,null,null,0,0,null,0,null,null,0,0,1,0,0,0,0]
[null,null,null,null,null,null,0,"-",null,0,null,null,null,0,0,null,0,null,null,0,0,1,0,0,0,0]
[null,null,null,null,null,null,0,"-",null,0,null,null,null,0,0,null,0,null,null,0,0,1,0,0,0,0]
[null,null,null,null,null,null,{"$f":"IF(AND(F180<>0,$D$31<>0),F180/$D$31,0)","v":0},"-",null,0,null,null,null,0,0,null,0,null,null,0,0,1,0,0,0,0]
[null,null,null,null,null,null,{"$f":"IF(AND(F181<>0,$D$31<>0),F181/$D$31,0)","v":0},"-",null,0,null,null,null,0,0,null,0,null,null,0,0,1,0,0,0,0]
[null,null,null,null,null,null,{"$f":"IF(AND(F182<>0,$D$31<>0),F182/$D$31,0)","v":0},"-",null,0,null,null,null,0,0,null,0,null,null,0,0,1,0,0,0,0]
[null,null,null,null,null,null,{"$f":"IF(AND(F183<>0,$D$31<>0),F183/$D$31,0)","v":0},"-",null,0,null,null,null,0,0,null,0,null,null,0,0,1,0,0,0,0]
[null,null,null,null,null,null,0,"-",null,0,null,null,null,0,0,null,0,null,null,0,0,1,0,0,0,0]
[null,null,null,null,null,null,0,"-",null,0,null,null,null,0,0,null,0,null,null,0,0,1,0,0,0,0]
[null,2.4,"Superstructure: Stairs and Ramps",null,"-",{"$f":"SUM(F187:F201)","v":0},{"$f":"IF(AND(F186<>0,$D$31<>0),F186/$D$31,0)","v":0},"-","-",{"$f":"SUM(J187:J201)","v":0},"-","-","-","-",{"$f":"SUM(O187:O201)","v":0},"-",{"$f":"SUM(Q187:Q201)","v":0},"-","-",{"$f":"IF(W186<>0,W186/($F$239+$O$239),0)","v":0},{"$f":"IF(Y186<>0,Y186/($F$239+$O$239),0)","v":0},1,{"$f":"SUM(W187:W201)","v":0},0,{"$f":"SUM(Y187:Y201)","v":0},0]
[null,2.4,"Superstructure: Stairs and Ramps",null,null,null,{"$f":"IF(AND(F187<>0,$D$31<>0),F187/$D$31,0)","v":0},"-",null,{"$f":"I187*F187","v":0},null,null,null,0,0,null,0,null,null,0,0,1,0,0,0,0]
[null,null,null,null,null,null,{"$f":"IF(AND(F188<>0,$D$31<>0),F188/$D$31,0)","v":0},"-",null,0,null,null,null,0,0,null,0,null,null,0,0,1,0,0,0,0]
[null,null,null,null,null,null,{"$f":"IF(AND(F189<>0,$D$31<>0),F189/$D$31,0)","v":0},"-",null,0,null,null,null,0,0,null,0,null,null,0,0,1,0,0,0,0]
[null,null,null,null,null,null,0,"-",null,0,null,null,null,0,0,null,0,null,null,0,0,1,0,0,0,0]
[null,null,null,null,null,null,0,"-",null,0,null,null,null,0,0,null,0,null,null,0,0,1,0,0,0,0]
[null,null,null,null,null,null,0,"-",null,0,null,null,null,0,0,null,0,null,null,0,0,1,0,0,0,0]
[null,null,null,null,null,null,0,"-",null,0,null,null,null,0,0,null,0,null,null,0,0,1,0,0,0,0]
[null,null,null,null,null,null,0,"-",null,0,null,null,null,0,0,null,0,null,null,0,0,1,0,0,0,0]
[null,null,null,null,null,null,0,"-",null,0,null,null,null,0,0,null,0,null,null,0,0,1,0,0,0,0]
[null,null,null,null,null,null,0,"-",null,0,null,null,null,0,0,null,0,null,null,0,0,1,0,0,0,0]
[null,null,null,null,null,null,0,"-",null,0,null,null,null,0,0,null,0,null,null,0,0,1,0,0,0,0]
[null,null,null,null,null,null,0,"-",null,0,null,null,null,0,0,null,0,null,null,0,0,1,0,0,0,0]
[null,null,null,null,null,null,0,"-",null,0,null,null,null,0,0,null,0,null,null,0,0,1,0,0,0,0]
[null,null,null,null,null,null,0,"-",null,0,null,null,null,0,0,null,0,null,null,0,0,1,0,0,0,0]
[null,null,null,null,null,null,{"$f":"IF(AND(F201<>0,$D$31<>0),F201/$D$31,0)","v":0},"-",null,0,null,null,null,0,0,null,0,null,null,0,0,1,0,0,0,0]
[null,2.5,"Superstructure: External Walls",null,"-",{"$f":"SUM(F203:F222)","v":0},{"$f":"IF(AND(F202<>0,$D$31<>0),F202/$D$31,0)","v":0},{"$f":"IF(AND('Detailed Application Stage'!G255<>0,'Post-Construction Stage'!G202<>0),IF('Detailed Application Stage'!G255='Post-Construction Stage'!G202,\"Equal to planning stage estimate\",IF('Detailed Application Stage'!G255<'Post-Construction Stage'!G202,\"Greater than planning stage estimate\",\"Less than planning stage estimate\")),\"\")","v":""},"-",{"$f":"SUM(J203:J222)","v":0},"-","-","-","-",{"$f":"SUM(O203:O222)","v":0},"-",{"$f":"SUM(Q203:Q222)","v":0},"-","-",{"$f":"IF(W202<>0,W202/($F$255+$O$255),0)","v":0},{"$f":"IF(Y202<>0,Y202/($F$255+$O$255),0)","v":0},1,{"$f":"SUM(W203:W222)","v":0},0,{"$f":"SUM(Y203:Y222)","v":0},0]
[null,2.5,"Superstructure: External Walls",null,null,null,{"$f":"IF(AND(F203<>0,$D$31<>0),F203/$D$31,0)","v":0},"-",null,{"$f":"I203*F203","v":0},null,null,null,0,0,null,0,null,null,0,0,1,0,0,0,0]
[null,null,null,null,null,null,{"$f":"IF(AND(F204<>0,$D$31<>0),F204/$D$31,0)","v":0},"-",null,0,null,null,null,0,0,null,0,null,null,0,0,1,0,0,0,0]
[null,null,null,null,null,null,{"$f":"IF(AND(F205<>0,$D$31<>0),F205/$D$31,0)","v":0},"-",null,0,null,null,null,0,0,null,0,null,null,0,0,1,0,0,0,0]
[null,null,null,null,null,null,0,"-",null,0,null,null,null,0,0,null,0,null,null,0,0,1,0,0,0,0]
[null,null,null,null,null,null,0,"-",null,0,null,null,null,0,0,null,0,null,null,0,0,1,0,0,0,0]
[null,null,null,null,null,null,0,"-",null,0,null,null,null,0,0,null,0,null,null,0,0,1,0,0,0,0]
[null,null,null,null,null,null,0,"-",null,0,null,null,null,0,0,null,0,null,null,0,0,1,0,0,0,0]
[null,null,null,null,null,null,0,"-",null,0,null,null,null,0,0,null,0,null,null,0,0,1,0,0,0,0]
[null,null,null,null,null,null,0,"-",null,0,null,null,null,0,0,null,0,null,null,0,0,1,0,0,0,0]
[null,null,null,null,null,null,0,"-",null,0,null,null,null,0,0,null,0,null,null,0,0,1,0,0,0,0]
[null,null,null,null,null,null,0,"-",null,0,null,null,null,0,0,null,0,null,null,0,0,1,0,0,0,0]
[null,null,null,null,null,null,0,"-",null,0,null,null,null,0,0,null,0,null,null,0,0,1,0,0,0,0]
[null,null,null,null,null,null,0,"-",null,0,null,null,null,0,0,null,0,null,null,0,0,1,0,0,0,0]
[null,null,null,null,null,null,0,"-",null,0,null,null,null,0,0,null,0,null,null,0,0,1,0,0,0,0]
[null,null,null,null,null,null,{"$f":"IF(AND(F217<>0,$D$31<>0),F217/$D$31,0)","v":0},"-",null,0,null,null,null,0,0,null,0,null,null,0,0,1,0,0,0,0]
[null,null,null,null,null,null,{"$f":"IF(AND(F218<>0,$D$31<>0),F218/$D$31,0)","v":0},"-",null,0,null,null,null,0,0,null,0,null,null,0,0,1,0,0,0,0]
[null,null,null,null,null,null,{"$f":"IF(AND(F219<>0,$D$31<>0),F219/$D$31,0)","v":0},"-",null,0,null,null,null,0,0,null,0,null,null,0,0,1,0,0,0,0]
[null,null,null,null,null,null,{"$f":"IF(AND(F220<>0,$D$31<>0),F220/$D$31,0)","v":0},"-",null,0,null,null,null,0,0,null,0,null,null,0,0,1,0,0,0,0]
[null,null,null,null,null,null,0,"-",null,0,null,null,null,0,0,null,0,null,null,0,0,1,0,0,0,0]
[null,null,null,null,null,null,0,"-",null,0,null,null,null,0,0,null,0,null,null,0,0,1,0,0,0,0]
[null,2.6,"Superstructure: Windows and External Doors",null,"-",{"$f":"SUM(F224:F238)","v":0},{"$f":"IF(AND(F223<>0,$D$31<>0),F223/$D$31,0)","v":0},{"$f":"IF(AND('Detailed Application Stage'!G276<>0,'Post-Construction Stage'!G223<>0),IF('Detailed Application Stage'!G276='Post-Construction Stage'!G223,\"Equal to planning stage estimate\",IF('Detailed Application Stage'!G276<'Post-Construction Stage'!G223,\"Greater than planning stage estimate\",\"Less than planning stage estimate\")),\"\")","v":""},"-",{"$f":"SUM(J224:J238)","v":0},"-","-","-","-",{"$f":"SUM(O224:O238)","v":0},"-",{"$f":"SUM(Q224:Q238)","v":0},"-","-",{"$f":"IF(W223<>0,W223/($F$276+$O$276),0)","v":0},{"$f":"IF(Y223<>0,Y223/($F$276+$O$276),0)","v":0},1,{"$f":"SUM(W224:W238)","v":0},0,{"$f":"SUM(Y224:Y238)","v":0},0]
[null,2.6,"Superstructure: Windows and External Doors",null,null,null,{"$f":"IF(AND(F224<>0,$D$31<>0),F224/$D$31,0)","v":0},"-",null,0,null,null,null,0,0,null,0,null,null,0,0,1,0,0,0,0]
[null,null,null,null,null,null,{"$f":"IF(AND(F225<>0,$D$31<>0),F225/$D$31,0)","v":0},"-",null,0,null,null,null,0,0,null,0,null,null,0,0,1,0,0,0,0]
[null,null,null,null,null,null,{"$f":"IF(AND(F226<>0,$D$31<>0),F226/$D$31,0)","v":0},"-",null,0,null,null,null,0,0,null,0,null,null,0,0,1,0,0,0,0]
[null,null,null,null,null,null,0,"-",null,0,null,null,null,0,0,null,0,null,null,0,0,1,0,0,0,0]
[null,null,null,null,null,null,0,"-",null,0,null,null,null,0,0,null,0,null,null,0,0,1,0,0,0,0]
[null,null,null,null,null,null,0,"-",null,0,null,null,null,0,0,null,0,null,null,0,0,1,0,0,0,0]
[null,null,null,null,null,null,0,"-",null,0,null,null,null,0,0,null,0,null,null,0,0,1,0,0,0,0]
[null,null,null,null,null,null,0,"-",null,0,null,null,null,0,0,null,0,null,null,0,0,1,0,0,0,0]
[null,null,null,null,null,null,0,"-",null,0,null,null,null,{"$f":"IF(M232<>0,INT(60/M232),0)","v":0},{"$f":"N232*I232","v":0},null,{"$f":"P232*M232","v":0},null,null,0,0,{"$f":"1-T232-U232","v":1},{"$f":"T232*(F232+O232)","v":0},{"$f":"IF(AND(W232<>0,$D$31<>0),W232/$D$31,0)","v":0},{"$f":"U232*(F232+O232)","v":0},0]
[null,null,null,null,null,null,0,"-",null,0,null,null,null,0,0,null,0,null,null,0,0,1,0,0,0,0]
[null,null,null,null,null,null,0,"-",null,0,null,null,null,0,0,null,0,null,null,0,0,1,0,0,0,0]
[null,null,null,null,null,null,0,"-",null,0,null,null,null,0,0,null,0,null,null,0,0,1,0,0,0,0]
[null,null,null,null,null,null,0,"-",null,0,null,null,null,0,0,null,0,null,null,0,0,1,0,0,0,0]
[null,null,null,null,null,null,0,"-",null,0,null,null,null,0,0,null,0,null,null,0,0,1,0,0,0,0]
[null,null,null,null,null,null,{"$f":"IF(AND(F238<>0,$D$31<>0),F238/$D$31,0)","v":0},"-",null,0,null,null,null,0,0,null,0,null,null,0,0,1,0,0,0,0]
[null,2.7,"Superstructure: Internal Walls and Partitions",null,"-",{"$f":"SUM(F240:F259)","v":0},{"$f":"IF(AND(F239<>0,$D$31<>0),F239/$D$31,0)","v":0},{"$f":"IF(AND('Detailed Application Stage'!G292<>0,'Post-Construction Stage'!G239<>0),IF('Detailed Application Stage'!G292='Post-Construction Stage'!G239,\"Equal to planning stage estimate\",IF('Detailed Application Stage'!G292<'Post-Construction Stage'!G239,\"Greater than planning stage estimate\",\"Less than planning stage estimate\")),\"\")","v":""},"-",{"$f":"SUM(J240:J259)","v":0},"-","-","-","-",{"$f":"SUM(O240:O259)","v":0},"-",{"$f":"SUM(Q240:Q259)","v":0},"-","-",{"$f":"IF(W239<>0,W239/($F$292+$O$292),0)","v":0},{"$f":"IF(Y239<>0,Y239/($F$292+$O$292),0)","v":0},1,{"$f":"SUM(W240:W259)","v":0},0,{"$f":"SUM(Y240:Y259)","v":0},0]
[null,2.7,"Superstructure: Internal Walls and Partitions",null,null,null,{"$f":"IF(AND(F240<>0,$D$31<>0),F240/$D$31,0)","v":0},"-",null,0,null,null,null,0,0,null,0,null,null,0,0,1,0,0,0,0]
[null,null,null,null,null,null,{"$f":"IF(AND(F241<>0,$D$31<>0),F241/$D$31,0)","v":0},"-",null,0,null,null,null,0,0,null,0,null,null,0,0,1,0,0,0,0]
[null,null,null,null,null,null,{"$f":"IF(AND(F242<>0,$D$31<>0),F242/$D$31,0)","v":0},"-",null,0,null,null,null,0,0,null,0,null,null,0,0,1,0,0,0,0]
[null,null,null,null,null,null,0,"-",null,0,null,null,null,0,0,null,0,null,null,0,0,1,0,0,0,0]
[null,null,null,null,null,null,0,"-",null,0,null,null,null,0,0,null,0,null,null,0,0,1,0,0,0,0]
[null,null,null,null,null,null,0,"-",null,0,null,null,null,0,0,null,0,null,null,0,0,1,0,0,0,0]
[null,null,null,null,null,null,0,"-",null,0,null,null,null,0,0,null,0,null,null,0,0,1,0,0,0,0]
[null,null,null,null,null,null,0,"-",null,0,null,null,null,0,0,null,0,null,null,0,0,1,0,0,0,0]
[null,null,null,null,null,null,0,"-",null,0,null,null,null,0,0,null,0,null,null,0,0,1,0,0,0,0]
[null,null,null,null,null,null,0,"-",null,0,null,null,null,0,0,null,0,null,null,0,0,1,0,0,0,0]
[null,null,null,null,null,null,0,"-",null,0,null,null,null,0,0,null,0,null,null,0,0,1,0,0,0,0]
[null,null,null,null,null,null,0,"-",null,0,null,null,null,0,0,null,0,null,null,0,0,1,0,0,0,0]
[null,null,null,null,null,null,0,"-",null,0,null,null,null,0,0,null,0,null,null,0,0,1,0,0,0,0]
[null,null,null,null,null,null,0,"-",null,0,null,null,null,0,0,null,0,null,null,0,0,1,0,0,0,0]
[null,null,null,null,null,null,{"$f":"IF(AND(F254<>0,$D$31<>0),F254/$D$31,0)","v":0},"-",null,0,null,null,null,0,0,null,0,null,null,0,0,1,0,0,0,0]
[null,null,null,null,null,null,{"$f":"IF(AND(F255<>0,$D$31<>0),F255/$D$31,0)","v":0},"-",null,0,null,null,null,0,0,null,0,null,null,0,0,1,0,0,0,0]
[null,null,null,null,null,null,{"$f":"IF(AND(F256<>0,$D$31<>0),F256/$D$31,0)","v":0},"-",null,0,null,null,null,0,0,null,0,null,null,0,0,1,0,0,0,0]
[null,null,null,null,null,null,{"$f":"IF(AND(F257<>0,$D$31<>0),F257/$D$31,0)","v":0},"-",null,0,null,null,null,0,0,null,0,null,null,0,0,1,0,0,0,0]
[null,null,null,null,null,null,0,"-",null,0,null,null,null,0,0,null,0,null,null,0,0,1,0,0,0,0]
[null,null,null,null,null,null,0,"-",null,0,null,null,null,0,0,null,0,null,null,0,0,1,0,0,0,0]
[null,2.8,"Superstructure: Internal Doors",null,"-",{"$f":"SUM(F261:F275)","v":0},{"$f":"IF(AND(F260<>0,$D$31<>0),F260/$D$31,0)","v":0},{"$f":"IF(AND('Detailed Application Stage'!G313<>0,'Post-Construction Stage'!G260<>0),IF('Detailed Application Stage'!G313='Post-Construction Stage'!G260,\"Equal to planning stage estimate\",IF('Detailed Application Stage'!G313<'Post-Construction Stage'!G260,\"Greater than planning stage estimate\",\"Less than planning stage estimate\")),\"\")","v":""},"-",{"$f":"SUM(J261:J275)","v":0},"-","-","-","-",{"$f":"SUM(O261:O275)","v":0},"-",{"$f":"SUM(Q261:Q275)","v":0},"-","-",{"$f":"IF(W260<>0,W260/($F$313+$O$313),0)","v":0},{"$f":"IF(Y260<>0,Y260/($F$313+$O$313),0)","v":0},1,{"$f":"SUM(W261:W275)","v":0},0,{"$f":"SUM(Y261:Y275)","v":0},0]
[null,2.8,"Superstructure: Internal Doors",null,null,null,{"$f":"IF(AND(F261<>0,$D$31<>0),F261/$D$31,0)","v":0},"-",null,0,null,null,null,0,0,null,0,null,null,0,0,1,0,0,0,0]
[null,null,null,null,null,null,{"$f":"IF(AND(F262<>0,$D$31<>0),F262/$D$31,0)","v":0},"-",null,0,null,null,null,0,0,null,0,null,null,0,0,1,0,0,0,0]
[null,null,null,null,null,null,{"$f":"IF(AND(F263<>0,$D$31<>0),F263/$D$31,0)","v":0},"-",null,0,null,null,null,0,0,null,0,null,null,0,0,1,0,0,0,0]
[null,null,null,null,null,null,0,"-",null,0,null,null,null,0,0,null,0,null,null,0,0,1,0,0,0,0]
[null,null,null,null,null,null,0,"-",null,0,null,null,null,0,0,null,0,null,null,0,0,1,0,0,0,0]
[null,null,null,null,null,null,0,"-",null,0,null,null,null,0,0,null,0,null,null,0,0,1,0,0,0,0]
[null,null,null,null,null,null,0,"-",null,{"$f":"I267*F267","v":0},null,null,null,0,0,null,0,null,null,0,0,1,0,0,0,0]
[null,null,null,null,null,null,0,"-",null,0,null,null,null,0,0,null,0,null,null,0,0,1,0,0,0,0]
[null,null,null,null,null,null,0,"-",null,0,null,null,null,0,0,null,0,null,null,0,0,1,0,0,0,0]
[null,null,null,null,null,null,0,"-",null,0,null,null,null,0,0,null,0,null,null,0,0,1,0,0,0,0]
[null,null,null,null,null,null,0,"-",null,0,null,null,null,0,0,null,0,null,null,0,0,1,0,0,0,0]
[null,null,null,null,null,null,0,"-",null,0,null,null,null,0,0,null,0,null,null,0,0,1,0,0,0,0]
[null,null,null,null,null,null,0,"-",null,0,null,null,null,0,0,null,0,null,null,0,0,1,0,0,0,0]
[null,null,null,null,null,null,0,"-",null,0,null,null,null,0,0,null,0,null,null,0,0,1,0,0,0,0]
[null,null,null,null,null,null,{"$f":"IF(AND(F275<>0,$D$31<>0),F275/$D$31,0)","v":0},"-",null,0,null,null,null,0,0,null,0,null,null,0,0,1,0,0,0,0]
[null,3,"Finishes",null,"-",{"$f":"SUM(F277:F296)","v":0},{"$f":"IF(AND(F276<>0,$D$31<>0),F276/$D$31,0)","v":0},"-","-",{"$f":"SUM(J277:J296)","v":0},"-","-","-","-",{"$f":"SUM(O277:O296)","v":0},"-",{"$f":"SUM(Q277:Q296)","v":0},"-","-",{"$f":"IF(W276<>0,W276/($F$329+$O$329),0)","v":0},{"$f":"IF(Y276<>0,Y276/($F$329+$O$329),0)","v":0},1,{"$f":"SUM(W277:W296)","v":0},0,{"$f":"SUM(Y277:Y296)","v":0},0]
[null,3,"Finishes",null,null,null,{"$f":"IF(AND(F277<>0,$D$31<>0),F277/$D$31,0)","v":0},"-",null,0,null,null,null,0,0,null,0,null,null,0,0,1,0,0,0,0]
[null,null,null,null,null,null,{"$f":"IF(AND(F278<>0,$D$31<>0),F278/$D$31,0)","v":0},"-",null,0,null,null,null,0,0,null,0,null,null,0,0,1,0,0,0,0]
[null,null,null,null,null,null,{"$f":"IF(AND(F279<>0,$D$31<>0),F279/$D$31,0)","v":0},"-",null,0,null,null,null,0,0,null,0,null,null,0,0,1,0,0,0,0]
[null,null,null,null,null,null,0,"-",null,0,null,null,null,0,0,null,0,null,null,0,0,1,0,0,0,0]
[null,null,null,null,null,null,0,"-",null,0,null,null,null,0,0,null,0,null,null,0,0,1,0,0,0,0]
[null,null,null,null,null,null,0,"-",null,0,null,null,null,0,0,null,0,null,null,0,0,1,0,0,0,0]
[null,null,null,null,null,null,0,"-",null,0,null,null,null,0,0,null,0,null,null,0,0,1,0,0,0,0]
[null,null,null,null,null,null,0,"-",null,0,null,null,null,0,0,null,0,null,null,0,0,1,0,0,0,0]
[null,null,null,null,null,null,0,"-",null,0,null,null,null,0,0,null,0,null,null,0,0,1,0,0,0,0]
[null,null,null,null,null,null,0,"-",null,0,null,null,null,0,0,null,0,null,null,0,0,1,0,0,0,0]
[null,null,null,null,null,null,0,"-",null,0,null,null,null,0,0,null,0,null,null,0,0,1,0,0,0,0]
[null,null,null,null,null,null,0,"-",null,0,null,null,null,0,0,null,0,null,null,0,0,1,0,0,0,0]
[null,null,null,null,null,null,0,"-",null,0,null,null,null,0,0,null,0,null,null,0,0,1,0,0,0,0]
[null,null,null,null,null,null,0,"-",null,0,null,null,null,0,0,null,0,null,null,0,0,1,0,0,0,0]
[null,null,null,null,null,null,{"$f":"IF(AND(F291<>0,$D$31<>0),F291/$D$31,0)","v":0},"-",null,0,null,null,null,0,0,null,0,null,null,0,0,1,0,0,0,0]
[null,null,null,null,null,null,{"$f":"IF(AND(F292<>0,$D$31<>0),F292/$D$31,0)","v":0},"-",null,0,null,null,null,0,0,null,0,null,null,0,0,1,0,0,0,0]
[null,null,null,null,null,null,{"$f":"IF(AND(F293<>0,$D$31<>0),F293/$D$31,0)","v":0},"-",null,0,null,null,null,0,0,null,0,null,null,0,0,1,0,0,0,0]
[null,null,null,null,null,null,{"$f":"IF(AND(F294<>0,$D$31<>0),F294/$D$31,0)","v":0},"-",null,0,null,null,null,0,0,null,0,null,null,0,0,1,0,0,0,0]
[null,null,null,null,null,null,0,"-",null,0,null,null,null,0,0,null,0,null,null,0,0,1,0,0,0,0]
[null,null,null,null,null,null,0,"-",null,0,null,null,null,{"$f":"IF(M296<>0,INT(60/M296),0)","v":0},{"$f":"N296*I296","v":0},null,{"$f":"P296*M296","v":0},null,null,0,0,{"$f":"1-T296-U296","v":1},{"$f":"T296*(F296+O296)","v":0},{"$f":"IF(AND(W296<>0,$D$31<>0),W296/$D$31,0)","v":0},{"$f":"U296*(F296+O296)","v":0},0]
[null,4,"Fittings, furnishings & equipment (FFE)",null,"-",{"$f":"SUM(F298:F317)","v":0},{"$f":"IF(AND(F297<>0,$D$31<>0),F297/$D$31,0)","v":0},"-","-",{"$f":"SUM(J298:J317)","v":0},"-","-","-","-",{"$f":"SUM(O298:O317)","v":0},"-",{"$f":"SUM(Q298:Q317)","v":0},"-","-",{"$f":"IF(W297<>0,W297/($F$350+$O$350),0)","v":0},{"$f":"IF(Y297<>0,Y297/($F$350+$O$350),0)","v":0},1,{"$f":"SUM(W298:W317)","v":0},0,{"$f":"SUM(Y298:Y317)","v":0},0]
[null,4,"Fittings, furnishings & equipment (FFE)",null,null,null,{"$f":"IF(AND(F298<>0,$D$31<>0),F298/$D$31,0)","v":0},"-",null,0,null,null,null,0,0,null,0,null,null,0,0,1,0,0,0,0]
[null,null,null,null,null,null,{"$f":"IF(AND(F299<>0,$D$31<>0),F299/$D$31,0)","v":0},"-",null,0,null,null,null,0,0,null,0,null,null,0,0,1,0,0,0,0]
[null,null,null,null,null,null,{"$f":"IF(AND(F300<>0,$D$31<>0),F300/$D$31,0)","v":0},"-",null,0,null,null,null,0,0,null,0,null,null,0,0,1,0,0,0,0]
[null,null,null,null,null,null,0,"-",null,0,null,null,null,0,0,null,0,null,null,0,0,1,0,0,0,0]
[null,null,null,null,null,null,0,"-",null,0,null,null,null,0,0,null,0,null,null,0,0,1,0,0,0,0]
[null,null,null,null,null,null,0,"-",null,0,null,null,null,0,0,null,0,null,null,0,0,1,0,0,0,0]
[null,null,null,null,null,null,0,"-",null,0,null,null,null,0,0,null,0,null,null,0,0,1,0,0,0,0]
[null,null,null,null,null,null,0,"-",null,0,null,null,null,0,0,null,0,null,null,0,0,1,0,0,0,0]
[null,null,null,null,null,null,0,"-",null,0,null,null,null,0,0,null,0,null,null,0,0,1,0,0,0,0]
[null,null,null,null,null,null,0,"-",null,0,null,null,null,0,0,null,0,null,null,0,0,1,0,0,0,0]
[null,null,null,null,null,null,0,"-",null,0,null,null,null,0,0,null,0,null,null,0,0,1,0,0,0,0]
[null,null,null,null,null,null,0,"-",null,0,null,null,null,0,0,null,0,null,null,0,0,1,0,0,0,0]
[null,null,null,null,null,null,0,"-",null,0,null,null,null,0,0,null,0,null,null,0,0,1,0,0,0,0]
[null,null,null,null,null,null,0,"-",null,0,null,null,null,0,0,null,0,null,null,0,0,1,0,0,0,0]
[null,null,null,null,null,null,{"$f":"IF(AND(F312<>0,$D$31<>0),F312/$D$31,0)","v":0},"-",null,0,null,null,null,0,0,null,0,null,null,0,0,1,0,0,0,0]
[null,null,null,null,null,null,{"$f":"IF(AND(F313<>0,$D$31<>0),F313/$D$31,0)","v":0},"-",null,0,null,null,null,0,0,null,0,null,null,0,0,1,0,0,0,0]
[null,null,null,null,null,null,{"$f":"IF(AND(F314<>0,$D$31<>0),F314/$D$31,0)","v":0},"-",null,0,null,null,null,0,0,null,0,null,null,0,0,1,0,0,0,0]
[null,null,null,null,null,null,{"$f":"IF(AND(F315<>0,$D$31<>0),F315/$D$31,0)","v":0},"-",null,0,null,null,null,0,0,null,0,null,null,0,0,1,0,0,0,0]
[null,null,null,null,null,null,0,"-",null,0,null,null,null,0,0,null,0,null,null,0,0,1,0,0,0,0]
[null,null,null,null,null,null,0,"-",null,0,null,null,null,0,0,null,0,null,null,0,0,1,0,0,0,0]
[null,5,"Services (MEP)",null,"-",{"$f":"SUM(F319:F338)","v":0},{"$f":"IF(AND(F318<>0,$D$31<>0),F318/$D$31,0)","v":0},"-","-",{"$f":"SUM(J319:J338)","v":0},"-","-","-","-",{"$f":"SUM(O319:O338)","v":0},"-",{"$f":"SUM(Q319:Q338)","v":0},"-","-",{"$f":"IF(W318<>0,W318/($F$371+$O$371),0)","v":0},{"$f":"IF(Y318<>0,Y318/($F$371+$O$371),0)","v":0},1,{"$f":"SUM(W319:W338)","v":0},0,{"$f":"SUM(Y319:Y338)","v":0},0]
[null,5,"Services (MEP)",null,null,null,{"$f":"IF(AND(F319<>0,$D$31<>0),F319/$D$31,0)","v":0},"-",null,0,null,null,null,0,0,null,0,null,null,0,0,1,0,0,0,0]
[null,null,null,null,null,null,{"$f":"IF(AND(F320<>0,$D$31<>0),F320/$D$31,0)","v":0},"-",null,0,null,null,null,0,0,null,0,null,null,0,0,1,0,0,0,0]
[null,null,null,null,null,null,{"$f":"IF(AND(F321<>0,$D$31<>0),F321/$D$31,0)","v":0},"-",null,0,null,null,null,0,0,null,0,null,null,0,0,1,0,0,0,0]
[null,null,null,null,null,null,0,"-",null,0,null,null,null,0,0,null,0,null,null,0,0,1,0,0,0,0]
[null,null,null,null,null,null,0,"-",null,0,null,null,null,0,0,null,0,null,null,0,0,1,0,0,0,0]
[null,null,null,null,null,null,0,"-",null,0,null,null,null,0,0,null,0,null,null,0,0,1,0,0,0,0]
[null,null,null,null,null,null,0,"-",null,0,null,null,null,0,0,null,0,null,null,0,0,1,0,0,0,0]
[null,null,null,null,null,null,0,"-",null,0,null,null,null,0,0,null,0,null,null,0,0,1,0,0,0,0]
[null,null,null,null,null,null,0,"-",null,0,null,null,null,0,0,null,0,null,null,0,0,1,0,0,0,0]
[null,null,null,null,null,null,0,"-",null,0,null,null,null,0,0,null,0,null,null,0,0,1,0,0,0,0]
[null,null,null,null,null,null,0,"-",null,0,null,null,null,0,0,null,0,null,null,0,0,1,0,0,0,0]
[null,null,null,null,null,null,0,"-",null,0,null,null,null,0,0,null,0,null,null,0,0,1,0,0,0,0]
[null,null,null,null,null,null,0,"-",null,{"$f":"I331*F331","v":0},null,null,null,0,0,null,0,null,null,0,0,1,0,0,0,0]
[null,null,null,null,null,null,0,"-",null,0,null,null,null,0,0,null,0,null,null,0,0,1,0,0,0,0]
[null,null,null,null,null,null,{"$f":"IF(AND(F333<>0,$D$31<>0),F333/$D$31,0)","v":0},"-",null,0,null,null,null,0,0,null,0,null,null,0,0,1,0,0,0,0]
[null,null,null,null,null,null,{"$f":"IF(AND(F334<>0,$D$31<>0),F334/$D$31,0)","v":0},"-",null,0,null,null,null,0,0,null,0,null,null,0,0,1,0,0,0,0]
[null,null,null,null,null,null,{"$f":"IF(AND(F335<>0,$D$31<>0),F335/$D$31,0)","v":0},"-",null,0,null,null,null,0,0,null,0,null,null,0,0,1,0,0,0,0]
[null,null,null,null,null,null,{"$f":"IF(AND(F336<>0,$D$31<>0),F336/$D$31,0)","v":0},"-",null,0,null,null,null,0,0,null,0,null,null,0,0,1,0,0,0,0]
[null,null,null,null,null,null,0,"-",null,0,null,null,null,0,0,null,0,null,null,0,0,1,0,0,0,0]
[null,null,null,null,null,null,0,"-",null,0,null,null,null,0,0,null,0,null,null,0,0,1,0,0,0,0]
[null,6,"Prefabricated Buildings and Building Units",null,"-",{"$f":"SUM(F340:F359)","v":0},{"$f":"IF(AND(F339<>0,$D$31<>0),F339/$D$31,0)","v":0},"-","-",{"$f":"SUM(J340:J359)","v":0},"-","-","-","-",{"$f":"SUM(O340:O359)","v":0},"-",{"$f":"SUM(Q340:Q359)","v":0},"-","-",{"$f":"IF(W339<>0,W339/($F$392+$O$392),0)","v":0},{"$f":"IF(Y339<>0,Y339/($F$392+$O$392),0)","v":0},1,{"$f":"SUM(W340:W359)","v":0},0,{"$f":"SUM(Y340:Y359)","v":0},0]
[null,6,"Prefabricated Buildings and Building Units",null,null,null,{"$f":"IF(AND(F340<>0,$D$31<>0),F340/$D$31,0)","v":0},"-",null,0,null,null,null,0,0,null,0,null,null,0,0,1,0,0,0,0]
[null,null,null,null,null,null,{"$f":"IF(AND(F341<>0,$D$31<>0),F341/$D$31,0)","v":0},"-",null,0,null,null,null,0,0,null,0,null,null,0,0,1,0,0,0,0]
[null,null,null,null,null,null,{"$f":"IF(AND(F342<>0,$D$31<>0),F342/$D$31,0)","v":0},"-",null,0,null,null,null,0,0,null,0,null,null,0,0,1,0,0,0,0]
[null,null,null,null,null,null,0,"-",null,0,null,null,null,0,0,null,0,null,null,0,0,1,0,0,0,0]
[null,null,null,null,null,null,0,"-",null,0,null,null,null,0,0,null,0,null,null,0,0,1,0,0,0,0]
[null,null,null,null,null,null,0,"-",null,0,null,null,null,0,0,null,0,null,null,0,0,1,0,0,0,0]
[null,null,null,null,null,null,0,"-",null,0,null,null,null,0,0,null,0,null,null,0,0,1,0,0,0,0]
[null,null,null,null,null,null,0,"-",null,0,null,null,null,0,0,null,0,null,null,0,0,1,0,0,0,0]
[null,null,null,null,null,null,0,"-",null,0,null,null,null,0,0,null,0,null,null,0,0,1,0,0,0,0]
[null,null,null,null,null,null,0,"-",null,0,null,null,null,0,0,null,0,null,null,0,0,1,0,0,0,0]
[null,null,null,null,null,null,0,"-",null,0,null,null,null,0,0,null,0,null,null,0,0,1,0,0,0,0]
[null,null,null,null,null,null,0,"-",null,0,null,null,null,0,0,null,0,null,null,0,0,1,0,0,0,0]
[null,null,null,null,null,null,0,"-",null,0,null,null,null,0,0,null,0,null,null,0,0,1,0,0,0,0]
[null,null,null,null,null,null,0,"-",null,0,null,null,null,0,0,null,0,null,null,0,0,1,0,0,0,0]
[null,null,null,null,null,null,{"$f":"IF(AND(F354<>0,$D$31<>0),F354/$D$31,0)","v":0},"-",null,0,null,null,null,0,0,null,0,null,null,0,0,1,0,0,0,0]
[null,null,null,null,null,null,{"$f":"IF(AND(F355<>0,$D$31<>0),F355/$D$31,0)","v":0},"-",null,0,null,null,null,0,0,null,0,null,null,0,0,1,0,0,0,0]
[null,null,null,null,null,null,{"$f":"IF(AND(F356<>0,$D$31<>0),F356/$D$31,0)","v":0},"-",null,0,null,null,null,0,0,null,0,null,null,0,0,1,0,0,0,0]
[null,null,null,null,null,null,{"$f":"IF(AND(F357<>0,$D$31<>0),F357/$D$31,0)","v":0},"-",null,0,null,null,null,0,0,null,0,null,null,0,0,1,0,0,0,0]
[null,null,null,null,null,null,0,"-",null,0,null,null,null,0,0,null,0,null,null,0,0,1,0,0,0,0]
[null,null,null,null,null,null,0,"-",null,0,null,null,null,0,0,null,0,null,null,0,0,1,0,0,0,0]
[null,7,"Work to Existing Building",null,"-",{"$f":"SUM(F361:F380)","v":0},{"$f":"IF(AND(F360<>0,$D$31<>0),F360/$D$31,0)","v":0},"-","-",{"$f":"SUM(J361:J380)","v":0},"-","-","-","-",{"$f":"SUM(O361:O380)","v":0},"-",{"$f":"SUM(Q361:Q380)","v":0},"-","-",{"$f":"IF(W360<>0,W360/($F$413+$O$413),0)","v":0},{"$f":"IF(Y360<>0,Y360/($F$413+$O$413),0)","v":0},{"$f":"1-T360-U360","v":1},{"$f":"SUM(W361:W380)","v":0},{"$f":"IF(AND(W360<>0,$D$31<>0),W360/$D$31,0)","v":0},{"$f":"SUM(Y361:Y380)","v":0},0]
[null,7,"Work to Existing Building",null,null,null,{"$f":"IF(AND(F361<>0,$D$31<>0),F361/$D$31,0)","v":0},"-",null,0,null,null,null,{"$f":"IF(M361<>0,INT(60/M361),0)","v":0},{"$f":"N361*I361","v":0},null,{"$f":"P361*M361","v":0},null,null,0,0,1,{"$f":"T361*(F361+O361)","v":0},0,{"$f":"U361*(F361+O361)","v":0},0]
[null,null,null,null,null,null,{"$f":"IF(AND(F362<>0,$D$31<>0),F362/$D$31,0)","v":0},"-",null,0,null,null,null,0,0,null,0,null,null,0,0,1,0,0,0,0]
[null,null,null,null,null,null,{"$f":"IF(AND(F363<>0,$D$31<>0),F363/$D$31,0)","v":0},"-",null,0,null,null,null,0,0,null,0,null,null,0,0,1,0,0,0,0]
[null,null,null,null,null,null,0,"-",null,0,null,null,null,0,0,null,0,null,null,0,0,1,0,0,0,0]
[null,null,null,null,null,null,0,"-",null,0,null,null,null,0,0,null,0,null,null,0,0,1,0,0,0,0]
[null,null,null,null,null,null,0,"-",null,0,null,null,null,0,0,null,0,null,null,0,0,1,0,0,0,0]
[null,null,null,null,null,null,0,"-",null,0,null,null,null,0,0,null,0,null,null,0,0,1,0,0,0,0]
[null,null,null,null,null,null,0,"-",null,0,null,null,null,0,0,null,0,null,null,0,0,1,0,0,0,0]
[null,null,null,null,null,null,0,"-",null,0,null,null,null,{"$f":"IF(M369<>0,INT(60/M369),0)","v":0},0,null,0,null,null,0,0,1,0,0,0,0]
[null,null,null,null,null,null,0,"-",null,0,null,null,null,0,0,null,0,null,null,0,0,1,0,0,0,0]
[null,null,null,null,null,null,0,"-",null,0,null,null,null,0,0,null,0,null,null,0,0,1,0,0,0,0]
[null,null,null,null,null,null,0,"-",null,0,null,null,null,0,0,null,0,null,null,0,0,1,0,0,0,0]
[null,null,null,null,null,null,0,"-",null,0,null,null,null,0,0,null,0,null,null,0,0,1,0,0,0,0]
[null,null,null,null,null,null,0,"-",null,0,null,null,null,0,0,null,0,null,null,0,0,1,0,0,0,0]
[null,null,null,null,null,null,{"$f":"IF(AND(F375<>0,$D$31<>0),F375/$D$31,0)","v":0},"-",null,0,null,null,null,0,0,null,0,null,null,0,0,1,0,0,0,0]
[null,null,null,null,null,null,{"$f":"IF(AND(F376<>0,$D$31<>0),F376/$D$31,0)","v":0},"-",null,0,null,null,null,0,0,null,0,null,null,0,0,1,0,0,0,0]
[null,null,null,null,null,null,{"$f":"IF(AND(F377<>0,$D$31<>0),F377/$D$31,0)","v":0},"-",null,0,null,null,null,0,0,null,0,null,null,0,0,1,0,0,0,0]
[null,null,null,null,null,null,{"$f":"IF(AND(F378<>0,$D$31<>0),F378/$D$31,0)","v":0},"-",null,0,null,null,null,0,0,null,0,null,null,0,0,1,0,0,0,0]
[null,null,null,null,null,null,0,"-",null,0,null,null,null,0,0,null,0,null,null,0,0,1,0,0,0,0]
[null,null,null,null,null,null,0,"-",null,0,null,null,null,0,0,null,0,null,null,0,0,1,0,0,0,0]
[null,8,"External works",null,"-",{"$f":"SUM(F382:F401)","v":0},{"$f":"IF(AND(F381<>0,$D$31<>0),F381/$D$31,0)","v":0},"-","-",{"$f":"SUM(J382:J401)","v":0},"-","-","-","-",{"$f":"SUM(O382:O401)","v":0},"-",{"$f":"SUM(Q382:Q401)","v":0},"-","-",{"$f":"IF(W381<>0,W381/($F$434+$O$434),0)","v":0},{"$f":"IF(Y381<>0,Y381/($F$434+$O$434),0)","v":0},1,{"$f":"SUM(W382:W401)","v":0},0,{"$f":"SUM(Y382:Y401)","v":0},0]
[null,8,"External works",null,null,null,null,"-",null,0,null,null,null,0,0,null,0,null,null,0,0,1,0,0,0,0]
[null,null,null,null,null,null,{"$f":"IF(AND(F383<>0,$D$31<>0),F383/$D$31,0)","v":0},"-",null,0,null,null,null,0,0,null,0,null,null,0,0,1,0,0,0,0]
[null,null,null,null,null,null,{"$f":"IF(AND(F384<>0,$D$31<>0),F384/$D$31,0)","v":0},"-",null,0,null,null,null,0,0,null,0,null,null,0,0,1,0,0,0,0]
[null,null,null,null,null,null,{"$f":"IF(AND(F385<>0,$D$31<>0),F385/$D$31,0)","v":0},"-",null,0,null,null,null,0,0,null,0,null,null,0,0,1,0,0,0,0]
[null,null,null,null,null,null,0,"-",null,0,null,null,null,0,0,null,0,null,null,0,0,1,0,0,0,0]
[null,null,null,null,null,null,0,"-",null,0,null,null,null,0,0,null,0,null,null,0,0,1,0,0,0,0]
[null,null,null,null,null,null,0,"-",null,0,null,null,null,0,0,null,0,null,null,0,0,1,0,0,0,0]
[null,null,null,null,null,null,0,"-",null,0,null,null,null,0,0,null,0,null,null,0,0,1,0,0,0,0]
[null,null,null,null,null,null,0,"-",null,0,null,null,null,0,0,null,0,null,null,0,0,1,0,0,0,0]
[null,null,null,null,null,null,0,"-",null,0,null,null,null,0,0,null,0,null,null,0,0,1,0,0,0,0]
[null,null,null,null,null,null,0,"-",null,0,null,null,null,0,0,null,0,null,null,0,0,1,0,0,0,0]
[null,null,null,null,null,null,0,"-",null,0,null,null,null,0,0,null,0,null,null,0,0,1,0,0,0,0]
[null,null,null,null,null,null,0,"-",null,0,null,null,null,0,0,null,0,null,null,0,0,1,0,0,0,0]
[null,null,null,null,null,null,0,"-",null,{"$f":"I395*F395","v":0},null,null,null,0,0,null,0,null,null,0,0,1,0,0,0,0]
[null,null,null,null,null,null,0,"-",null,0,null,null,null,0,0,null,0,null,null,0,0,1,0,0,0,0]
[null,null,null,null,null,null,0,"-",null,0,null,null,null,0,0,null,0,null,null,0,0,1,0,0,0,0]
[null,null,null,null,null,null,0,"-",null,0,null,null,null,0,0,null,0,null,null,0,0,1,0,0,0,0]
[null,null,null,null,null,null,0,"-",null,0,null,null,null,0,0,null,0,null,null,0,0,1,0,0,0,0]
[null,null,null,null,null,null,0,"-",null,{"$f":"I400*F400","v":0},null,null,null,{"$f":"IF(M400<>0,INT(60/M400),0)","v":0},0,null,0,null,null,0,0,1,0,0,0,0]
[null,null,null,null,null,null,0,"-",null,{"$f":"I401*F401","v":0},null,null,null,{"$f":"IF(M401<>0,INT(60/M401),0)","v":0},{"$f":"N401*I401","v":0},null,{"$f":"P401*M401","v":0},null,null,0,0,1,{"$f":"T401*(F401+O401)","v":0},0,0,{"$f":"IF(AND(Y401<>0,$D$31<>0),Y401/$D$31,0)","v":0}]
[null,null,"Overall",null,null,{"$f":"SUM(F38,F54,F70,F86,F102,F123,F144,F165,F186,F202,F223,F239,F260,F276,F297,F318,F339,F360,F381)","v":0},0,null,null,{"$f":"SUM(J38,J54,J70,J86,J102,J123,J144,J165,J186,J202,J223,J239,J260,J276,J297,J318,J339,J360,J381)","v":0},null,null,null,null,{"$f":"SUM(O38,O54,O70,O86,O102,O123,O144,O165,O186,O202,O223,O239,O260,O276,O297,O318,O339,O360,O381)","v":0},null,{"$f":"SUM(Q38:Q401)","v":0},null,null,{"$f":"IF(AND($F$455<>0,$O$455<>0),SUM(W38,W54,W70,W86,W102,W123,W144,W165,W186,W202,W223,W239,W260,W276,W297,W318,W339,W360,W381)/($F$455+$O$455),0)","v":0},{"$f":"IF(AND($F$455<>0,$O$455<>0),SUM(Y38,Y54,Y70,Y86,Y102,Y123,Y144,Y165,Y186,Y202,Y223,Y239,Y260,Y276,Y297,Y318,Y339,Y360,Y381)/($F$455+$O$455),0)","v":0},{"$f":"1-T402-U402","v":1},{"$f":"SUM(W38:W401)","v":0},{"$f":"SUM(X38:X401)","v":0},{"$f":"SUM(Y38:Y401)","v":0},{"$f":"SUM(Z38:Z401)","v":0}]
[]
[]
[]
[]
[null,"Recycling and Waste Reporting table"]
[null,"The light green-coloured cells should be completed to achieve 'pioneering' status."]
[null,null,null,null,"TOTAL ESTIMATES OF WASTE",null,null,"WASTE MANAGEMENT ROUTES",null,null,null,null,null,"SUMMARY"]
[null,null,null,null,"Overall Waste \n(tonnes)","Overall Waste\n(tonnes/m2 GIA)","Performance Indicator (Planning Stage Estimate)","REUSE ",null,"RECYCLE",null,"OTHER DISPOSAL",null,"Total Reuse (%)","Total Recycle (%)","Total Reuse and Recycle (%)","Total Waste Reported (%)"]
[null,null,"Type of Waste","Source of Information",null,null,null,"Reuse Onsite (%)","Reuse Offsite (%)","Recycle Onsite(%)","Recycle Offsite (%)","To Landfill (%)","To Other Management (%)"]
[null,null,null,null,"PRODUCT AND CONSTRUCTION STAGE (MODULE A)"]
[null,1,"Demolition Waste",null,null,{"$f":"IF($D$31>0,IF(E413>0,E413/$D$31,0),0)","v":0},{"$f":"IF(AND('Detailed Application Stage'!F466<>0,'Post-Construction Stage'!F413<>0),IF('Detailed Application Stage'!F466='Post-Construction Stage'!F413,\"Equal to planning stage estimate\",IF('Detailed Application Stage'!F466<'Post-Construction Stage'!F413,\"Greater than planning stage estimate\",\"Less than planning stage estimate\")),\"\")","v":""},null,null,null,null,null,null,{"$f":"SUM(H413:I413)","v":0},{"$f":"SUM(J413:K413)","v":0},{"$f":"SUM(N413:O413)","v":0},{"$f":"SUM(H413:M413)","v":0}]
[null,2.1,"Excavation Waste",null,null,{"$f":"IF($D$31>0,IF(E414>0,E414/$D$31,0),0)","v":0},{"$f":"IF(AND('Detailed Application Stage'!F467<>0,'Post-Construction Stage'!F414<>0),IF('Detailed Application Stage'!F467='Post-Construction Stage'!F414,\"Equal to planning stage estimate\",IF('Detailed Application Stage'!F467<'Post-Construction Stage'!F414,\"Greater than planning stage estimate\",\"Less than planning stage estimate\")),\"\")","v":""},null,null,null,null,null,null,{"$f":"SUM(H414:I414)","v":0},{"$f":"SUM(J414:K414)","v":0},{"$f":"SUM(N414:O414)","v":0},{"$f":"SUM(H414:M414)","v":0}]
[null,2.8,"Construction Waste",null,null,{"$f":"IF($D$31>0,IF(E415>0,E415/$D$31,0),0)","v":0},{"$f":"IF(AND('Detailed Application Stage'!F468<>0,'Post-Construction Stage'!F415<>0),IF('Detailed Application Stage'!F468='Post-Construction Stage'!F415,\"Equal to planning stage estimate\",IF('Detailed Application Stage'!F468<'Post-Construction Stage'!F415,\"Greater than planning stage estimate\",\"Less than planning stage estimate\")),\"\")","v":""},null,null,null,null,null,null,{"$f":"SUM(H415:I415)","v":0},{"$f":"SUM(J415:K415)","v":0},{"$f":"SUM(N415:O415)","v":0},{"$f":"SUM(H415:M415)","v":0}]
[null,null,null,null,"USE STAGE (MODULE B)"]
[null,3,"Demolition / Strip-out Waste",null,{"$f":"IF(ISNUMBER(#REF!),#REF!/1000,0)","v":0},{"$f":"IF($D$31>0,IF(E417>0,E417/$D$31,0),0)","v":0},{"$f":"IF(AND('Detailed Application Stage'!F470<>0,'Post-Construction Stage'!F417<>0),IF('Detailed Application Stage'!F470='Post-Construction Stage'!F417,\"Equal to planning stage estimate\",IF('Detailed Application Stage'!F470<'Post-Construction Stage'!F417,\"Greater than planning stage estimate\",\"Less than planning stage estimate\")),\"\")","v":""},null,null,null,null,null,null,{"$f":"SUM(H417:I417)","v":0},{"$f":"SUM(J417:K417)","v":0},{"$f":"SUM(N417:O417)","v":0},{"$f":"SUM(H417:M417)","v":0}]
[null,4,"Construction Waste",null,{"$f":"IF(ISNUMBER(#REF!),#REF!/1000,0)","v":0},{"$f":"IF($D$31>0,IF(E418>0,E418/$D$31,0),0)","v":0},{"$f":"IF(AND('Detailed Application Stage'!F471<>0,'Post-Construction Stage'!F418<>0),IF('Detailed Application Stage'!F471='Post-Construction Stage'!F418,\"Equal to planning stage estimate\",IF('Detailed Application Stage'!F471<'Post-Construction Stage'!F418,\"Greater than planning stage estimate\",\"Less than planning stage estimate\")),\"\")","v":""},null,null,null,null,null,null,{"$f":"SUM(H418:I418)","v":0},{"$f":"SUM(J418:K418)","v":0},{"$f":"SUM(N418:O418)","v":0},{"$f":"SUM(H418:M418)","v":0}]
[null,null,null,null,"Overall Waste (tonnes/annum)","Overall Waste (tonnes/annum\n/m2)","Performance Indicator (Planning Stage Estimate)","Reuse Onsite (%)","Reuse Offsite (%)","Recycle Offsite(%)","Recycle Offsite (%)","To Landfill (%)","To Other Management (%)","Total Reuse (%)","Total Recycle (%)","Total Reuse and Recycle (%)","Total Waste Reported (%)"]
[null,5,"Municipal Waste",null,null,{"$f":"IF($D$31>0,IF(E420>0,E420/$D$31,0),0)","v":0},{"$f":"IF(AND('Detailed Application Stage'!F473<>0,'Post-Construction Stage'!F420<>0),IF('Detailed Application Stage'!F473='Post-Construction Stage'!F420,\"Equal to planning stage estimate\",IF('Detailed Application Stage'!F473<'Post-Construction Stage'!F420,\"Greater than planning stage estimate\",\"Less than planning stage estimate\")),\"\")","v":""},null,null,null,null,null,null,{"$f":"SUM(H420:I420)","v":0},{"$f":"SUM(J420:K420)","v":0},{"$f":"SUM(N420:O420)","v":0},{"$f":"SUM(H420:M420)","v":0}]
[null,6,"Industrial Waste (if applicable)",null,null,{"$f":"IF($D$31>0,IF(E421>0,E421/$D$31,0),0)","v":0},{"$f":"IF(AND('Detailed Application Stage'!F474<>0,'Post-Construction Stage'!F421<>0),IF('Detailed Application Stage'!F474='Post-Construction Stage'!F421,\"Equal to planning stage estimate\",IF('Detailed Application Stage'!F474<'Post-Construction Stage'!F421,\"Greater than planning stage estimate\",\"Less than planning stage estimate\")),\"\")","v":""},null,null,null,null,null,null,{"$f":"SUM(H421:I421)","v":0},{"$f":"SUM(J421:K421)","v":0},{"$f":"SUM(N421:O421)","v":0},{"$f":"SUM(H421:M421)","v":0}]
[null,null,null,null,"MODULE A - MODULE C"]
[null,null,null,null,"Overall Materials \n(tonnes)","Overall Materials (Modules A-C) (tonnes\n/m2)","Performance Indicator (Planning Stage Estimate)","Reuse Onsite (%)","Reuse Offsite (%)","Recycle Offsite(%)","Recycle Offsite (%)","To Landfill (%)","To Other Management (%)","Total Reuse (%)","Total Recycle (%)","Total Reuse and Recycle (%)","Total Waste Reported (%)"]
[null,7,"Total Materials",null,{"$f":"IF(AND(ISNUMBER(#REF!),ISNUMBER(#REF!),ISNUMBER(#REF!),ISNUMBER(#REF!)),((#REF!+#REF!+#REF!+#REF!)/1000),0)","v":0},{"$f":"IF($D$31>0,IF(E424>0,E424/$D$31,0),0)","v":0},{"$f":"IF(AND('Detailed Application Stage'!F477<>0,'Post-Construction Stage'!F424<>0),IF('Detailed Application Stage'!F477='Post-Construction Stage'!F424,\"Equal to planning stage estimate\",IF('Detailed Application Stage'!F477<'Post-Construction Stage'!F424,\"Greater than planning stage estimate\",\"Less than planning stage estimate\")),\"\")","v":""},null,null,null,null,null,null,{"$f":"SUM(H424:I424)","v":0},{"$f":"SUM(J424:K424)","v":0},{"$f":"SUM(N424:O424)","v":0},{"$f":"SUM(H424:M424)","v":0}]
[]
[]
[null,"Circular Economy Targets "]
[null,"Circular economy targets for existing and new development",null,"Policy Requirement","Target at Application Stage (%)","Rate Achieved (%)","Policy Met?","Actions Undertaken / Explanation (How has this been achieved? What are the reasons for any differences between targets/performance?)"]
[null,"Demolition waste materials (non-hazardous)",null,"Minimum of 95% diverted from landfill for reuse, recycling or recovery.",{"$f":"IF(ISNUMBER('Detailed Application Stage'!E482),'Detailed Application Stage'!E482,\"\")","v":0.95},null,{"$f":"IF(ISNUMBER(F429),IF(F429>100%,\"Input not valid\",IF(F429=95%,\"Yes\",IF(100%>=F429>95%,\"Exceeds Policy\",\"No\"))),\"\")","v":""}]
[null,"Excavation waste materials",null,"Minimum of 95% diverted from landfill for beneficial reuse.",{"$f":"IF(ISNUMBER('Detailed Application Stage'!E483),'Detailed Application Stage'!E483,\"\")","v":0.95},null,{"$f":"IF(ISNUMBER(F430),IF(F430>100%,\"Input not valid\",IF(F430=95%,\"Yes\",IF(100%>=F430>95%,\"Exceeds Policy\",\"No\"))),\"\")","v":""}]
[null,"Construction waste materials",null,"Minimum of 95% diverted from landfill for reuse, recycling or recovery.",{"$f":"IF(ISNUMBER('Detailed Application Stage'!E484),'Detailed Application Stage'!E484,\"\")","v":0.95},null,{"$f":"IF(ISNUMBER(F431),IF(F431>100%,\"Input not valid\",IF(F431=95%,\"Yes\",IF(100%>=F431>95%,\"Exceeds Policy\",\"No\"))),\"\")","v":""}]
[null,"Municipal waste",null,"Minimum 65% recycling rate by 2030.",{"$f":"IF(ISNUMBER('Detailed Application Stage'!E485),'Detailed Application Stage'!E485,\"\")","v":0.65},null,{"$f":"IF(ISNUMBER(F432),IF(F432>100%,\"Input not valid\",IF(F432=65%,\"Yes\",IF(100%>=F432>65%,\"Exceeds Policy\",\"No\"))),\"\")","v":""}]
[null,"Recycled content",null,"Minimum 20% of the building material elements to be comprised of recycled or reused content.",{"$f":"IF(ISNUMBER('Detailed Application Stage'!E486),'Detailed Application Stage'!E486,\"\")","v":0.2},null,{"$f":"IF(ISNUMBER(F433),IF(F433>100%,\"Input not valid\",IF(F433=20%,\"Yes\",IF(100%>=F433>20%,\"Exceeds Policy\",\"No\"))),\"\")","v":""}]
[]
[]
[null,"Key Achievements and Gap Assessment:"]
[null,"Summary of key actions undertaken to achieve circular economy outcomes, including achievements and reasons for any differences between targets/performance"]
[null,"Key Achievements",null,"Measure / Target Proposed at Application Stage (if applicable)",null,"Actions Undertaken / Explanation (How has this been achieved? What are the reasons for any differences between targets/performance?)"]
[null,"[This list does not need to be exhaustive but should identify the actions with the biggest impacts.]"]
[]
[]
[]
[]
[]
[]
[]
[]
[]
[]
[]
[]
[]
[]
[]
[null,"Lessons Learnt:"]
[null,"Lessons learnt from the process of undertaking a CE Statement that will inform future projects"]
[null,"Description",null,"Explanation / Solution / Future Approach"]
[null,null,null,"[i.e. Design options or materials that could be used, design principles that could be applied.]"]

{"sheet":"Drop- down list","index":5,"n_rows":20,"n_cols":6,"rows_kept":20,"cut":false,"hidden":true,"merged":[]}
["Number of Use Types","Yes/No","Layers","Building element category reference","Building element category","Other"]
[1,"Yes","Site",0.1,"Demolition: Toxic/Hazardous/Contaminated Material Treatment","It is accepted that the Reserved Matters Reporting will be conditioned"]
[2,"No","Substructure",0.2,"Major Demolition Works","It is accepted that the Post Construction Reporting will be conditioned"]
[3,"Yes, in whole","Super- Structure",0.3,"Temporary Support to Adjacent Structures"]
[4,"Yes, in part","Shell/ Skin",0.4,"Specialist Ground Works"]
[5,"No","Services",1,"Substructure"]
[6,null,"Space",2.1,"Superstructure: Frame"]
[7,null,"Stuff",2.2000000000000002,"Superstructure: Upper Floors"]
[8,null,"Construction Stuff",2.2999999999999998,"Superstructure: Roof"]
[9,null,null,2.4,"Superstructure: Stairs and Ramps"]
[10,null,"Yes",2.5,"Superstructure: External Walls"]
[11,null,"No",2.6,"Superstructure: Windows and External Doors"]
[12,null,null,2.7,"Superstructure: Internal Walls and Partitions"]
[13,null,null,2.8,"Superstructure: Internal Doors"]
[14,null,null,3,"Finishes"]
[15,null,null,4,"Fittings, furnishings & equipment (FFE)"]
[null,null,null,5,"Services (MEP)"]
[null,null,null,6,"Prefabricated Buildings and Building Units"]
[null,null,null,7,"Work to Existing Building"]
[null,null,null,8,"External works"]